"Capital, Revenue or Balance Sheet",Directorate,SERCOP High Level Category,SERCOP Detailed Category,Transaction Number,Date,Service Area,Expenses Type,Amount,Supplier Name,
Revenue,Adult Services,Adult Social Care,Learning Disability Suppt-adults (18-64),5105696209,19.01.2022,Learning Disability Residential 18-64,Charges from Independent Providers,"10,813.88",COMMUNITY HOMES IN INTENSIVE CARE,2
Revenue,Adult Services,Adult Social Care,Central Codes (to be reallocated),5105695452,07.01.2022,Gouldings Resource Centre,Consumable Cleaning Materials,172.00,A & M APPLIANCE CARE,3
Revenue,Adult Services,Adult Social Care,Central Codes (to be reallocated),5105695460,07.01.2022,Gouldings Resource Centre,Consumable Cleaning Materials,220.00,A & M APPLIANCE CARE,4
Revenue,Adult Services,Adult Social Care,Learning Disab Supp (to be reallocated),5105695461,19.01.2022,Plean Dene,Consumable Cleaning Materials,92.00,A & M APPLIANCE CARE,5
Revenue,Adult Services,Adult Social Care,Learning Disab Supp (to be reallocated),5105695463,19.01.2022,Plean Dene,Consumable Cleaning Materials,69.00,A & M APPLIANCE CARE,6
Revenue,Adult Services,Adult Social Care,Social Support - Support for Carer,5105695466,07.01.2022,Westminster House,Property Services - Day to day Maintenance,65.00,A & M APPLIANCE CARE,7
Revenue,Adult Services,Adult Social Care,Central Codes (to be reallocated),5105696378,19.01.2022,Adelaide Resource Centre,Property Services - Day to day Maintenance,135.00,A & M APPLIANCE CARE,8
Revenue,Adult Services,Adult Social Care,Central Codes (to be reallocated),5105695451,12.01.2022,Adelaide Resource Centre,Consumable Cleaning Materials,238.00,A & M APPLIANCE CARE,9
Revenue,Neighbourhoods,Cultural and Related Services,Open Spaces,5105696353,19.01.2022,Tree Felling / Replacement,Payment to Private Contractors,"8,622.50",A GUSTAR T/A IVY TREE CARE,10
Revenue,Regeneration,Planning services,Economic Development,5105696353,19.01.2022,Camp Hill - Regeneration,Grounds Maintenance,924.00,A GUSTAR T/A IVY TREE CARE,11
Revenue,Childrens Services,Children's & Education Services,Other Education and Community Budget,5105695382,12.01.2022,Home to School SEN Transport (LA),Taxis - Contract Hire,888.00,AMAR CABS OF NEWPORT,12
Balance Sheet,Corporate Items,Balance Sheet,Balance Sheet,5105696402,19.01.2022,Balance Sheet,Vehicle Maintenance Costs,321.93,ISLANDWIDE WINDSCREENS,13
Revenue,Neighbourhoods,Environmental & Regulatory Services,"Cemetery, Cremation & Mortuary Services",5105691805,05.01.2022,Cemeteries-Ryde,Property Services - Day to day Maintenance,"1,182.00",C & J GROUND MAINTENANCE,14
Revenue,Childrens Services,Children's & Education Services,Other Education and Community Budget,5105695683,12.01.2022,Home to School SEN Transport (LA),Taxis - Contract Hire,675.00,CLARES CABS,15
Revenue,Resources,Central Services,Support Services,5105696664,21.01.2022,Litigation Costs,Legal Fees - Other Parties,500.00,COLLEGE CHAMBERS BARRISTERS,16
Revenue,Adult Services,Adult Social Care,Social Care Activities,5105695590,12.01.2022,DoLS/MCA,Professional Services,184.32,DR ALEXIS BOWERS LTD,17
Revenue,Adult Services,Adult Social Care,Social Care Activities,5105696706,21.01.2022,DoLS/MCA,Professional Services,186.33,DR ALEXIS BOWERS LTD,18
Revenue,Childrens Services,Adult Social Care,Social Care Activities,5105695054,05.01.2022,Adult Social Care - Workforce Development,Training,875.00,EDGE TRAINING & CONS LTD,19
Revenue,Adult Services,Adult Social Care,Social Care Activities,5105695439,07.01.2022,SM IASCC/Localities and Review,Professional Services,"1,950.00",FRAN OSMAN-NEWBURY LTD,20
Revenue,Childrens Services,Children's & Education Services,Family Support Services,5105697321,28.01.2022,Short Breaks,Charges from Independent Providers,134.34,JOHN CATTLE'S SKATE CLUB,21
Revenue,Neighbourhoods,Cultural and Related Services,Open Spaces,5105695617,12.01.2022,Victoria Recreation Ground,Property Services - Day to day Maintenance,-200.00,LINSCH CONSULTANTS,22
Revenue,Neighbourhoods,Cultural and Related Services,Open Spaces,5105695619,12.01.2022,Open space lettings,Property Services - Day to day Maintenance,200.00,LINSCH CONSULTANTS,23
Revenue,Resources,Children's & Education Services,Safeguarding Children/Young Peoples Svs,5105695603,12.01.2022,ASYE Programme,Training,60.00,MISSING SOLUTIONS LTD,24
Revenue,Resources,Children's & Education Services,Safeguarding Children/Young Peoples Svs,5105695603,12.01.2022,ASYE Programme,Training,60.00,MISSING SOLUTIONS LTD,25
Revenue,Resources,Children's & Education Services,Safeguarding Children/Young Peoples Svs,5105695603,12.01.2022,ASYE Programme,Training,60.00,MISSING SOLUTIONS LTD,26
Revenue,Resources,Children's & Education Services,Safeguarding Children/Young Peoples Svs,5105695701,12.01.2022,ASYE Programme,Training,"1,250.00",MISSING SOLUTIONS LTD,27
Revenue,Neighbourhoods,Cultural and Related Services,Open Spaces,5105696409,19.01.2022,Rights of Way Operations,Payment to Private Contractors,250.00,NIGEL EARLEY SERVICES LTD,28
Revenue,Neighbourhoods,Environmental & Regulatory Services,"Cemetery, Cremation & Mortuary Services",5105697276,28.01.2022,Cemeteries-Newport,Grounds Maintenance,650.00,NIGEL EARLEY SERVICES LTD,29
Revenue,Neighbourhoods,Cultural and Related Services,Open Spaces,5105697277,28.01.2022,Tree Felling / Replacement,Payment to Private Contractors,"1,300.00",NIGEL EARLEY SERVICES LTD,30
Revenue,Neighbourhoods,Cultural and Related Services,Open Spaces,5105696722,21.01.2022,Tree Felling / Replacement,Payment to Private Contractors,"2,300.00",NIGEL EARLEY SERVICES LTD,31
Revenue,Neighbourhoods,Cultural and Related Services,Open Spaces,5105696722,21.01.2022,Tree Felling / Replacement,Payment to Private Contractors,200.00,NIGEL EARLEY SERVICES LTD,32
Revenue,Neighbourhoods,Cultural and Related Services,Open Spaces,5105696275,19.01.2022,Tree Felling / Replacement,Payment to Private Contractors,500.00,NIGEL EARLEY SERVICES LTD,33
Revenue,Neighbourhoods,Environmental & Regulatory Services,"Cemetery, Cremation & Mortuary Services",5105696362,19.01.2022,Cemeteries Administration,Grounds Maintenance,585.00,NIGEL EARLEY SERVICES LTD,34
Revenue,Resources,Central Services,Support Services,5105696765,21.01.2022,Legal Services Section,Sundry Office Expenses,59.97,OD CONSULTANCY LTD,35
Revenue,Adult Services,Housing Services,Homelessness,5105696790,26.01.2022,Private Rented Sector Leasing Scheme,Accommodation Costs - Leaseholder Payments,695.89,REDACTED PERSONAL DATA,36
Revenue,Adult Services,Housing Services,Homelessness,5105696790,26.01.2022,Private Rented Sector Leasing Scheme,Accommodation Costs - Leaseholder Payments,695.89,REDACTED PERSONAL DATA,37
Revenue,Adult Services,Housing Services,Homelessness,5105696790,26.01.2022,Private Rented Sector Leasing Scheme,Accommodation Costs - Leaseholder Payments,695.89,REDACTED PERSONAL DATA,38
Revenue,Adult Services,Housing Services,Homelessness,5105696790,26.01.2022,Private Rented Sector Leasing Scheme,Accommodation Costs - Leaseholder Payments,695.89,REDACTED PERSONAL DATA,39
Revenue,Adult Services,Housing Services,Homelessness,5105696790,26.01.2022,Private Rented Sector Leasing Scheme,Accommodation Costs - Leaseholder Payments,695.89,REDACTED PERSONAL DATA,40
Revenue,Childrens Services,Children's & Education Services,Other Education and Community Budget,5105696246,26.01.2022,Home to School SEN Transport (LA),Taxis - Contract Hire,245.00,ROUNSEVELLS TAXIS,41
Revenue,Childrens Services,Children's & Education Services,Other Education and Community Budget,5105695981,14.01.2022,Home to School SEN Transport (LA),Taxis - Contract Hire,429.00,ROUNSEVELLS TAXIS,42
Revenue,Childrens Services,Children's & Education Services,Other Education and Community Budget,5105696998,26.01.2022,Home to School SEN Transport (LA),Taxis - Contract Hire,910.00,ROUNSEVELLS TAXIS,43
Revenue,Childrens Services,Children's & Education Services,Other Education and Community Budget,5105696452,28.01.2022,Home to School SEN Transport (LA),Taxis - Contract Hire,525.00,ROUNSEVELLS TAXIS,44
Revenue,Childrens Services,Children's & Education Services,Other Education and Community Budget,5105696344,19.01.2022,Home to College Post 16 Transport,Taxis - Contract Hire,560.00,ROUNSEVELLS TAXIS,45
Revenue,Childrens Services,Children's & Education Services,Special Schools & Alternative Provision,5105696997,26.01.2022,Island Learning Centre,Taxis - Contract Hire,105.00,ROUNSEVELLS TAXIS,46
Revenue,Childrens Services,Children's & Education Services,Special Schools & Alternative Provision,5105694305,19.01.2022,Island Learning Centre,Taxis - Contract Hire,122.50,ROUNSEVELLS TAXIS,47
Revenue,Adult Services,Housing Services,Homelessness,5105695111,07.01.2022,Homelessness Support,Client Expenses,350.00,REDACTED PERSONAL DATA,48
Revenue,Childrens Services,Children's & Education Services,Family Support Services,5105696756,21.01.2022,Short Breaks,Charges from Independent Providers,432.00,SCALLYWAGS FUN CLUB,49
Revenue,Regeneration,Planning services,Economic Development,5105696764,21.01.2022,Director of Regeneration,Consultants Fees,"3,000.00",SOUTH ISLAND ESTATES LTD,50
Revenue,Childrens Services,Children's & Education Services,Management & Support Services,5105694843,12.01.2022,Special Discretionary Grants,Charges from Independent Providers,"2,280.00",REDACTED PERSONAL DATA,56
Revenue,Childrens Services,Children's & Education Services,Family Support Services,5105694921,05.01.2022,Short Breaks,Charges from Independent Providers,386.25,THE VECTIS RADIO 4PS TRAINING,57
Revenue,Childrens Services,Children's & Education Services,Family Support Services,5105694922,05.01.2022,Short Breaks,Charges from Independent Providers,309.00,THE VECTIS RADIO 4PS TRAINING,58
Revenue,Childrens Services,Children's & Education Services,Family Support Services,5105694910,05.01.2022,Short Breaks,Charges from Independent Providers,231.75,THE VECTIS RADIO 4PS TRAINING,59
Revenue,Childrens Services,Children's & Education Services,Other Education and Community Budget,5105695130,07.01.2022,Home to School SEN Transport (LA),Taxis - Contract Hire,"1,050.00",THOMPSON TAXI,60
Revenue,Childrens Services,Children's & Education Services,Other Education and Community Budget,5105695129,07.01.2022,Home to School Mainstream Transport,Taxis - Contract Hire,"1,560.00",THOMPSON TAXI,61
Revenue,Adult Services,Adult Social Care,Social Support - Social Isolation/Other,5105695025,12.01.2022,Social Isolation/Other Other ST Support,Professional Services,"1,372.00",TOP MOPS LIMITED,62
Revenue,Adult Services,Adult Social Care,Social Support - Social Isolation/Other,5105696971,28.01.2022,Social Isolation/Other Other ST Support,Professional Services,702.50,TOP MOPS LIMITED,63
Revenue,Adult Services,Adult Social Care,Social Support - Social Isolation/Other,5105691580,19.01.2022,Social Isolation/Other Other ST Support,Professional Services,98.00,TOP MOPS LIMITED,64
Revenue,Adult Services,Adult Social Care,Social Support - Social Isolation/Other,5105689047,26.01.2022,Social Isolation/Other Other ST Support,Professional Services,"1,519.00",TOP MOPS LIMITED,65
Revenue,Adult Services,Adult Social Care,Social Support - Social Isolation/Other,5105694838,19.01.2022,Social Isolation/Other Other ST Support,Professional Services,343.00,TOP MOPS LIMITED,66
Revenue,Neighbourhoods,Environmental & Regulatory Services,Regulatory Services,5105696403,19.01.2022,Public Conveniences - General,Property Services - Day to day Maintenance,45.00,TOP MOPS LIMITED,67
Revenue,Childrens Services,Children's & Education Services,Other Education and Community Budget,5105695763,12.01.2022,Home to School SEN Transport (LA),Taxis - Contract Hire,480.00,TOP MOPS LIMITED,68
Revenue,Childrens Services,Children's & Education Services,Other Education and Community Budget,5105695765,12.01.2022,Home to School SEN Transport (LA),Taxis - Contract Hire,"1,040.00",TOP MOPS LIMITED,69
Revenue,Childrens Services,Children's & Education Services,Other Education and Community Budget,5105695762,12.01.2022,Home to College Post 16 Transport,Taxis - Contract Hire,500.00,TOP MOPS LIMITED,70
Revenue,Childrens Services,Children's & Education Services,Special Schools & Alternative Provision,5105694836,07.01.2022,Island Learning Centre,Cleaning Contracts,"2,097.10",TOP MOPS LIMITED,71
Revenue,Childrens Services,Children's & Education Services,Special Schools & Alternative Provision,5105694837,05.01.2022,Island Learning Centre,Cleaning Contracts,837.00,TOP MOPS LIMITED,72
Revenue,Childrens Services,Children's & Education Services,Special Schools & Alternative Provision,5105695654,12.01.2022,Island Learning Centre,Consumable Cleaning Materials,32.95,TOP MOPS LIMITED,73
Revenue,Childrens Services,Children's & Education Services,Other Education and Community Budget,5105695761,12.01.2022,Home to School Mainstream Transport,Taxis - Contract Hire,"1,605.00",TOP MOPS LIMITED,74
Revenue,Childrens Services,Children's & Education Services,Other Education and Community Budget,5105695764,12.01.2022,Home to School Mainstream Transport,Taxis - Contract Hire,"1,080.00",TOP MOPS LIMITED,75
Revenue,Childrens Services,Children's & Education Services,Other Education and Community Budget,5105695766,12.01.2022,Home to School Mainstream Transport,Taxis - Contract Hire,"1,560.00",TOP MOPS LIMITED,76
Revenue,Childrens Services,Children's & Education Services,Other Education and Community Budget,5105697435,28.01.2022,Barton Primary Sshool Disposal,Security of Buildings,12.00,VECTIS GROUP SECURITY LTD,77
Revenue,Childrens Services,Children's & Education Services,Other Education and Community Budget,5105695064,05.01.2022,Barton Primary Sshool Disposal,Security of Buildings,12.00,VECTIS GROUP SECURITY LTD,78
Revenue,Regeneration,Planning services,Economic Development,5105696976,28.01.2022,Victoria Quays,Security of Buildings,132.00,VECTIS GROUP SECURITY LTD,79
Revenue,Regeneration,Planning services,Economic Development,5105696326,19.01.2022,Victoria Quays,Security of Buildings,147.00,VECTIS GROUP SECURITY LTD,80
Revenue,Regeneration,Central Services,Support Services,5105696894,26.01.2022,Elmdon (The Laurels),Security of Buildings,60.00,VECTIS GROUP SECURITY LTD,81
Revenue,Regeneration,Central Services,Support Services,5105696659,21.01.2022,Elmdon (The Laurels),Security of Buildings,125.00,VECTIS GROUP SECURITY LTD,82
Revenue,Childrens Services,Children's & Education Services,Other Education and Community Budget,5105695075,05.01.2022,Weston Academy Closure,Security of Buildings,192.00,VECTIS GROUP SECURITY LTD,83
Revenue,Childrens Services,Children's & Education Services,Other Education and Community Budget,5105697440,28.01.2022,Weston Academy Closure,Security of Buildings,220.00,VECTIS GROUP SECURITY LTD,84
Revenue,Childrens Services,Children's & Education Services,Other Education and Community Budget,5105696405,19.01.2022,Ex Studio School Grange Rd East Cowes,Security of Buildings,147.00,VECTIS GROUP SECURITY LTD,85
Revenue,Regeneration,Central Services,Support Services,5105696328,19.01.2022,"Westridge, Ryde",Security of Buildings,12.00,VECTIS GROUP SECURITY LTD,86
Revenue,Regeneration,Central Services,Support Services,5105696892,26.01.2022,"Westridge, Ryde",Security of Buildings,32.00,VECTIS GROUP SECURITY LTD,87
Revenue,Childrens Services,Children's & Education Services,Special Schools & Alternative Provision,5105695705,12.01.2022,Island Learning Centre,Security of Buildings,60.00,VECTIS GROUP SECURITY LTD,88
Revenue,Childrens Services,Children's & Education Services,Special Schools & Alternative Provision,5105695705,12.01.2022,Island Learning Centre,Security of Buildings,12.00,VECTIS GROUP SECURITY LTD,89
Revenue,Childrens Services,Children's & Education Services,Support Services,5105695706,12.01.2022,Grafton Street Sandown (ex Sandown Yth),Security of Buildings,147.00,VECTIS GROUP SECURITY LTD,90
Revenue,Regeneration,Central Services,Support Services,5105696896,26.01.2022,Public Sector Partnership Costs,Security of Buildings,60.00,VECTIS GROUP SECURITY LTD,91
Revenue,Regeneration,Central Services,Support Services,5105696321,19.01.2022,Public Sector Partnership Costs,Security of Buildings,75.00,VECTIS GROUP SECURITY LTD,92
Revenue,Childrens Services,Children's & Education Services,Other Education and Community Budget,5105697439,28.01.2022,Broadlea PS Berry Hill site (was 55909),Security of Buildings,30.00,VECTIS GROUP SECURITY LTD,93
Revenue,Childrens Services,Children's & Education Services,Other Education and Community Budget,5105695062,05.01.2022,Broadlea PS Berry Hill site (was 55909),Security of Buildings,30.00,VECTIS GROUP SECURITY LTD,94
Revenue,Regeneration,Planning services,Planning Policy,5105695004,07.01.2022,Island Planning Strategy,Agency staff,"1,921.00",VIVID RESOURCING,95
Revenue,Regeneration,Planning services,Planning Policy,5105696000,14.01.2022,Island Planning Strategy,Agency staff,"2,858.00",VIVID RESOURCING,96
Revenue,Regeneration,Planning services,Planning Policy,5105696682,21.01.2022,Island Planning Strategy,Agency staff,"1,512.50",VIVID RESOURCING,97
Revenue,Childrens Services,Children's & Education Services,Other Education and Community Budget,5105695106,05.01.2022,Home to School SEN Transport (LA),Taxis - Contract Hire,"1,650.00",W W CARS OF SEAVIEW,98
Revenue,Childrens Services,Children's & Education Services,Other Education and Community Budget,5105695103,05.01.2022,Home to School SEN Transport (LA),Taxis - Contract Hire,870.00,W W CARS OF SEAVIEW,99
Revenue,Childrens Services,Children's & Education Services,Other Education and Community Budget,5105695104,05.01.2022,Home to School SEN Transport (LA),Taxis - Contract Hire,"1,050.00",W W CARS OF SEAVIEW,100
Revenue,Childrens Services,Children's & Education Services,Other Education and Community Budget,5105696459,19.01.2022,Home to College Post 16 Transport,Taxis - Contract Hire,514.80,HAVEN TAXIS & PRIVATE HIRE,101
Revenue,Childrens Services,Children's & Education Services,Other Education and Community Budget,5105696460,19.01.2022,Home to School Mainstream Transport,Taxis - Contract Hire,"1,038.70",HAVEN TAXIS & PRIVATE HIRE,102
Revenue,Adult Services,Adult Social Care,Central Codes (to be reallocated),5105697485,28.01.2022,Gouldings Resource Centre,Property Services - Day to day Maintenance,80.00,WIGHT HEATING LTD,103
Revenue,Childrens Services,Children's & Education Services,Support Services,5105696704,21.01.2022,Learning & Development Running Costs,Property Services - Planned Maintenance,307.30,WIGHT HEATING LTD,104
Revenue,Neighbourhoods,Cultural and Related Services,Library Service,5105697482,28.01.2022,Ryde Library,Property Services - Day to day Maintenance,115.00,WIGHT HEATING LTD,105
Revenue,Adult Services,Adult Social Care,Assistive Equipment & Technology,5105697486,28.01.2022,BCF Community Equipment Store,Minor Works,150.00,WIGHT HEATING LTD,106
Revenue,Regeneration,Central Services,Support Services,5105696693,21.01.2022,"Mariners Way, Cowes",Property Services - Day to day Maintenance,80.00,WIGHT HEATING LTD,107
Revenue,Childrens Services,Children's & Education Services,Children Looked After,5105696690,21.01.2022,Beaulieu House,Minor Works,226.75,WIGHT HEATING LTD,108
Capital,Resources,Capital,Capital,5105697488,28.01.2022,Management of Asbestos,Payment to Contractors - Capital,"3,763.97",WIGHT HEATING LTD,109
Revenue,Neighbourhoods,Cultural and Related Services,Library Service,5105696972,26.01.2022,Ventnor Library,Property Services - Planned Maintenance,"1,576.20",WIGHT HEATING LTD,110
Revenue,Regeneration,Central Services,Support Services,5105696684,21.01.2022,"County Hall,Newport",Property Services - Day to day Maintenance,115.00,WIGHT HEATING LTD,111
Revenue,Neighbourhoods,Cultural and Related Services,Recreation and Sport,5105697483,28.01.2022,Westridge Squash Courts,Property Services - Day to day Maintenance,80.00,WIGHT HEATING LTD,112
Revenue,Childrens Services,Children's & Education Services,Sure Start Children's Centres,5105696695,21.01.2022,Family Centres Maintenance,Minor Works,273.67,WIGHT HEATING LTD,113
Revenue,Childrens Services,Children's & Education Services,Sure Start Children's Centres,5105696253,19.01.2022,Family Centres Maintenance,Minor Works,155.85,WIGHT HEATING LTD,114
Revenue,Adult Services,Adult Social Care,Central Codes (to be reallocated),5105696970,26.01.2022,Adelaide Resource Centre,Property Services - Day to day Maintenance,974.20,WIGHT HEATING LTD,115
Revenue,Adult Services,Adult Social Care,Central Codes (to be reallocated),5105696656,21.01.2022,Adelaide Resource Centre,Property Services - Planned Maintenance,"1,867.69",WIGHT HEATING LTD,116
Revenue,Neighbourhoods,Cultural and Related Services,Recreation and Sport,5105696252,19.01.2022,The Heights,Property Services - Planned Maintenance,582.39,WIGHT HEATING LTD,117
Revenue,Regeneration,Central Services,Support Services,5105696686,21.01.2022,"Civic Centre,Sandown",Property Services - Day to day Maintenance,120.00,WIGHT HEATING LTD,118
Revenue,Childrens Services,Children's & Education Services,Special Schools & Alternative Provision,5105693152,05.01.2022,Island Learning Centre,Catering Equipment,56.52,2468 LTD,119
Revenue,Childrens Services,Children's & Education Services,Special Schools & Alternative Provision,5105693152,05.01.2022,Island Learning Centre,Catering Equipment,3.24,2468 LTD,120
Revenue,Adult Services,Housing Services,Homelessness,5105696802,26.01.2022,Private Rented Sector Leasing Scheme,Accommodation Costs - Leaseholder Payments,866.67,2K PROPERTY,121
Revenue,Childrens Services,Children's & Education Services,Children Looked After,5105697219,28.01.2022,Children placed with Family&Friends,Boarding Out Allowances,226.66,REDACTED PERSONAL DATA,122
Revenue,Childrens Services,Children's & Education Services,Children Looked After,5105697219,28.01.2022,Children placed with Family&Friends,Boarding Out Allowances,247.89,REDACTED PERSONAL DATA,123
Revenue,Childrens Services,Children's & Education Services,Children Looked After,5105697219,28.01.2022,Children placed with Family&Friends,Boarding Out Allowances,247.89,REDACTED PERSONAL DATA,124
Revenue,Childrens Services,Children's & Education Services,Children Looked After,5105696632,21.01.2022,Children placed with Family&Friends,Boarding Out Allowances,226.66,REDACTED PERSONAL DATA,125
Revenue,Childrens Services,Children's & Education Services,Children Looked After,5105696632,21.01.2022,Children placed with Family&Friends,Boarding Out Allowances,247.89,REDACTED PERSONAL DATA,126
Revenue,Childrens Services,Children's & Education Services,Children Looked After,5105696632,21.01.2022,Children placed with Family&Friends,Boarding Out Allowances,247.89,REDACTED PERSONAL DATA,127
Revenue,Childrens Services,Children's & Education Services,Children Looked After,5105695959,14.01.2022,Children placed with Family&Friends,Boarding Out Allowances,226.66,REDACTED PERSONAL DATA,128
Revenue,Childrens Services,Children's & Education Services,Children Looked After,5105695959,14.01.2022,Children placed with Family&Friends,Boarding Out Allowances,247.89,REDACTED PERSONAL DATA,129
Revenue,Childrens Services,Children's & Education Services,Children Looked After,5105695959,14.01.2022,Children placed with Family&Friends,Boarding Out Allowances,247.89,REDACTED PERSONAL DATA,130
Revenue,Childrens Services,Children's & Education Services,Children Looked After,5105695332,07.01.2022,Children placed with Family&Friends,Boarding Out Allowances,226.66,REDACTED PERSONAL DATA,131
Revenue,Childrens Services,Children's & Education Services,Children Looked After,5105695332,07.01.2022,Children placed with Family&Friends,Boarding Out Allowances,247.89,REDACTED PERSONAL DATA,132
Revenue,Childrens Services,Children's & Education Services,Children Looked After,5105695332,07.01.2022,Children placed with Family&Friends,Boarding Out Allowances,247.89,REDACTED PERSONAL DATA,133
Revenue,Childrens Services,Children's & Education Services,Children Looked After,5105696495,21.01.2022,In-house Fostering,Boarding Out Allowances,290.48,REDACTED PERSONAL DATA,135
Revenue,Childrens Services,Children's & Education Services,Children Looked After,5105696495,21.01.2022,In-house Fostering,Boarding Out Allowances,290.48,REDACTED PERSONAL DATA,136
Revenue,Childrens Services,Children's & Education Services,Children Looked After,5105697079,28.01.2022,In-house Fostering,Boarding Out Allowances,290.48,REDACTED PERSONAL DATA,137
Revenue,Childrens Services,Children's & Education Services,Children Looked After,5105697079,28.01.2022,In-house Fostering,Boarding Out Allowances,290.48,REDACTED PERSONAL DATA,138
Revenue,Childrens Services,Children's & Education Services,Children Looked After,5105695820,14.01.2022,In-house Fostering,Boarding Out Allowances,290.48,REDACTED PERSONAL DATA,139
Revenue,Childrens Services,Children's & Education Services,Children Looked After,5105695820,14.01.2022,In-house Fostering,Boarding Out Allowances,290.48,REDACTED PERSONAL DATA,140
Revenue,Childrens Services,Children's & Education Services,Children Looked After,5105695193,07.01.2022,In-house Fostering,Boarding Out Allowances,290.48,REDACTED PERSONAL DATA,141
Revenue,Childrens Services,Children's & Education Services,Children Looked After,5105695193,07.01.2022,In-house Fostering,Boarding Out Allowances,290.48,REDACTED PERSONAL DATA,142
Revenue,Childrens Services,Children's & Education Services,Children Looked After,5105695338,07.01.2022,Special Guardianship Order Costs,Support Children,100.00,REDACTED PERSONAL DATA,143
Revenue,Childrens Services,Children's & Education Services,Children Looked After,5105697226,28.01.2022,Special Guardianship Order Costs,Support Children,100.00,REDACTED PERSONAL DATA,144
Revenue,Childrens Services,Children's & Education Services,Children Looked After,5105695966,14.01.2022,Special Guardianship Order Costs,Support Children,100.00,REDACTED PERSONAL DATA,145
Revenue,Childrens Services,Children's & Education Services,Children Looked After,5105696639,21.01.2022,Special Guardianship Order Costs,Support Children,100.00,REDACTED PERSONAL DATA,146
Revenue,Adult Services,Housing Services,Homelessness,5105696799,26.01.2022,Private Rented Sector Leasing Scheme,Accommodation Costs - Leaseholder Payments,510.25,REDACTED PERSONAL DATA,147
Revenue,Adult Services,Housing Services,Homelessness,5105696799,26.01.2022,Private Rented Sector Leasing Scheme,Accommodation Costs - Leaseholder Payments,510.25,REDACTED PERSONAL DATA,148
Revenue,Adult Services,Housing Services,Homelessness,5105696799,26.01.2022,Private Rented Sector Leasing Scheme,Accommodation Costs - Leaseholder Payments,510.25,REDACTED PERSONAL DATA,149
Revenue,Adult Services,Housing Services,Homelessness,5105696799,26.01.2022,Private Rented Sector Leasing Scheme,Accommodation Costs - Leaseholder Payments,510.25,REDACTED PERSONAL DATA,150
Revenue,Adult Services,Housing Services,Homelessness,5105696799,26.01.2022,Private Rented Sector Leasing Scheme,Accommodation Costs - Leaseholder Payments,510.25,REDACTED PERSONAL DATA,151
Revenue,Adult Services,Housing Services,Homelessness,5105696799,26.01.2022,Private Rented Sector Leasing Scheme,Accommodation Costs - Leaseholder Payments,510.25,REDACTED PERSONAL DATA,152
Revenue,Adult Services,Housing Services,Homelessness,5105696799,26.01.2022,Private Rented Sector Leasing Scheme,Accommodation Costs - Leaseholder Payments,510.25,REDACTED PERSONAL DATA,153
Revenue,Childrens Services,Children's & Education Services,Children Looked After,5105694987,05.01.2022,Leaving Care Costs,Support Children,19.99,REDACTED PERSONAL DATA,154
Revenue,Childrens Services,Children's & Education Services,Children Looked After,5105694980,05.01.2022,In-house Fostering,Support Children,60.00,REDACTED PERSONAL DATA,159
Revenue,Childrens Services,Children's & Education Services,Children Looked After,5105695182,07.01.2022,Adoption Costs,Support Children,225.83,REDACTED PERSONAL DATA,160
Revenue,Childrens Services,Children's & Education Services,Children Looked After,5105697068,28.01.2022,Adoption Costs,Support Children,225.83,REDACTED PERSONAL DATA,161
Revenue,Childrens Services,Children's & Education Services,Children Looked After,5105695809,14.01.2022,Adoption Costs,Support Children,225.83,REDACTED PERSONAL DATA,162
Revenue,Childrens Services,Children's & Education Services,Children Looked After,5105696484,21.01.2022,Adoption Costs,Support Children,225.83,REDACTED PERSONAL DATA,163
Revenue,Childrens Services,Children's & Education Services,Children Looked After,5105694985,05.01.2022,Leaving Care Costs,Support Children,21.99,REDACTED PERSONAL DATA,164
Revenue,Childrens Services,Children's & Education Services,Children Looked After,5105695960,14.01.2022,In-house Fostering,Support Children,120.00,REDACTED PERSONAL DATA,165
Revenue,Childrens Services,Children's & Education Services,Children Looked After,5105697220,28.01.2022,In-house Fostering,Support Children,120.00,REDACTED PERSONAL DATA,166
Revenue,Childrens Services,Children's & Education Services,Children Looked After,5105695333,07.01.2022,In-house Fostering,Support Children,120.00,REDACTED PERSONAL DATA,167
Revenue,Childrens Services,Children's & Education Services,Children Looked After,5105696633,21.01.2022,In-house Fostering,Support Children,120.00,REDACTED PERSONAL DATA,168
Revenue,Childrens Services,Children's & Education Services,Family Support Services,5105696291,19.01.2022,S17 Disabled Children,Client Expenses,90.00,AA GLOBAL LANGUAGE SERVICES LTD,169
Revenue,Childrens Services,Children's & Education Services,Family Support Services,5105696292,19.01.2022,S17 Disabled Children,Client Expenses,90.00,AA GLOBAL LANGUAGE SERVICES LTD,170
Revenue,Childrens Services,Children's & Education Services,Family Support Services,5105696293,19.01.2022,S17 Disabled Children,Client Expenses,90.00,AA GLOBAL LANGUAGE SERVICES LTD,171
Revenue,Adult Services,Adult Social Care,Central Codes (to be reallocated),5105696701,21.01.2022,Community Reablement,Computer Software Licencing,"3,160.00",ACCESS UK LTD,172
Revenue,Adult Services,Adult Social Care,Learning Disab Supp (to be reallocated),5105696832,26.01.2022,"41 Newport Road, Cowes",Charges from Independent Providers,"8,459.64",TRACSCARE WELLCARE LIFESTYLES,173
Revenue,Adult Services,Adult Social Care,Learning Disab Supp (to be reallocated),5105696832,26.01.2022,"17 Newport Road, Ventnor",Charges from Independent Providers,"7,241.40",TRACSCARE WELLCARE LIFESTYLES,174
Revenue,Adult Services,Adult Social Care,Learning Disab Supp (to be reallocated),5105696832,26.01.2022,Carisbrooke House,Charges from Independent Providers,"12,682.04",TRACSCARE WELLCARE LIFESTYLES,175
Revenue,Adult Services,Adult Social Care,Learning Disab Supp (to be reallocated),5105696832,26.01.2022,"Greengates, Ryde",Charges from Independent Providers,"8,459.64",TRACSCARE WELLCARE LIFESTYLES,176
Revenue,Adult Services,Adult Social Care,Long Term Support,5105696832,26.01.2022,Seagulls,Charges from Independent Providers,"29,020.88",TRACSCARE WELLCARE LIFESTYLES,177
Revenue,Adult Services,Adult Social Care,Learning Disab Supp (to be reallocated),5105696832,26.01.2022,"Heath Road, Lake",Charges from Independent Providers,"7,241.40",TRACSCARE WELLCARE LIFESTYLES,178
Revenue,Adult Services,Adult Social Care,Learning Disab Supp (to be reallocated),5105696832,26.01.2022,"Winton Street, Ryde",Charges from Independent Providers,"8,459.64",TRACSCARE WELLCARE LIFESTYLES,179
Revenue,Adult Services,Adult Social Care,Learning Disab Supp (to be reallocated),5105696832,26.01.2022,Reeves Court Supported Living,Charges from Independent Providers,"45,088.68",TRACSCARE WELLCARE LIFESTYLES,180
Revenue,Adult Services,Adult Social Care,Long Term Support,5105696832,26.01.2022,40 Venner Avenue,Charges from Independent Providers,"30,296.56",TRACSCARE WELLCARE LIFESTYLES,181
Revenue,Adult Services,Adult Social Care,Learning Disability Suppt-adults (18-64),5105696170,19.01.2022,Learning Disability Residential 18-64,Charges from Independent Providers,"2,282.00",REGARD PARTNERSHIP,182
Revenue,Adult Services,Adult Social Care,Learning Disability Suppt-adults (18-64),5105696170,19.01.2022,Learning Disability Residential 18-64,Charges from Independent Providers,"3,306.52",REGARD PARTNERSHIP,183
Revenue,Adult Services,Adult Social Care,Learning Disability Suppt-adults (18-64),5105696170,19.01.2022,Learning Disability Residential 18-64,Charges from Independent Providers,329.00,REGARD PARTNERSHIP,184
Revenue,Adult Services,Adult Social Care,Learning Disability Suppt-adults (18-64),5105696170,19.01.2022,Learning Disability Residential 18-64,Charges from Independent Providers,"2,282.00",REGARD PARTNERSHIP,185
Revenue,Adult Services,Adult Social Care,Learning Disability Suppt-adults (18-64),5105696170,19.01.2022,Learning Disability Residential 18-64,Charges from Independent Providers,"2,282.00",REGARD PARTNERSHIP,186
Revenue,Adult Services,Adult Social Care,Learning Disability Suppt-adults (18-64),5105696170,19.01.2022,Learning Disability Residential 18-64,Charges from Independent Providers,404.04,REGARD PARTNERSHIP,187
Revenue,Adult Services,Adult Social Care,Learning Disability Suppt-adults (18-64),5105696170,19.01.2022,Learning Disability Residential 18-64,Charges from Independent Providers,"3,306.52",REGARD PARTNERSHIP,188
Revenue,Adult Services,Adult Social Care,Learning Disability Suppt-adults (18-64),5105696170,19.01.2022,Learning Disability Residential 18-64,Charges from Independent Providers,480.20,REGARD PARTNERSHIP,189
Revenue,Adult Services,Adult Social Care,Learning Disability Suppt-adults (18-64),5105696170,19.01.2022,Learning Disability Residential 18-64,Charges from Independent Providers,"3,306.52",REGARD PARTNERSHIP,190
Revenue,Adult Services,Adult Social Care,Learning Disability Suppt-adults (18-64),5105696170,19.01.2022,Learning Disability Residential 18-64,Charges from Independent Providers,"2,282.00",REGARD PARTNERSHIP,191
Revenue,Adult Services,Adult Social Care,Learning Disability Suppt-adults (18-64),5105696170,19.01.2022,Learning Disability Residential 18-64,Charges from Independent Providers,240.24,REGARD PARTNERSHIP,192
Revenue,Adult Services,Adult Social Care,Learning Disability Suppt-adults (18-64),5105696170,19.01.2022,Learning Disability Residential 18-64,Charges from Independent Providers,"2,282.00",REGARD PARTNERSHIP,193
Revenue,Adult Services,Adult Social Care,Learning Disability Suppt-adults (18-64),5105696170,19.01.2022,Learning Disability Residential 18-64,Charges from Independent Providers,480.20,REGARD PARTNERSHIP,194
Revenue,Adult Services,Adult Social Care,Learning Disability Suppt-adults (18-64),5105696170,19.01.2022,Learning Disability Residential 18-64,Charges from Independent Providers,"3,306.52",REGARD PARTNERSHIP,195
Revenue,Adult Services,Adult Social Care,Learning Disability Suppt-adults (18-64),5105696170,19.01.2022,Learning Disability Residential 18-64,Charges from Independent Providers,"2,282.00",REGARD PARTNERSHIP,196
Revenue,Adult Services,Adult Social Care,Learning Disability Suppt-adults (18-64),5105696170,19.01.2022,Learning Disability Residential 18-64,Charges from Independent Providers,462.84,REGARD PARTNERSHIP,197
Revenue,Adult Services,Adult Social Care,Learning Disability Suppt-adults (18-64),5105696170,19.01.2022,Learning Disability Residential 18-64,Charges from Independent Providers,"2,282.00",REGARD PARTNERSHIP,198
Revenue,Adult Services,Adult Social Care,Learning Disability Suppt-adults (18-64),5105696170,19.01.2022,Learning Disability Residential 18-64,Charges from Independent Providers,462.84,REGARD PARTNERSHIP,199
Revenue,Adult Services,Adult Social Care,Learning Disability Suppt-adults (18-64),5105695498,12.01.2022,Learning Disability Residential 18-64,Charges from Independent Providers,"2,655.12",REGARD PARTNERSHIP,200
Revenue,Adult Services,Adult Social Care,Learning Disability Suppt-adults (18-64),5105695498,12.01.2022,Learning Disability Residential 18-64,Charges from Independent Providers,"1,500.72",REGARD PARTNERSHIP,201
Revenue,Childrens Services,Children's & Education Services,Children Looked After,5400003147,28.01.2022,Purchased Residential,Charges from Independent Providers,"3,250.57",ACORN CARE AND EDUCATION LTD,202
Revenue,Childrens Services,Children's & Education Services,Management & Support Services,5105695601,12.01.2022,Education Out of School,Agency staff,555.00,A-DAY CONSULTANTS LTD,203
Revenue,Childrens Services,Children's & Education Services,Management & Support Services,5105695374,07.01.2022,Education Out of School,Agency staff,555.00,A-DAY CONSULTANTS LTD,204
Revenue,Childrens Services,Children's & Education Services,Management & Support Services,5105697364,28.01.2022,Education Out of School,Agency staff,740.00,A-DAY CONSULTANTS LTD,205
Revenue,Childrens Services,Children's & Education Services,Management & Support Services,5105696870,26.01.2022,Education Out of School,Agency staff,370.00,A-DAY CONSULTANTS LTD,206
Revenue,Childrens Services,Children's & Education Services,Special Schools & Alternative Provision,5105696841,26.01.2022,Island Learning Centre,Agency staff,555.00,A-DAY CONSULTANTS LTD,240
Revenue,Childrens Services,Children's & Education Services,Special Schools & Alternative Provision,5105696841,26.01.2022,Island Learning Centre,Agency staff,110.00,A-DAY CONSULTANTS LTD,241
Revenue,Childrens Services,Children's & Education Services,Special Schools & Alternative Provision,5105696841,26.01.2022,Island Learning Centre,Agency staff,440.00,A-DAY CONSULTANTS LTD,242
Revenue,Childrens Services,Children's & Education Services,Special Schools & Alternative Provision,5105696987,26.01.2022,Island Learning Centre,Agency staff,740.00,A-DAY CONSULTANTS LTD,243
Revenue,Childrens Services,Children's & Education Services,Special Schools & Alternative Provision,5105696987,26.01.2022,Island Learning Centre,Agency staff,111.00,A-DAY CONSULTANTS LTD,244
Revenue,Childrens Services,Children's & Education Services,Special Schools & Alternative Provision,5105696987,26.01.2022,Island Learning Centre,Agency staff,110.00,A-DAY CONSULTANTS LTD,245
Revenue,Childrens Services,Children's & Education Services,Special Schools & Alternative Provision,5105696987,26.01.2022,Island Learning Centre,Agency staff,107.83,A-DAY CONSULTANTS LTD,246
Revenue,Childrens Services,Children's & Education Services,Special Schools & Alternative Provision,5105696987,26.01.2022,Island Learning Centre,Agency staff,660.00,A-DAY CONSULTANTS LTD,247
Revenue,Childrens Services,Children's & Education Services,Special Schools & Alternative Provision,5105696677,21.01.2022,Island Learning Centre,Agency staff,185.00,A-DAY CONSULTANTS LTD,248
Revenue,Childrens Services,Children's & Education Services,Special Schools & Alternative Provision,5105696677,21.01.2022,Island Learning Centre,Agency staff,330.00,A-DAY CONSULTANTS LTD,249
Revenue,Childrens Services,Children's & Education Services,Special Schools & Alternative Provision,5105696841,26.01.2022,Island Learning Centre,Agency staff,185.00,A-DAY CONSULTANTS LTD,250
Revenue,Childrens Services,Children's & Education Services,Special Schools & Alternative Provision,5105696841,26.01.2022,Island Learning Centre,Agency staff,111.00,A-DAY CONSULTANTS LTD,251
Revenue,Childrens Services,Children's & Education Services,Other Education and Community Budget,5105696067,14.01.2022,Home to School SEN Transport (LA),Taxis - Contract Hire,"2,250.00",REDACTED PERSONAL DATA,252
Revenue,Childrens Services,Children's & Education Services,Other Education and Community Budget,5105696064,14.01.2022,Home to School SEN Transport (LA),Taxis - Contract Hire,"1,950.00",REDACTED PERSONAL DATA,253
Revenue,Childrens Services,Children's & Education Services,Other Education and Community Budget,5105696065,14.01.2022,Home to College Post 16 Transport,Taxis - Contract Hire,272.00,REDACTED PERSONAL DATA,254
Revenue,Childrens Services,Children's & Education Services,Other Education and Community Budget,5105693366,12.01.2022,Home to School Mainstream Transport,Taxis - Contract Hire,140.00,REDACTED PERSONAL DATA,255
Capital,Place,Capital,Capital,5105695568,19.01.2022,Cowes Floating Brdge,Payment to Contractors - Capital,"8,742.50",ADT FIRE AND SECURITY PLC,256
Revenue,Neighbourhoods,Cultural and Related Services,Culture and Heritage,5105696905,26.01.2022,Medina Theatre,Security of Buildings,132.28,ADT FIRE AND SECURITY PLC,257
Revenue,Regeneration,Central Services,Central Services to the Public,5105696219,19.01.2022,Vaccination Programme Hub Site,Security of Buildings,"1,084.02",ADT FIRE AND SECURITY PLC,258
Revenue,Neighbourhoods,Cultural and Related Services,Library Service,5105694778,05.01.2022,Sandown Library,Security of Buildings,75.00,ADT FIRE AND SECURITY PLC,259
Revenue,Neighbourhoods,Cultural and Related Services,Culture and Heritage,5105696245,19.01.2022,Cothey Bottom Store RYDE,Security of Buildings,65.00,ADT FIRE AND SECURITY PLC,260
Revenue,Neighbourhoods,Cultural and Related Services,Culture and Heritage,5105694783,05.01.2022,Cothey Bottom Store RYDE,Security of Buildings,418.06,ADT FIRE AND SECURITY PLC,261
Revenue,Neighbourhoods,Cultural and Related Services,Recreation and Sport,5105691954,19.01.2022,Medina Leisure Centre,Property Services - Planned Maintenance,"1,250.00",AIRTEK SERVICES IOW LTD,262
Revenue,Regeneration,Central Services,Support Services,5105694794,05.01.2022,"County Hall,Newport",Property Services - Day to day Maintenance,255.00,AIRTEK SERVICES IOW LTD,263
Revenue,Adult Services,Adult Social Care,Central Codes (to be reallocated),5105695976,14.01.2022,Adelaide Resource Centre,Property Services - Day to day Maintenance,120.00,AIRTEK SERVICES IOW LTD,264
Revenue,Neighbourhoods,Cultural and Related Services,Culture and Heritage,5105694798,07.01.2022,Dinosaur Isle Museum (Sandown Geology),Property Services - Planned Maintenance,450.00,AIRTEK SERVICES IOW LTD,265
Revenue,Adult Services,Adult Social Care,Learning Disability Suppt-adults (18-64),5105696193,19.01.2022,Learning Disability Residential 18-64,Charges from Independent Providers,"8,883.56",AITCH CARE HOMES (LONDON) LTD,266
Revenue,Childrens Services,Children's & Education Services,Other Education and Community Budget,5105695528,12.01.2022,Home to School SEN Transport (LA),Taxis - Contract Hire,550.00,AKAR TAXIS,267
Revenue,Childrens Services,Children's & Education Services,Other Education and Community Budget,5105695544,12.01.2022,Home to School Mainstream Transport,Taxis - Contract Hire,866.67,AKAR TAXIS,268
Revenue,Childrens Services,Children's & Education Services,Other Education and Community Budget,5105695529,12.01.2022,Home to School Mainstream Transport,Taxis - Contract Hire,320.00,AKAR TAXIS,269
Revenue,Adult Services,Adult Social Care,Assistive Equipment & Technology,5105694341,05.01.2022,BCF Community Equipment Store,Operational Equipment,389.46,AKW MEDI-CARE LTD,270
Revenue,Adult Services,Adult Social Care,Assistive Equipment & Technology,5105691900,05.01.2022,BCF Community Equipment Store,Operational Equipment,290.25,AKW MEDI-CARE LTD,271
Revenue,Resources,Central Services,Support Services,5105696770,21.01.2022,Insurance,Professional Subscriptions,582.00,ALARM,272
Revenue,Neighbourhoods,Environmental & Regulatory Services,"Cemetery, Cremation & Mortuary Services",5105695074,05.01.2022,Crematorium,Operational Equipment,209.00,ALBANY FARM & G MACHINERY LTD,273
Revenue,Neighbourhoods,Environmental & Regulatory Services,"Cemetery, Cremation & Mortuary Services",5105695079,05.01.2022,Crematorium,Operational Equipment,662.87,ALBANY FARM & G MACHINERY LTD,274
Revenue,Regeneration,Planning services,Development Control,5105695440,07.01.2022,Development Management,Consultants Fees,950.00,ALDER KING LLP,275
Revenue,Childrens Services,Children's & Education Services,Other Education and Community Budget,5105695121,07.01.2022,Home to School SEN Transport (LA),Taxis - Contract Hire,"1,500.00",REDACTED PERSONAL DATA,276
Revenue,Resources,Adult Social Care,Physical Support (to be reallocated),5105696041,14.01.2022,Blue Badge Admin Team Shared Services,Printing Costs,744.17,ALLIED PUBLICITY SCVE (MANCHESTER),277
Revenue,Childrens Services,Children's & Education Services,Other Education and Community Budget,5105697023,26.01.2022,Home to School SEN Transport (LA),Taxis - Contract Hire,750.00,ALPHA (IOW) LTD,278
Revenue,Childrens Services,Children's & Education Services,Other Education and Community Budget,5105697023,26.01.2022,Home to School SEN Transport (LA),Taxis - Contract Hire,750.00,ALPHA (IOW) LTD,279
Revenue,Childrens Services,Children's & Education Services,Other Education and Community Budget,5105697023,26.01.2022,Home to School SEN Transport (LA),Taxis - Contract Hire,"2,310.00",ALPHA (IOW) LTD,280
Revenue,Childrens Services,Children's & Education Services,Other Education and Community Budget,5105697023,26.01.2022,Home to School SEN Transport (LA),Taxis - Contract Hire,"1,800.00",ALPHA (IOW) LTD,281
Revenue,Childrens Services,Children's & Education Services,Other Education and Community Budget,5105697023,26.01.2022,Home to School SEN Transport (LA),Taxis - Contract Hire,"2,100.00",ALPHA (IOW) LTD,282
Revenue,Childrens Services,Children's & Education Services,Other Education and Community Budget,5105697023,26.01.2022,Home to School SEN Transport (LA),Taxis - Contract Hire,750.00,ALPHA (IOW) LTD,283
Revenue,Childrens Services,Children's & Education Services,Other Education and Community Budget,5105697023,26.01.2022,Home to School SEN Transport (LA),Taxis - Contract Hire,"3,000.00",ALPHA (IOW) LTD,284
Revenue,Childrens Services,Children's & Education Services,Other Education and Community Budget,5105697023,26.01.2022,Home to School SEN Transport (LA),Taxis - Contract Hire,770.00,ALPHA (IOW) LTD,285
Revenue,Childrens Services,Children's & Education Services,Other Education and Community Budget,5105697023,26.01.2022,Home to School SEN Transport (LA),Taxis - Contract Hire,"1,200.00",ALPHA (IOW) LTD,286
Revenue,Childrens Services,Children's & Education Services,Other Education and Community Budget,5105696920,26.01.2022,Home to School SEN Transport (LA),Taxis - Contract Hire,-140.00,ALPHA (IOW) LTD,287
Revenue,Childrens Services,Children's & Education Services,Other Education and Community Budget,5105696920,26.01.2022,Home to School SEN Transport (LA),Taxis - Contract Hire,-240.00,ALPHA (IOW) LTD,288
Revenue,Childrens Services,Children's & Education Services,Other Education and Community Budget,5105697023,26.01.2022,Home to School SEN Transport (LA),Taxis - Contract Hire,900.00,ALPHA (IOW) LTD,289
Revenue,Childrens Services,Children's & Education Services,Other Education and Community Budget,5105697023,26.01.2022,Home to School SEN Transport (LA),Taxis - Contract Hire,840.00,ALPHA (IOW) LTD,290
Revenue,Childrens Services,Children's & Education Services,Other Education and Community Budget,5105697023,26.01.2022,Home to College Post 16 Transport,Taxis - Contract Hire,520.00,ALPHA (IOW) LTD,291
Revenue,Childrens Services,Children's & Education Services,Other Education and Community Budget,5105697023,26.01.2022,Home to College Post 16 Transport,Taxis - Contract Hire,"1,350.00",ALPHA (IOW) LTD,292
Revenue,Childrens Services,Children's & Education Services,Other Education and Community Budget,5105697023,26.01.2022,Home to College Post 16 Transport,Taxis - Contract Hire,800.00,ALPHA (IOW) LTD,293
Revenue,Childrens Services,Children's & Education Services,Other Education and Community Budget,5105697023,26.01.2022,Home to College Post 16 Transport,Taxis - Contract Hire,550.00,ALPHA (IOW) LTD,294
Revenue,Childrens Services,Children's & Education Services,Other Education and Community Budget,5105697023,26.01.2022,Home to College Post 16 Transport,Taxis - Contract Hire,600.00,ALPHA (IOW) LTD,295
Revenue,Childrens Services,Children's & Education Services,Other Education and Community Budget,5105697023,26.01.2022,Home to College Post 16 Transport,Taxis - Contract Hire,240.00,ALPHA (IOW) LTD,296
Revenue,Childrens Services,Children's & Education Services,Other Education and Community Budget,5105696920,26.01.2022,Home to College Post 16 Transport,Taxis - Contract Hire,-630.00,ALPHA (IOW) LTD,297
Revenue,Childrens Services,Children's & Education Services,Other Education and Community Budget,5105696920,26.01.2022,Home to School Mainstream Transport,Taxis - Contract Hire,-480.00,ALPHA (IOW) LTD,298
Revenue,Childrens Services,Children's & Education Services,Other Education and Community Budget,5105697023,26.01.2022,Home to School Mainstream Transport,Taxis - Contract Hire,"1,352.00",ALPHA (IOW) LTD,299
Revenue,Childrens Services,Children's & Education Services,Other Education and Community Budget,5105697023,26.01.2022,Home to School Mainstream Transport,Taxis - Contract Hire,750.00,ALPHA (IOW) LTD,300
Revenue,Childrens Services,Children's & Education Services,Other Education and Community Budget,5105697023,26.01.2022,Home to School Mainstream Transport,Taxis - Contract Hire,"3,120.00",ALPHA (IOW) LTD,301
Revenue,Childrens Services,Children's & Education Services,Other Education and Community Budget,5105697023,26.01.2022,Home to School Mainstream Transport,Taxis - Contract Hire,910.00,ALPHA (IOW) LTD,302
Revenue,Childrens Services,Children's & Education Services,Other Education and Community Budget,5105697023,26.01.2022,Home to School Mainstream Transport,Taxis - Contract Hire,650.00,ALPHA (IOW) LTD,303
Revenue,Childrens Services,Children's & Education Services,Other Education and Community Budget,5105697023,26.01.2022,Home to School Mainstream Transport,Taxis - Contract Hire,"1,430.00",ALPHA (IOW) LTD,304
Revenue,Childrens Services,Children's & Education Services,Other Education and Community Budget,5105697023,26.01.2022,Home to School Mainstream Transport,Taxis - Contract Hire,960.00,ALPHA (IOW) LTD,305
Revenue,Childrens Services,Children's & Education Services,Other Education and Community Budget,5105697023,26.01.2022,Home to School Mainstream Transport,Taxis - Contract Hire,"1,350.00",ALPHA (IOW) LTD,306
Revenue,Adult Services,Adult Social Care,Learning Disability Suppt-adults (18-64),5105696151,19.01.2022,Learning Disability Residential 18-64,Charges from Independent Providers,"3,896.76",ALPHAGRANGE LTD,307
Revenue,Adult Services,Adult Social Care,Central Codes (to be reallocated),5105695741,12.01.2022,Community Reablement,Professional Services,358.00,AMARE HEALTH LIMITED,308
Revenue,Childrens Services,Children's & Education Services,Children Looked After,5105697157,28.01.2022,In-house Fostering,Boarding Out Allowances,167.00,REDACTED PERSONAL DATA,309
Revenue,Childrens Services,Children's & Education Services,Children Looked After,5105695898,14.01.2022,In-house Fostering,Boarding Out Allowances,167.00,REDACTED PERSONAL DATA,310
Revenue,Childrens Services,Children's & Education Services,Children Looked After,5105695272,07.01.2022,In-house Fostering,Boarding Out Allowances,167.00,REDACTED PERSONAL DATA,311
Revenue,Childrens Services,Children's & Education Services,Children Looked After,5105696573,21.01.2022,In-house Fostering,Boarding Out Allowances,167.00,REDACTED PERSONAL DATA,312
Revenue,Resources,Central Services,Support Services,5105696347,19.01.2022,Litigation Costs,Legal Fees - Other Parties,500.00,COLLEGE CHAMBERS BARRISTERS,313
Revenue,Adult Services,Adult Social Care,Physical Support - older people (65+),5105696152,19.01.2022,Physical Support Residential 65+,Charges from Independent Providers,"2,054.64",ANCONA CARE HOME,314
Revenue,Adult Services,Adult Social Care,Physical Support - older people (65+),5105696152,19.01.2022,Physical Support Residential 65+,Charges from Independent Providers,"2,151.52",ANCONA CARE HOME,315
Revenue,Adult Services,Adult Social Care,Physical Support - older people (65+),5105696152,19.01.2022,Physical Support Residential 65+,Charges from Independent Providers,"2,529.52",ANCONA CARE HOME,316
Revenue,Childrens Services,Children's & Education Services,Children Looked After,5105697224,28.01.2022,Children placed with Family&Friends,Boarding Out Allowances,247.89,REDACTED PERSONAL DATA,317
Revenue,Childrens Services,Children's & Education Services,Children Looked After,5105697224,28.01.2022,Children placed with Family&Friends,Boarding Out Allowances,226.66,REDACTED PERSONAL DATA,318
Revenue,Childrens Services,Children's & Education Services,Children Looked After,5105696637,21.01.2022,Children placed with Family&Friends,Boarding Out Allowances,247.89,REDACTED PERSONAL DATA,319
Revenue,Childrens Services,Children's & Education Services,Children Looked After,5105696637,21.01.2022,Children placed with Family&Friends,Boarding Out Allowances,226.66,REDACTED PERSONAL DATA,320
Revenue,Childrens Services,Children's & Education Services,Children Looked After,5105695964,14.01.2022,Children placed with Family&Friends,Boarding Out Allowances,212.47,REDACTED PERSONAL DATA,321
Revenue,Childrens Services,Children's & Education Services,Children Looked After,5105695964,14.01.2022,Children placed with Family&Friends,Boarding Out Allowances,194.28,REDACTED PERSONAL DATA,322
Revenue,Childrens Services,Children's & Education Services,Family Support Services,5105696713,26.01.2022,Family Support activity base: 76 Greenlands,Grounds Maintenance,180.00,ANDREW BYFORD T/A HUMPY DUMP,323
Revenue,Assistant Chief Executive,Central Services,Support Services,5105695567,12.01.2022,Print Unit,Stationery,130.40,ANTALIS MCNAUGHTON,324
Revenue,Resources,Central Services,Support Services,5105697450,28.01.2022,Litigation Costs,Legal Fees - Other Parties,550.00,"COLLEGE CHAMBERS, BARRISTERS",325
Revenue,Resources,Central Services,Support Services,5105697545,28.01.2022,Litigation Costs,Legal Fees - Other Parties,-550.00,"COLLEGE CHAMBERS, BARRISTERS",326
Revenue,Neighbourhoods,Cultural and Related Services,Recreation and Sport,5105696333,19.01.2022,Medina Leisure Centre,Stock Purchases,164.12,APG SPORTS GROUP LTD,328
Revenue,Neighbourhoods,Cultural and Related Services,Recreation and Sport,5105696333,19.01.2022,Medina Leisure Centre,Stock Purchases,74.14,APG SPORTS GROUP LTD,329
Revenue,Neighbourhoods,Cultural and Related Services,Recreation and Sport,5105696335,19.01.2022,Medina Leisure Centre,Stock Purchases,166.20,APG SPORTS GROUP LTD,330
Revenue,Neighbourhoods,Cultural and Related Services,Recreation and Sport,5105694504,07.01.2022,The Heights,Stock Purchases,75.60,APG SPORTS GROUP LTD,331
Revenue,Neighbourhoods,Cultural and Related Services,Recreation and Sport,5105694506,07.01.2022,The Heights,Stock Purchases,75.00,APG SPORTS GROUP LTD,332
Revenue,Neighbourhoods,Cultural and Related Services,Recreation and Sport,5400003156,28.01.2022,The Heights,Stock Purchases,120.83,APG SPORTS GROUP LTD,333
Revenue,Neighbourhoods,Cultural and Related Services,Recreation and Sport,5400003157,28.01.2022,The Heights,Stock Purchases,32.00,APG SPORTS GROUP LTD,334
Revenue,Regeneration,Central Services,Support Services,5105696040,14.01.2022,"County Hall,Newport",Property Services - Day to day Maintenance,130.85,APSE,335
Capital,Resources,Capital,Capital,5105695000,05.01.2022,Management of Asbestos,Payment to Contractors - Capital,"2,209.47",APTIVA LTD,336
Revenue,Neighbourhoods,Highways and Transport Services,"Airports, Harbours & Toll Facilities",5105696680,21.01.2022,Ferry Operation,Clothing & Laundry,70.55,ARCO LTD,337
Revenue,Neighbourhoods,Highways and Transport Services,"Airports, Harbours & Toll Facilities",5105696680,21.01.2022,Ferry Operation,Clothing & Laundry,77.35,ARCO LTD,338
Revenue,Resources,Central Services,Support Services,5105697412,28.01.2022,County Hall Central Mail Room,Clothing & Laundry,14.52,ARCO LTD,339
Revenue,Resources,Central Services,Support Services,5105696844,26.01.2022,County Hall Central Mail Room,Clothing & Laundry,20.04,ARCO LTD,340
Revenue,Neighbourhoods,Environmental & Regulatory Services,Service Management and Support Services,5105694058,05.01.2022,Environment officers,Operational Equipment,128.50,ARCO LTD,341
Revenue,Neighbourhoods,Environmental & Regulatory Services,Service Management and Support Services,5105694446,05.01.2022,Environment officers,Operational Equipment,69.90,ARCO LTD,342
Revenue,Neighbourhoods,Environmental & Regulatory Services,Service Management and Support Services,5105696465,26.01.2022,Environment officers,Clothing & Laundry,8.79,ARCO LTD,343
Revenue,Neighbourhoods,Environmental & Regulatory Services,Service Management and Support Services,5105696944,26.01.2022,Environment officers,Clothing & Laundry,69.32,ARCO LTD,344
Revenue,Neighbourhoods,Highways and Transport Services,Parking Services,5105695757,14.01.2022,Parking Attendants,Clothing & Laundry,19.30,ARCO LTD,345
Revenue,Neighbourhoods,Highways and Transport Services,Parking Services,5105695757,14.01.2022,Parking Attendants,Clothing & Laundry,18.36,ARCO LTD,346
Revenue,Neighbourhoods,Highways and Transport Services,Parking Services,5105695757,14.01.2022,Parking Attendants,Clothing & Laundry,21.77,ARCO LTD,347
Revenue,Neighbourhoods,Highways and Transport Services,Parking Services,5105695757,14.01.2022,Parking Attendants,Clothing & Laundry,12.46,ARCO LTD,348
Revenue,Neighbourhoods,Highways and Transport Services,Parking Services,5105695757,14.01.2022,Parking Attendants,Clothing & Laundry,19.50,ARCO LTD,349
Revenue,Adult Services,Adult Social Care,Central Codes (to be reallocated),5105695756,12.01.2022,Adelaide Resource Centre,Clothing & Laundry,108.54,ARCO LTD,350
Revenue,Adult Services,Adult Social Care,Central Codes (to be reallocated),5105695758,12.01.2022,Adelaide Resource Centre,Clothing & Laundry,54.27,ARCO LTD,351
Revenue,Adult Services,Adult Social Care,Central Codes (to be reallocated),5105695759,14.01.2022,Adelaide Resource Centre,Clothing & Laundry,72.36,ARCO LTD,352
Revenue,Adult Services,Adult Social Care,Central Codes (to be reallocated),5105695759,14.01.2022,Adelaide Resource Centre,Clothing & Laundry,126.63,ARCO LTD,353
Revenue,Adult Services,Adult Social Care,Social Support - Support for Carer,5105695384,07.01.2022,Westminster House,Property Services - Planned Maintenance,89.00,ARJO UK LTD,354
Revenue,Adult Services,Adult Social Care,Commissioning & Service Delivery,5105696215,19.01.2022,CHC Nursing Care,Charges from Independent Providers,"3,389.68",ASPEN HOUSE CARE HOME,356
Revenue,Regeneration,Planning services,Development Control,5105696363,19.01.2022,Development Management,Professional Services,"1,175.00",ASPINALL VERDI LTD,357
Revenue,Childrens Services,Children's & Education Services,Safeguarding Children/Young Peoples Svs,5105695370,07.01.2022,Court Work & Consultancy Services,Professional Services,"4,232.75",ASPIRE SOCIAL WORK SERVICES LTD,358
Revenue,Childrens Services,Children's & Education Services,Safeguarding Children/Young Peoples Svs,5105696769,21.01.2022,Court Work & Consultancy Services,Professional Services,"1,724.65",ASPIRE SOCIAL WORK SERVICES LTD,359
Revenue,Regeneration,Central Services,Support Services,5105696322,19.01.2022,Strategic Assets Team,Professional Subscriptions,145.00,ASSOC OF CHIEF ESTATES SURVEYORS,360
Revenue,Resources,Central Services,Support Services,5105694929,12.01.2022,Specialist Cross-Council Training,Training,900.00,ASSOCIATION OF ELECTORAL ADMINISTRATORS,361
Revenue,Childrens Services,Children's & Education Services,Management & Support Services,5105696020,14.01.2022,Specialist Teacher Advisors,Training,330.00,ATKEY SOLUTIONS LTD,362
Revenue,Adult Services,Adult Social Care,Support - Memory /Cognition-older people (65+),5105696135,19.01.2022,Memory & Cognition Residential 65+,Charges from Independent Providers,"2,529.52",AUTUMN HOUSE CARE LTD,363
Revenue,Adult Services,Adult Social Care,Support - Memory /Cognition-older people (65+),5105696135,19.01.2022,Memory & Cognition Residential 65+,Charges from Independent Providers,"2,529.52",AUTUMN HOUSE CARE LTD,364
Revenue,Adult Services,Adult Social Care,Support - Memory /Cognition-older people (65+),5105696135,19.01.2022,Memory & Cognition Residential 65+,Charges from Independent Providers,"2,529.52",AUTUMN HOUSE CARE LTD,365
Revenue,Adult Services,Adult Social Care,Support - Memory /Cognition-older people (65+),5105696135,19.01.2022,Memory & Cognition Residential 65+,Charges from Independent Providers,"2,151.52",AUTUMN HOUSE CARE LTD,366
Revenue,Adult Services,Adult Social Care,Support - Memory /Cognition-older people (65+),5105696135,19.01.2022,Memory & Cognition Residential 65+,Charges from Independent Providers,"2,529.52",AUTUMN HOUSE CARE LTD,367
Revenue,Adult Services,Adult Social Care,Support - Memory /Cognition-older people (65+),5105696135,19.01.2022,Memory & Cognition Residential 65+,Charges from Independent Providers,"2,529.52",AUTUMN HOUSE CARE LTD,368
Revenue,Adult Services,Adult Social Care,Support - Memory /Cognition-older people (65+),5105696135,19.01.2022,Memory & Cognition Residential 65+,Charges from Independent Providers,"2,529.52",AUTUMN HOUSE CARE LTD,369
Revenue,Adult Services,Adult Social Care,Support - Memory /Cognition-older people (65+),5105695176,07.01.2022,Memory & Cognition Residential 65+,Charges from Independent Providers,"7,028.63",AUTUMN HOUSE CARE LTD,370
Revenue,Adult Services,Adult Social Care,Support - Memory /Cognition-older people (65+),5105695176,07.01.2022,Memory & Cognition Residential 65+,Charges from Independent Providers,"1,800.12",AUTUMN HOUSE CARE LTD,371
Revenue,Adult Services,Adult Social Care,Support - Memory /Cognition-older people (65+),5105695176,07.01.2022,Memory & Cognition Residential 65+,Charges from Independent Providers,"7,200.06",AUTUMN HOUSE CARE LTD,372
Revenue,Adult Services,Adult Social Care,Support - Memory /Cognition-older people (65+),5105695176,07.01.2022,Memory & Cognition Residential 65+,Charges from Independent Providers,"6,143.12",AUTUMN HOUSE CARE LTD,373
Revenue,Adult Services,Central Services,Emergency Planning,5105696731,21.01.2022,NHS C19 Residential,Charges from Independent Providers,"3,240.16",AUTUMN HOUSE CARE LTD,374
Revenue,Adult Services,Central Services,Emergency Planning,5105695176,07.01.2022,NHS C19 Residential,Charges from Independent Providers,"3,400.04",AUTUMN HOUSE CARE LTD,375
Revenue,Adult Services,Adult Social Care,Social Support - Social Isolation/Other,5105696135,19.01.2022,Social Isolation/Other Residential,Charges from Independent Providers,242.84,AUTUMN HOUSE CARE LTD,376
Revenue,Adult Services,Adult Social Care,Social Support - Social Isolation/Other,5105695492,12.01.2022,Social Isolation/Other Residential,Charges from Independent Providers,"4,978.22",AUTUMN HOUSE CARE LTD,377
Revenue,Adult Services,Adult Social Care,Physical Support - adults (18-64),5105695176,07.01.2022,Physical Support Residential 18-64,Charges from Independent Providers,"2,439.18",AUTUMN HOUSE CARE LTD,378
Revenue,Adult Services,Adult Social Care,Physical Support - older people (65+),5105696135,19.01.2022,Physical Support Residential 65+,Charges from Independent Providers,"2,529.52",AUTUMN HOUSE CARE LTD,380
Revenue,Adult Services,Adult Social Care,Physical Support - older people (65+),5105696135,19.01.2022,Physical Support Residential 65+,Charges from Independent Providers,"2,151.52",AUTUMN HOUSE CARE LTD,381
Revenue,Adult Services,Adult Social Care,Physical Support - older people (65+),5105696135,19.01.2022,Physical Support Residential 65+,Charges from Independent Providers,"2,950.64",AUTUMN HOUSE CARE LTD,382
Revenue,Adult Services,Adult Social Care,Physical Support - older people (65+),5105696135,19.01.2022,Physical Support Residential 65+,Charges from Independent Providers,993.74,AUTUMN HOUSE CARE LTD,383
Revenue,Adult Services,Adult Social Care,Physical Support - older people (65+),5105696135,19.01.2022,Physical Support Residential 65+,Charges from Independent Providers,"2,950.64",AUTUMN HOUSE CARE LTD,384
Revenue,Adult Services,Adult Social Care,Physical Support - older people (65+),5105696135,19.01.2022,Physical Support Residential 65+,Charges from Independent Providers,"2,529.52",AUTUMN HOUSE CARE LTD,385
Revenue,Adult Services,Adult Social Care,Physical Support - older people (65+),5105696135,19.01.2022,Physical Support Residential 65+,Charges from Independent Providers,"2,529.52",AUTUMN HOUSE CARE LTD,386
Revenue,Adult Services,Adult Social Care,Physical Support - older people (65+),5105696135,19.01.2022,Physical Support Residential 65+,Charges from Independent Providers,"2,529.52",AUTUMN HOUSE CARE LTD,387
Revenue,Adult Services,Adult Social Care,Physical Support - older people (65+),5105696135,19.01.2022,Physical Support Residential 65+,Charges from Independent Providers,"2,529.52",AUTUMN HOUSE CARE LTD,388
Revenue,Adult Services,Adult Social Care,Physical Support - older people (65+),5105696135,19.01.2022,Physical Support Residential 65+,Charges from Independent Providers,"2,529.52",AUTUMN HOUSE CARE LTD,389
Revenue,Adult Services,Adult Social Care,Physical Support - older people (65+),5105696135,19.01.2022,Physical Support Residential 65+,Charges from Independent Providers,"2,529.52",AUTUMN HOUSE CARE LTD,390
Revenue,Adult Services,Adult Social Care,Physical Support - older people (65+),5105696135,19.01.2022,Physical Support Residential 65+,Charges from Independent Providers,"2,529.52",AUTUMN HOUSE CARE LTD,391
Revenue,Adult Services,Adult Social Care,Physical Support - older people (65+),5105696135,19.01.2022,Physical Support Residential 65+,Charges from Independent Providers,"2,529.52",AUTUMN HOUSE CARE LTD,392
Revenue,Adult Services,Adult Social Care,Physical Support - older people (65+),5105696135,19.01.2022,Physical Support Residential 65+,Charges from Independent Providers,"2,529.52",AUTUMN HOUSE CARE LTD,393
Revenue,Adult Services,Adult Social Care,Physical Support - older people (65+),5105695176,07.01.2022,Physical Support Residential 65+,Charges from Independent Providers,"2,890.88",AUTUMN HOUSE CARE LTD,394
Revenue,Adult Services,Adult Social Care,Physical Support - older people (65+),5105695176,07.01.2022,Physical Support Residential 65+,Charges from Independent Providers,"5,601.08",AUTUMN HOUSE CARE LTD,395
Revenue,Adult Services,Adult Social Care,Physical Support - older people (65+),5105695176,07.01.2022,Physical Support Residential 65+,Charges from Independent Providers,"5,690.52",AUTUMN HOUSE CARE LTD,396
Revenue,Neighbourhoods,Cultural and Related Services,Service Management and Support Services,5105697461,28.01.2022,Duke of Edingburgh Award,Operational Equipment,60.00,AWARD SCHEME LTD,397
Revenue,Childrens Services,Children's & Education Services,Children Looked After,5105696491,21.01.2022,In-house Fostering,Boarding Out Allowances,528.52,REDACTED PERSONAL DATA,398
Revenue,Childrens Services,Children's & Education Services,Children Looked After,5105697075,28.01.2022,In-house Fostering,Boarding Out Allowances,528.52,REDACTED PERSONAL DATA,399
Revenue,Childrens Services,Children's & Education Services,Children Looked After,5105695816,14.01.2022,In-house Fostering,Boarding Out Allowances,528.52,REDACTED PERSONAL DATA,400
Revenue,Childrens Services,Children's & Education Services,Children Looked After,5105695189,07.01.2022,In-house Fostering,Boarding Out Allowances,528.52,REDACTED PERSONAL DATA,401
Revenue,Adult Services,Housing Services,Homelessness,5105696793,26.01.2022,Private Rented Sector Leasing Scheme,Accommodation Costs - Leaseholder Payments,866.67,REDACTED PERSONAL DATA,403
Revenue,Adult Services,Adult Social Care,Commissioning & Service Delivery,5105696206,19.01.2022,CHC Nursing Care,Charges from Independent Providers,"10,447.64",BAGSHOT PARK CARE CENTRE,404
Revenue,Childrens Services,Children's & Education Services,Children Looked After,5105696717,26.01.2022,Unaccompanied Asylum Seeker Children,Charges from Independent Providers,"3,675.85",BANYA FAMILY PLACEMENT AGENCY LTD,405
Revenue,Childrens Services,Children's & Education Services,Children Looked After,5105695474,12.01.2022,Local Authority Care Advocacy Contract,Grants to External Bodies,"9,875.00",BARNARDO'S,406
Revenue,Adult Services,Adult Social Care,Learning Disab Supp (to be reallocated),5105696381,21.01.2022,Plean Dene,Consumable Cleaning Materials,24.24,LAKE CLEANING & CATERING SUPPLIES,408
Revenue,Neighbourhoods,Cultural and Related Services,Recreation and Sport,5105697041,28.01.2022,Medina Leisure Centre,Consumable Cleaning Materials,19.11,LAKE CLEANING & CATERING SUPPLIES,409
Revenue,Neighbourhoods,Cultural and Related Services,Recreation and Sport,5105697041,28.01.2022,Medina Leisure Centre,Consumable Cleaning Materials,11.98,LAKE CLEANING & CATERING SUPPLIES,410
Revenue,Neighbourhoods,Cultural and Related Services,Recreation and Sport,5105697044,26.01.2022,Medina Leisure Centre,Consumable Cleaning Materials,55.25,LAKE CLEANING & CATERING SUPPLIES,411
Revenue,Neighbourhoods,Cultural and Related Services,Recreation and Sport,5105697046,26.01.2022,Medina Leisure Centre,Consumable Cleaning Materials,21.84,LAKE CLEANING & CATERING SUPPLIES,412
Revenue,Neighbourhoods,Cultural and Related Services,Recreation and Sport,5105697046,26.01.2022,Medina Leisure Centre,Consumable Cleaning Materials,18.87,LAKE CLEANING & CATERING SUPPLIES,413
Revenue,Neighbourhoods,Cultural and Related Services,Recreation and Sport,5105697046,26.01.2022,Medina Leisure Centre,Consumable Cleaning Materials,23.00,LAKE CLEANING & CATERING SUPPLIES,414
Revenue,Neighbourhoods,Cultural and Related Services,Recreation and Sport,5105697046,26.01.2022,Medina Leisure Centre,Consumable Cleaning Materials,12.40,LAKE CLEANING & CATERING SUPPLIES,415
Revenue,Neighbourhoods,Cultural and Related Services,Recreation and Sport,5105697046,26.01.2022,Medina Leisure Centre,Consumable Cleaning Materials,67.30,LAKE CLEANING & CATERING SUPPLIES,416
Revenue,Neighbourhoods,Cultural and Related Services,Recreation and Sport,5105697041,28.01.2022,Medina Leisure Centre,Consumable Cleaning Materials,14.56,LAKE CLEANING & CATERING SUPPLIES,417
Revenue,Neighbourhoods,Cultural and Related Services,Recreation and Sport,5105697041,28.01.2022,Medina Leisure Centre,Consumable Cleaning Materials,15.30,LAKE CLEANING & CATERING SUPPLIES,418
Revenue,Neighbourhoods,Cultural and Related Services,Recreation and Sport,5105697041,28.01.2022,Medina Leisure Centre,Consumable Cleaning Materials,15.18,LAKE CLEANING & CATERING SUPPLIES,419
Revenue,Neighbourhoods,Cultural and Related Services,Recreation and Sport,5105697041,28.01.2022,Medina Leisure Centre,Consumable Cleaning Materials,24.12,LAKE CLEANING & CATERING SUPPLIES,420
Revenue,Neighbourhoods,Cultural and Related Services,Recreation and Sport,5105697041,28.01.2022,Medina Leisure Centre,Consumable Cleaning Materials,31.68,LAKE CLEANING & CATERING SUPPLIES,421
Revenue,Neighbourhoods,Cultural and Related Services,Recreation and Sport,5105697041,28.01.2022,Medina Leisure Centre,Consumable Cleaning Materials,27.00,LAKE CLEANING & CATERING SUPPLIES,422
Revenue,Neighbourhoods,Cultural and Related Services,Recreation and Sport,5105695481,07.01.2022,Medina Leisure Centre,Consumable Cleaning Materials,23.85,LAKE CLEANING & CATERING SUPPLIES,423
Revenue,Neighbourhoods,Cultural and Related Services,Recreation and Sport,5105695481,07.01.2022,Medina Leisure Centre,Consumable Cleaning Materials,35.64,LAKE CLEANING & CATERING SUPPLIES,424
Revenue,Neighbourhoods,Cultural and Related Services,Recreation and Sport,5105695481,07.01.2022,Medina Leisure Centre,Consumable Cleaning Materials,7.02,LAKE CLEANING & CATERING SUPPLIES,425
Revenue,Neighbourhoods,Cultural and Related Services,Recreation and Sport,5105695481,07.01.2022,Medina Leisure Centre,Consumable Cleaning Materials,22.50,LAKE CLEANING & CATERING SUPPLIES,426
Revenue,Neighbourhoods,Cultural and Related Services,Recreation and Sport,5105695481,07.01.2022,Medina Leisure Centre,Consumable Cleaning Materials,22.50,LAKE CLEANING & CATERING SUPPLIES,427
Revenue,Neighbourhoods,Cultural and Related Services,Recreation and Sport,5105695481,07.01.2022,Medina Leisure Centre,Consumable Cleaning Materials,14.88,LAKE CLEANING & CATERING SUPPLIES,428
Revenue,Neighbourhoods,Cultural and Related Services,Recreation and Sport,5105695481,07.01.2022,Medina Leisure Centre,Consumable Cleaning Materials,53.84,LAKE CLEANING & CATERING SUPPLIES,429
Revenue,Childrens Services,Children's & Education Services,Children Looked After,5105697292,28.01.2022,Beaulieu House,General Materials,26.52,LAKE CLEANING & CATERING SUPPLIES,430
Revenue,Childrens Services,Children's & Education Services,Children Looked After,5105695402,07.01.2022,Beaulieu House,General Materials,28.67,LAKE CLEANING & CATERING SUPPLIES,431
Revenue,Childrens Services,Children's & Education Services,Children Looked After,5105696691,21.01.2022,Beaulieu House,General Materials,16.59,LAKE CLEANING & CATERING SUPPLIES,432
Revenue,Childrens Services,Children's & Education Services,Children Looked After,5105696462,19.01.2022,Beaulieu House,General Materials,371.41,LAKE CLEANING & CATERING SUPPLIES,433
Revenue,Childrens Services,Children's & Education Services,Children Looked After,5105696244,19.01.2022,Beaulieu House,General Materials,93.04,LAKE CLEANING & CATERING SUPPLIES,434
Revenue,Neighbourhoods,Cultural and Related Services,Recreation and Sport,5105697295,28.01.2022,Westridge Squash Courts,Consumable Cleaning Materials,44.30,LAKE CLEANING & CATERING SUPPLIES,435
Revenue,Neighbourhoods,Cultural and Related Services,Recreation and Sport,5105697296,28.01.2022,Westridge Squash Courts,Consumable Cleaning Materials,31.70,LAKE CLEANING & CATERING SUPPLIES,436
Revenue,Neighbourhoods,Cultural and Related Services,Recreation and Sport,5105697298,28.01.2022,The Heights,Consumable Cleaning Materials,105.33,LAKE CLEANING & CATERING SUPPLIES,437
Revenue,Neighbourhoods,Cultural and Related Services,Recreation and Sport,5105696860,26.01.2022,The Heights,Consumable Cleaning Materials,218.43,LAKE CLEANING & CATERING SUPPLIES,438
Revenue,Neighbourhoods,Cultural and Related Services,Recreation and Sport,5105696400,19.01.2022,The Heights,Consumable Cleaning Materials,107.72,LAKE CLEANING & CATERING SUPPLIES,439
Revenue,Neighbourhoods,Cultural and Related Services,Recreation and Sport,5105696404,19.01.2022,The Heights,Consumable Cleaning Materials,172.44,LAKE CLEANING & CATERING SUPPLIES,440
Revenue,Resources,Central Services,Support Services,5105697406,28.01.2022,Creditor Payments Shared Service Centre,Stationery,26.22,BATES OFFICE SERVICES LIMITED,441
Revenue,Neighbourhoods,Highways and Transport Services,"Airports, Harbours & Toll Facilities",5105697406,28.01.2022,Ferry Operation,Stationery,4.71,BATES OFFICE SERVICES LIMITED,442
Revenue,Adult Services,Adult Social Care,Central Codes (to be reallocated),5105696414,26.01.2022,Gouldings Resource Centre,Stationery,1.80,BATES OFFICE SERVICES LIMITED,443
Revenue,Adult Services,Adult Social Care,Central Codes (to be reallocated),5105696414,26.01.2022,Gouldings Resource Centre,Stationery,3.54,BATES OFFICE SERVICES LIMITED,444
Revenue,Adult Services,Adult Social Care,Central Codes (to be reallocated),5105696414,26.01.2022,Gouldings Resource Centre,Stationery,4.96,BATES OFFICE SERVICES LIMITED,445
Revenue,Adult Services,Adult Social Care,Central Codes (to be reallocated),5105696414,26.01.2022,Gouldings Resource Centre,Stationery,17.48,BATES OFFICE SERVICES LIMITED,446
Revenue,Childrens Services,Children's & Education Services,Support Services,5105697405,28.01.2022,Learning & Development Running Costs,Stationery,10.50,BATES OFFICE SERVICES LIMITED,447
Revenue,Childrens Services,Children's & Education Services,Other Education and Community Budget,5105696413,19.01.2022,Pupil Resources Business Support Team,Stationery,8.74,BATES OFFICE SERVICES LIMITED,448
Revenue,Childrens Services,Children's & Education Services,Other Education and Community Budget,5105695785,14.01.2022,SEND Independent Advice & Support,Stationery,1.79,BATES OFFICE SERVICES LIMITED,449
Revenue,Neighbourhoods,Cultural and Related Services,Service Management and Support Services,5105696011,14.01.2022,Leisure Management & Admin,Stationery,17.48,BATES OFFICE SERVICES LIMITED,450
Revenue,Neighbourhoods,Cultural and Related Services,Service Management and Support Services,5105696862,26.01.2022,Leisure Management & Admin,Stationery,17.48,BATES OFFICE SERVICES LIMITED,451
Revenue,Resources,Central Services,Support Services,5105696862,26.01.2022,Pension Administration,Stationery,6.00,BATES OFFICE SERVICES LIMITED,452
Revenue,Neighbourhoods,Cultural and Related Services,Service Management and Support Services,5105696412,19.01.2022,Leisure Management & Admin,Stationery,3.65,BATES OFFICE SERVICES LIMITED,453
Revenue,Neighbourhoods,Cultural and Related Services,Service Management and Support Services,5105697406,28.01.2022,Leisure Management & Admin,Stationery,17.48,BATES OFFICE SERVICES LIMITED,454
Revenue,Neighbourhoods,Cultural and Related Services,Service Management and Support Services,5105697406,28.01.2022,Leisure Management & Admin,Stationery,43.70,BATES OFFICE SERVICES LIMITED,455
Revenue,Neighbourhoods,Cultural and Related Services,Recreation and Sport,5105696013,14.01.2022,Medina Leisure Centre,Stationery,6.79,BATES OFFICE SERVICES LIMITED,456
Revenue,Neighbourhoods,Cultural and Related Services,Recreation and Sport,5105696013,14.01.2022,Medina Leisure Centre,Stationery,0.28,BATES OFFICE SERVICES LIMITED,457
Revenue,Neighbourhoods,Cultural and Related Services,Recreation and Sport,5105696013,14.01.2022,Medina Leisure Centre,Stationery,0.66,BATES OFFICE SERVICES LIMITED,458
Revenue,Neighbourhoods,Cultural and Related Services,Recreation and Sport,5105696013,14.01.2022,Medina Leisure Centre,Stationery,1.98,BATES OFFICE SERVICES LIMITED,459
Revenue,Neighbourhoods,Cultural and Related Services,Recreation and Sport,5105696010,14.01.2022,Medina Leisure Centre,Stationery,4.60,BATES OFFICE SERVICES LIMITED,460
Revenue,Neighbourhoods,Cultural and Related Services,Recreation and Sport,5105696010,14.01.2022,Medina Leisure Centre,Stationery,24.42,BATES OFFICE SERVICES LIMITED,461
Revenue,Neighbourhoods,Environmental & Regulatory Services,Service Management and Support Services,5105696412,19.01.2022,Environment officers,Stationery,1.80,BATES OFFICE SERVICES LIMITED,462
Revenue,Chief Executive,Central Services,Central Services to the Public,5105695072,12.01.2022,Emergency Management,Stationery,8.74,BATES OFFICE SERVICES LIMITED,463
Revenue,Childrens Services,Children's & Education Services,Safeguarding Children/Young Peoples Svs,5105696862,26.01.2022,Children's office costs,Stationery,3.71,BATES OFFICE SERVICES LIMITED,464
Revenue,Childrens Services,Children's & Education Services,Safeguarding Children/Young Peoples Svs,5105696862,26.01.2022,Children's office costs,Stationery,1.00,BATES OFFICE SERVICES LIMITED,465
Revenue,Childrens Services,Children's & Education Services,Safeguarding Children/Young Peoples Svs,5105697406,28.01.2022,Children's office costs,Stationery,17.48,BATES OFFICE SERVICES LIMITED,466
Revenue,Childrens Services,Children's & Education Services,Children Looked After,5105695791,14.01.2022,Beaulieu House,Stationery,17.48,BATES OFFICE SERVICES LIMITED,467
Revenue,Adult Services,Adult Social Care,Commissioning & Service Delivery,5105695792,14.01.2022,Group Manager Leaning Disability Homes,Stationery,7.00,BATES OFFICE SERVICES LIMITED,468
Revenue,Adult Services,Adult Social Care,Commissioning & Service Delivery,5105695792,14.01.2022,Group Manager Leaning Disability Homes,Stationery,0.74,BATES OFFICE SERVICES LIMITED,469
Revenue,Adult Services,Adult Social Care,Commissioning & Service Delivery,5105695790,14.01.2022,Group Manager Leaning Disability Homes,Stationery,3.50,BATES OFFICE SERVICES LIMITED,470
Revenue,Adult Services,Adult Social Care,Commissioning & Service Delivery,5105695790,14.01.2022,Group Manager Leaning Disability Homes,Stationery,0.74,BATES OFFICE SERVICES LIMITED,471
Revenue,Adult Services,Adult Social Care,Commissioning & Service Delivery,5105695790,14.01.2022,Group Manager Leaning Disability Homes,Stationery,3.13,BATES OFFICE SERVICES LIMITED,472
Revenue,Adult Services,Adult Social Care,Commissioning & Service Delivery,5105695790,14.01.2022,Group Manager Leaning Disability Homes,Stationery,1.00,BATES OFFICE SERVICES LIMITED,473
Revenue,Adult Services,Adult Social Care,Commissioning & Service Delivery,5105695790,14.01.2022,Group Manager Leaning Disability Homes,Stationery,0.33,BATES OFFICE SERVICES LIMITED,474
Revenue,Adult Services,Adult Social Care,Commissioning & Service Delivery,5105695790,14.01.2022,Group Manager Leaning Disability Homes,Stationery,0.33,BATES OFFICE SERVICES LIMITED,475
Revenue,Adult Services,Adult Social Care,Commissioning & Service Delivery,5105695790,14.01.2022,Group Manager Leaning Disability Homes,Stationery,5.15,BATES OFFICE SERVICES LIMITED,476
Revenue,Adult Services,Adult Social Care,Commissioning & Service Delivery,5105696009,14.01.2022,Group Manager Leaning Disability Homes,Stationery,4.03,BATES OFFICE SERVICES LIMITED,477
Revenue,Adult Services,Adult Social Care,Commissioning & Service Delivery,5105696009,14.01.2022,Group Manager Leaning Disability Homes,Stationery,3.50,BATES OFFICE SERVICES LIMITED,478
Revenue,Adult Services,Adult Social Care,Commissioning & Service Delivery,5105696009,14.01.2022,Group Manager Leaning Disability Homes,Stationery,1.48,BATES OFFICE SERVICES LIMITED,479
Revenue,Adult Services,Adult Social Care,Assistive Equipment & Technology,5105697406,28.01.2022,Wightcare,Stationery,34.96,BATES OFFICE SERVICES LIMITED,480
Revenue,Adult Services,Adult Social Care,Assistive Equipment & Technology,5105697406,28.01.2022,Wightcare,Stationery,14.00,BATES OFFICE SERVICES LIMITED,481
Revenue,Adult Services,Adult Social Care,Assistive Equipment & Technology,5105697406,28.01.2022,Wightcare,Stationery,4.00,BATES OFFICE SERVICES LIMITED,482
Revenue,Resources,Central Services,Support Services,5105696002,21.01.2022,Legal Services Section,Stationery,4.19,BATES OFFICE SERVICES LIMITED,483
Revenue,Resources,Central Services,Support Services,5105696002,21.01.2022,Legal Services Section,Stationery,3.19,BATES OFFICE SERVICES LIMITED,484
Revenue,Resources,Central Services,Support Services,5105696011,14.01.2022,Legal Services Section,Stationery,17.48,BATES OFFICE SERVICES LIMITED,485
Revenue,Resources,Central Services,Support Services,5105696862,26.01.2022,Legal Services Section,Stationery,1.17,BATES OFFICE SERVICES LIMITED,486
Revenue,Resources,Central Services,Support Services,5105696862,26.01.2022,Legal Services Section,Stationery,1.00,BATES OFFICE SERVICES LIMITED,487
Revenue,Resources,Central Services,Support Services,5105696862,26.01.2022,Legal Services Section,Stationery,0.33,BATES OFFICE SERVICES LIMITED,488
Revenue,Resources,Central Services,Support Services,5105697406,28.01.2022,Legal Services Section,Stationery,17.48,BATES OFFICE SERVICES LIMITED,489
Revenue,Resources,Central Services,Support Services,5105697406,28.01.2022,Legal Services Section,Stationery,17.48,BATES OFFICE SERVICES LIMITED,490
Revenue,Neighbourhoods,Environmental & Regulatory Services,Waste Collection,5105697406,28.01.2022,Waste Contract Income,Stationery,7.15,BATES OFFICE SERVICES LIMITED,491
Revenue,Neighbourhoods,Environmental & Regulatory Services,Waste Collection,5105697406,28.01.2022,Waste Contract Income,Stationery,12.00,BATES OFFICE SERVICES LIMITED,492
Revenue,Neighbourhoods,Environmental & Regulatory Services,Service Management and Support Services,5400003159,28.01.2022,Regulatory Management & Admin Support,Stationery,-4.71,BATES OFFICE SERVICES LIMITED,493
Revenue,Adult Services,Adult Social Care,Commissioning & Service Delivery,5105676570,12.01.2022,ASC County Hall office costs,Stationery,1.57,BATES OFFICE SERVICES LIMITED,494
Revenue,Adult Services,Adult Social Care,Commissioning & Service Delivery,5105695072,12.01.2022,ASC County Hall office costs,Stationery,1.15,BATES OFFICE SERVICES LIMITED,495
Revenue,Adult Services,Adult Social Care,Commissioning & Service Delivery,5105695072,12.01.2022,ASC County Hall office costs,Stationery,1.26,BATES OFFICE SERVICES LIMITED,496
Revenue,Adult Services,Adult Social Care,Commissioning & Service Delivery,5105695072,12.01.2022,ASC County Hall office costs,Stationery,0.22,BATES OFFICE SERVICES LIMITED,497
Revenue,Adult Services,Adult Social Care,Commissioning & Service Delivery,5105695072,12.01.2022,ASC County Hall office costs,Stationery,20.40,BATES OFFICE SERVICES LIMITED,498
Revenue,Adult Services,Adult Social Care,Commissioning & Service Delivery,5105695072,12.01.2022,ASC County Hall office costs,Stationery,3.90,BATES OFFICE SERVICES LIMITED,499
Revenue,Adult Services,Adult Social Care,Commissioning & Service Delivery,5105695072,12.01.2022,ASC County Hall office costs,Stationery,0.80,BATES OFFICE SERVICES LIMITED,500
Revenue,Adult Services,Adult Social Care,Commissioning & Service Delivery,5105695072,12.01.2022,ASC County Hall office costs,Stationery,2.00,BATES OFFICE SERVICES LIMITED,501
Revenue,Adult Services,Adult Social Care,Commissioning & Service Delivery,5105695072,12.01.2022,ASC County Hall office costs,Stationery,1.24,BATES OFFICE SERVICES LIMITED,502
Revenue,Adult Services,Adult Social Care,Commissioning & Service Delivery,5105695072,12.01.2022,ASC County Hall office costs,Stationery,0.99,BATES OFFICE SERVICES LIMITED,503
Revenue,Adult Services,Adult Social Care,Commissioning & Service Delivery,5105695072,12.01.2022,ASC County Hall office costs,Stationery,0.92,BATES OFFICE SERVICES LIMITED,504
Revenue,Adult Services,Adult Social Care,Commissioning & Service Delivery,5105695072,12.01.2022,ASC County Hall office costs,Stationery,15.39,BATES OFFICE SERVICES LIMITED,505
Revenue,Adult Services,Adult Social Care,Commissioning & Service Delivery,5105695072,12.01.2022,ASC County Hall office costs,Stationery,11.38,BATES OFFICE SERVICES LIMITED,506
Revenue,Adult Services,Adult Social Care,Commissioning & Service Delivery,5105695072,12.01.2022,ASC County Hall office costs,Stationery,4.03,BATES OFFICE SERVICES LIMITED,507
Revenue,Adult Services,Adult Social Care,Commissioning & Service Delivery,5105695072,12.01.2022,ASC County Hall office costs,Stationery,2.50,BATES OFFICE SERVICES LIMITED,508
Revenue,Adult Services,Adult Social Care,Commissioning & Service Delivery,5105695072,12.01.2022,ASC County Hall office costs,Stationery,1.92,BATES OFFICE SERVICES LIMITED,509
Revenue,Adult Services,Adult Social Care,Commissioning & Service Delivery,5105696862,26.01.2022,ASC County Hall office costs,Stationery,1.80,BATES OFFICE SERVICES LIMITED,510
Revenue,Adult Services,Adult Social Care,Commissioning & Service Delivery,5105697406,28.01.2022,ASC County Hall office costs,Stationery,11.38,BATES OFFICE SERVICES LIMITED,511
Revenue,Adult Services,Adult Social Care,Social Care Activities,5105676570,12.01.2022,Hospital Team,Stationery,4.71,BATES OFFICE SERVICES LIMITED,512
Revenue,Adult Services,Adult Social Care,Social Care Activities,5105696412,19.01.2022,Hospital Team,Stationery,26.22,BATES OFFICE SERVICES LIMITED,513
Revenue,Adult Services,Adult Social Care,Social Care Activities,5105696412,19.01.2022,Hospital Team,Stationery,3.50,BATES OFFICE SERVICES LIMITED,514
Revenue,Adult Services,Adult Social Care,Social Care Activities,5105696412,19.01.2022,Hospital Team,Stationery,14.70,BATES OFFICE SERVICES LIMITED,515
Revenue,Adult Services,Adult Social Care,Social Care Activities,5105693864,12.01.2022,Hospital Team,Stationery,-4.71,BATES OFFICE SERVICES LIMITED,516
Revenue,Adult Services,Adult Social Care,Social Care Activities,5105695072,12.01.2022,Hospital Team,Stationery,0.96,BATES OFFICE SERVICES LIMITED,517
Revenue,Adult Services,Adult Social Care,Social Care Activities,5105695072,12.01.2022,Hospital Team,Stationery,0.66,BATES OFFICE SERVICES LIMITED,518
Revenue,Resources,Central Services,Corporate and Democratic Core,5105695072,12.01.2022,Cabinet Support,Stationery,8.74,BATES OFFICE SERVICES LIMITED,519
Revenue,Regeneration,Central Services,Support Services,5105695072,12.01.2022,"County Hall,Newport",Stationery,1.84,BATES OFFICE SERVICES LIMITED,520
Revenue,Regeneration,Central Services,Support Services,5105697406,28.01.2022,"County Hall,Newport",Stationery,2.76,BATES OFFICE SERVICES LIMITED,521
Revenue,Neighbourhoods,Cultural and Related Services,Library Service,5105695787,19.01.2022,Public Libraries Central,Stationery,12.98,BATES OFFICE SERVICES LIMITED,522
Revenue,Neighbourhoods,Cultural and Related Services,Library Service,5105695787,19.01.2022,Public Libraries Central,Stationery,4.19,BATES OFFICE SERVICES LIMITED,523
Revenue,Neighbourhoods,Cultural and Related Services,Library Service,5105695787,19.01.2022,Public Libraries Central,Stationery,3.19,BATES OFFICE SERVICES LIMITED,524
Revenue,Neighbourhoods,Cultural and Related Services,Library Service,5105695787,19.01.2022,Public Libraries Central,Stationery,12.98,BATES OFFICE SERVICES LIMITED,525
Revenue,Neighbourhoods,Cultural and Related Services,Library Service,5105695789,14.01.2022,Public Libraries Central,Stationery,2.50,BATES OFFICE SERVICES LIMITED,526
Revenue,Neighbourhoods,Cultural and Related Services,Library Service,5105695789,14.01.2022,Public Libraries Central,Stationery,0.60,BATES OFFICE SERVICES LIMITED,527
Revenue,Neighbourhoods,Cultural and Related Services,Library Service,5105696857,26.01.2022,Public Libraries Central,Stationery,8.60,BATES OFFICE SERVICES LIMITED,528
Revenue,Neighbourhoods,Cultural and Related Services,Library Service,5105695787,19.01.2022,Prison Library Service,Stationery,4.19,BATES OFFICE SERVICES LIMITED,529
Revenue,Neighbourhoods,Cultural and Related Services,Library Service,5105695787,19.01.2022,Prison Library Service,Stationery,3.19,BATES OFFICE SERVICES LIMITED,530
Revenue,Resources,Central Services,Support Services,5105697406,28.01.2022,Revenues & Benefits Operational Support,Stationery,7.00,BATES OFFICE SERVICES LIMITED,531
Revenue,Resources,Highways and Transport Services,Off Street Parking,5105696412,19.01.2022,Parking Services,Stationery,18.40,BATES OFFICE SERVICES LIMITED,532
Revenue,Resources,Highways and Transport Services,Off Street Parking,5105696412,19.01.2022,Parking Services,Stationery,1.54,BATES OFFICE SERVICES LIMITED,533
Revenue,Resources,Highways and Transport Services,Off Street Parking,5105696412,19.01.2022,Parking Services,Stationery,7.42,BATES OFFICE SERVICES LIMITED,534
Revenue,Resources,Central Services,Support Services,5105697406,28.01.2022,Customer Accounts Shared Service Centre,Stationery,26.22,BATES OFFICE SERVICES LIMITED,535
Revenue,Resources,Adult Social Care,Physical Support (to be reallocated),5105697406,28.01.2022,Blue Badge Admin Team Shared Services,Stationery,8.74,BATES OFFICE SERVICES LIMITED,536
Revenue,Resources,Central Services,Support Services,5105696011,14.01.2022,Call Centre,Stationery,8.74,BATES OFFICE SERVICES LIMITED,537
Revenue,Adult Services,Adult Social Care,Commissioning & Service Delivery,5105695072,12.01.2022,Director of Adult Social Services,Stationery,17.48,BATES OFFICE SERVICES LIMITED,538
Revenue,Adult Services,Adult Social Care,Commissioning & Service Delivery,5105696862,26.01.2022,Director of Adult Social Services,Stationery,8.74,BATES OFFICE SERVICES LIMITED,539
Revenue,Childrens Services,Children's & Education Services,Youth Justice,5105696862,26.01.2022,Youth Offending Team,Stationery,17.48,BATES OFFICE SERVICES LIMITED,540
Revenue,Resources,Central Services,Support Services,5105697406,28.01.2022,Help Centres Shared Service Centre,Stationery,17.48,BATES OFFICE SERVICES LIMITED,541
Revenue,Resources,Central Services,Central Services to the Public,5105697406,28.01.2022,Internal Enforcement Team,Stationery,17.48,BATES OFFICE SERVICES LIMITED,542
Revenue,Adult Services,Adult Social Care,Commissioning & Service Delivery,5105696412,19.01.2022,CHC Staff Costs,Stationery,13.14,BATES OFFICE SERVICES LIMITED,543
Revenue,Adult Services,Adult Social Care,Commissioning & Service Delivery,5105696862,26.01.2022,CHC Staff Costs,Stationery,6.57,BATES OFFICE SERVICES LIMITED,544
Revenue,Adult Services,Adult Social Care,Commissioning & Service Delivery,5105696862,26.01.2022,CHC Staff Costs,Stationery,0.92,BATES OFFICE SERVICES LIMITED,545
Revenue,Adult Services,Adult Social Care,Commissioning & Service Delivery,5105696862,26.01.2022,CHC Staff Costs,Stationery,6.79,BATES OFFICE SERVICES LIMITED,546
Revenue,Adult Services,Adult Social Care,Commissioning & Service Delivery,5105696862,26.01.2022,CHC Staff Costs,Stationery,7.15,BATES OFFICE SERVICES LIMITED,547
Revenue,Adult Services,Adult Social Care,Commissioning & Service Delivery,5105696862,26.01.2022,ASC Commissioning/Partnerships Development Team,Stationery,3.90,BATES OFFICE SERVICES LIMITED,548
Revenue,Adult Services,Adult Social Care,Commissioning & Service Delivery,5105696862,26.01.2022,ASC Commissioning/Partnerships Development Team,Stationery,2.50,BATES OFFICE SERVICES LIMITED,549
Revenue,Adult Services,Adult Social Care,Commissioning & Service Delivery,5105696862,26.01.2022,ASC Commissioning/Partnerships Development Team,Stationery,1.57,BATES OFFICE SERVICES LIMITED,550
Revenue,Adult Services,Adult Social Care,Commissioning & Service Delivery,5105696862,26.01.2022,ASC Commissioning/Partnerships Development Team,Stationery,0.69,BATES OFFICE SERVICES LIMITED,551
Revenue,Childrens Services,Children's & Education Services,Management & Support Services,5105697308,28.01.2022,Specialist Service Business Admin,Stationery,142.32,BATES OFFICE SERVICES LIMITED,552
Revenue,Regeneration,Planning services,Management & Support Services,5105694457,05.01.2022,Planning Management,Stationery,16.95,BATES OFFICE SERVICES LIMITED,553
Revenue,Regeneration,Planning services,Management & Support Services,5105694457,05.01.2022,Planning Management,Stationery,34.96,BATES OFFICE SERVICES LIMITED,554
Revenue,Regeneration,Planning services,Management & Support Services,5105694457,05.01.2022,Planning Management,Stationery,9.80,BATES OFFICE SERVICES LIMITED,555
Revenue,Neighbourhoods,Environmental & Regulatory Services,"Cemetery, Cremation & Mortuary Services",5105696004,21.01.2022,Crematorium,Stationery,4.19,BATES OFFICE SERVICES LIMITED,556
Revenue,Neighbourhoods,Cultural and Related Services,Culture and Heritage,5105695788,14.01.2022,Dinosaur Isle Museum (Sandown Geology),Stationery,3.68,BATES OFFICE SERVICES LIMITED,557
Revenue,Neighbourhoods,Cultural and Related Services,Culture and Heritage,5105695788,14.01.2022,Dinosaur Isle Museum (Sandown Geology),Stationery,3.50,BATES OFFICE SERVICES LIMITED,558
Revenue,Resources,Central Services,Central Services to the Public,5105697406,28.01.2022,Council Tax,Stationery,8.74,BATES OFFICE SERVICES LIMITED,559
Revenue,Resources,Central Services,Central Services to the Public,5105696862,26.01.2022,Council Tax,Stationery,9.04,BATES OFFICE SERVICES LIMITED,560
Revenue,Childrens Services,Children's & Education Services,Children Looked After,5105694983,05.01.2022,Leaving Care Costs,Support Children,19.99,REDACTED PERSONAL DATA,562
Revenue,Childrens Services,Children's & Education Services,Children Looked After,5105696445,19.01.2022,Purchased Residential,Charges from Independent Providers,"3,850.00",BENECARE FOSTERING LTD,563
Revenue,Childrens Services,Children's & Education Services,Children Looked After,5105696472,21.01.2022,Purchased Residential,Charges from Independent Providers,"3,850.00",BENECARE FOSTERING LTD,564
Revenue,Childrens Services,Children's & Education Services,Children Looked After,5105696473,21.01.2022,Purchased Residential,Charges from Independent Providers,"3,850.00",BENECARE FOSTERING LTD,565
Revenue,Childrens Services,Children's & Education Services,Children Looked After,5105696474,21.01.2022,Purchased Residential,Charges from Independent Providers,"3,850.00",BENECARE FOSTERING LTD,566
Revenue,Childrens Services,Children's & Education Services,Children Looked After,5105696475,21.01.2022,Purchased Residential,Charges from Independent Providers,"3,850.00",BENECARE FOSTERING LTD,567
Revenue,Adult Services,Housing Services,Homelessness,5105695655,12.01.2022,B&B Properties,Rent of Buildings and Rooms,"8,400.00",BERTRAM LODGE,568
Revenue,Adult Services,Adult Social Care,Central Codes (to be reallocated),5105697303,28.01.2022,Gouldings Resource Centre,Consumable Cleaning Materials,20.32,BETA PAK LTD,569
Revenue,Adult Services,Adult Social Care,Central Codes (to be reallocated),5105697431,28.01.2022,Gouldings Resource Centre,Consumable Cleaning Materials,128.86,BETA PAK LTD,570
Revenue,Adult Services,Adult Social Care,Central Codes (to be reallocated),5105695040,05.01.2022,Gouldings Resource Centre,Consumable Cleaning Materials,5.50,BETA PAK LTD,571
Revenue,Adult Services,Adult Social Care,Central Codes (to be reallocated),5105696956,26.01.2022,Gouldings Resource Centre,Consumable Cleaning Materials,520.41,BETA PAK LTD,572
Revenue,Adult Services,Adult Social Care,Central Codes (to be reallocated),5105696650,21.01.2022,Gouldings Resource Centre,Consumable Cleaning Materials,281.91,BETA PAK LTD,573
Revenue,Adult Services,Adult Social Care,Central Codes (to be reallocated),5105696856,26.01.2022,Gouldings Resource Centre,Consumable Cleaning Materials,83.75,BETA PAK LTD,574
Revenue,Adult Services,Adult Social Care,Learning Disab Supp (to be reallocated),5105696407,19.01.2022,Saxonbury,Operational Equipment,422.35,BETA PAK LTD,575
Revenue,Adult Services,Adult Social Care,Learning Disab Supp (to be reallocated),5105694329,05.01.2022,Saxonbury,Operational Equipment,62.56,BETA PAK LTD,576
Revenue,Adult Services,Adult Social Care,Learning Disab Supp (to be reallocated),5105694331,05.01.2022,Saxonbury,Operational Equipment,51.70,BETA PAK LTD,577
Revenue,Adult Services,Adult Social Care,Social Support - Support for Carer,5105694328,05.01.2022,Westminster House,Operational Equipment,19.29,BETA PAK LTD,578
Revenue,Adult Services,Adult Social Care,Social Support - Support for Carer,5105694293,05.01.2022,Westminster House,Operational Equipment,117.04,BETA PAK LTD,579
Revenue,Adult Services,Adult Social Care,Learning Disab Supp (to be reallocated),5105695118,12.01.2022,Plean Dene,Operational Equipment,258.63,BETA PAK LTD,580
Revenue,Adult Services,Adult Social Care,Learning Disab Supp (to be reallocated),5105695118,12.01.2022,Plean Dene,Operational Equipment,49.96,BETA PAK LTD,581
Revenue,Adult Services,Adult Social Care,Central Codes (to be reallocated),5105697005,26.01.2022,Adelaide Resource Centre,Consumable Cleaning Materials,47.04,BETA PAK LTD,582
Revenue,Adult Services,Adult Social Care,Central Codes (to be reallocated),5105696774,26.01.2022,Adelaide Resource Centre,Consumable Cleaning Materials,30.76,BETA PAK LTD,583
Revenue,Adult Services,Adult Social Care,Central Codes (to be reallocated),5105696463,19.01.2022,Adelaide Resource Centre,Consumable Cleaning Materials,354.61,BETA PAK LTD,584
Revenue,Adult Services,Adult Social Care,Central Codes (to be reallocated),5105696464,19.01.2022,Adelaide Resource Centre,Operational Equipment,46.80,BETA PAK LTD,585
Revenue,Neighbourhoods,Environmental & Regulatory Services,Service Management and Support Services,5105696314,26.01.2022,Waste Contract Management,Legal Fees - Other Parties,"14,756.30",BEVAN BRITTAN,586
Revenue,Adult Services,Adult Social Care,Central Codes (to be reallocated),5105696837,26.01.2022,Gouldings Resource Centre,Catering Purchases,-18.53,3663 (BFS GROUP LTD),587
Revenue,Adult Services,Adult Social Care,Central Codes (to be reallocated),5105696837,26.01.2022,Gouldings Resource Centre,Catering Purchases,-10.20,3663 (BFS GROUP LTD),588
Revenue,Adult Services,Adult Social Care,Central Codes (to be reallocated),5105696406,19.01.2022,Gouldings Resource Centre,Catering Purchases,13.33,3663 (BFS GROUP LTD),589
Revenue,Adult Services,Adult Social Care,Central Codes (to be reallocated),5105696231,19.01.2022,Gouldings Resource Centre,Catering Purchases,232.79,3663 (BFS GROUP LTD),590
Revenue,Adult Services,Adult Social Care,Central Codes (to be reallocated),5105696231,19.01.2022,Gouldings Resource Centre,Catering Purchases,10.88,3663 (BFS GROUP LTD),591
Revenue,Adult Services,Adult Social Care,Central Codes (to be reallocated),5105696406,19.01.2022,Gouldings Resource Centre,Catering Purchases,237.15,3663 (BFS GROUP LTD),592
Revenue,Adult Services,Adult Social Care,Central Codes (to be reallocated),5105695587,12.01.2022,Gouldings Resource Centre,Catering Purchases,185.18,3663 (BFS GROUP LTD),593
Revenue,Adult Services,Adult Social Care,Central Codes (to be reallocated),5105695587,12.01.2022,Gouldings Resource Centre,Catering Purchases,22.41,3663 (BFS GROUP LTD),594
Revenue,Adult Services,Adult Social Care,Central Codes (to be reallocated),5105696922,26.01.2022,Gouldings Resource Centre,Catering Purchases,310.98,3663 (BFS GROUP LTD),595
Revenue,Neighbourhoods,Cultural and Related Services,Library Service,5105696709,21.01.2022,Public Libraries Central,Stationery,57.82,BIBLIOTHECA LTD,596
Revenue,Neighbourhoods,Cultural and Related Services,Library Service,5105695022,12.01.2022,Public Libraries Central,Stationery,75.88,BIBLIOTHECA LTD,597
Revenue,Public Health,Public Health,Central Codes (to be reallocated),5105696959,26.01.2022,Public Health Practitioners,Consultants Fees,"3,600.00",BIELEC CONSULTANCY,598
Revenue,Neighbourhoods,Highways and Transport Services,"Airports, Harbours & Toll Facilities",5105695386,07.01.2022,Ferry Management,"Refuse Collection, Disposal and Recycling Costs",96.50,BIFFA WASTE SERVICES LTD,599
Revenue,Adult Services,Adult Social Care,Central Codes (to be reallocated),5105695386,07.01.2022,Gouldings Resource Centre,"Refuse Collection, Disposal and Recycling Costs",250.65,BIFFA WASTE SERVICES LTD,600
Revenue,Neighbourhoods,Environmental & Regulatory Services,Waste Disposal,5105694890,07.01.2022,Lynnbottom Leachate Treatment Works,Payment to Private Contractors,"7,744.36",BIFFA WASTE SERVICES LTD,601
Revenue,Neighbourhoods,Environmental & Regulatory Services,Waste Disposal,5105694884,07.01.2022,Lynnbottom Leachate Treatment Works,Payment to Private Contractors,"17,720.73",BIFFA WASTE SERVICES LTD,602
Revenue,Neighbourhoods,Environmental & Regulatory Services,Waste Disposal,5105694890,07.01.2022,Lynnbottom Leachate Treatment Works,Payment to Private Contractors,403.36,BIFFA WASTE SERVICES LTD,603
Revenue,Neighbourhoods,Environmental & Regulatory Services,Waste Disposal,5105694892,07.01.2022,Lynnbottom Leachate Treatment Works,Payment to Private Contractors,"3,955.53",BIFFA WASTE SERVICES LTD,604
Revenue,Regeneration,Central Services,Support Services,5105695386,07.01.2022,Parklands,"Refuse Collection, Disposal and Recycling Costs",7.00,BIFFA WASTE SERVICES LTD,605
Revenue,Childrens Services,Children's & Education Services,Other Education and Community Budget,5105695386,07.01.2022,SEND Independent Advice & Support,"Refuse Collection, Disposal and Recycling Costs",50.90,BIFFA WASTE SERVICES LTD,606
Revenue,Neighbourhoods,Cultural and Related Services,Recreation and Sport,5105695386,07.01.2022,Seaclose Skate Park & Netball Courts,"Refuse Collection, Disposal and Recycling Costs",107.80,BIFFA WASTE SERVICES LTD,607
Revenue,Adult Services,Adult Social Care,Learning Disab Supp (to be reallocated),5105695386,07.01.2022,Plean Dene,"Refuse Collection, Disposal and Recycling Costs",221.90,BIFFA WASTE SERVICES LTD,608
Revenue,Adult Services,Adult Social Care,Learning Disab Supp (to be reallocated),5105695386,07.01.2022,Saxonbury,"Refuse Collection, Disposal and Recycling Costs",109.40,BIFFA WASTE SERVICES LTD,609
Revenue,Adult Services,Adult Social Care,Assistive Equipment & Technology,5105695386,07.01.2022,BCF Community Equipment Store,"Refuse Collection, Disposal and Recycling Costs",292.60,BIFFA WASTE SERVICES LTD,610
Revenue,Neighbourhoods,Cultural and Related Services,Recreation and Sport,5105695386,07.01.2022,Medina Leisure Centre,"Refuse Collection, Disposal and Recycling Costs",309.08,BIFFA WASTE SERVICES LTD,611
Revenue,Neighbourhoods,Highways and Transport Services,"Airports, Harbours & Toll Facilities",5105695386,07.01.2022,Ryde Harbour,"Refuse Collection, Disposal and Recycling Costs",79.68,BIFFA WASTE SERVICES LTD,612
Revenue,Childrens Services,Children's & Education Services,Children Looked After,5105695386,07.01.2022,Beaulieu House,"Refuse Collection, Disposal and Recycling Costs",207.97,BIFFA WASTE SERVICES LTD,613
Revenue,Regeneration,Central Services,Support Services,5105695386,07.01.2022,"Westridge, Ryde","Refuse Collection, Disposal and Recycling Costs",288.30,BIFFA WASTE SERVICES LTD,614
Revenue,Regeneration,Central Services,Support Services,5105695386,07.01.2022,"County Hall,Newport","Refuse Collection, Disposal and Recycling Costs",558.79,BIFFA WASTE SERVICES LTD,615
Revenue,Regeneration,Central Services,Support Services,5105695386,07.01.2022,"Jubilee Stores, Newport","Refuse Collection, Disposal and Recycling Costs",128.85,BIFFA WASTE SERVICES LTD,616
Revenue,Neighbourhoods,Cultural and Related Services,Open Spaces,5105695386,07.01.2022,Fort Victoria,"Refuse Collection, Disposal and Recycling Costs",9.10,BIFFA WASTE SERVICES LTD,617
Revenue,Neighbourhoods,Highways and Transport Services,"Airports, Harbours & Toll Facilities",5105695386,07.01.2022,Newport Harbour Account,"Refuse Collection, Disposal and Recycling Costs",222.74,BIFFA WASTE SERVICES LTD,618
Revenue,Neighbourhoods,Highways and Transport Services,"Airports, Harbours & Toll Facilities",5105695386,07.01.2022,Newport Harbour Account,"Refuse Collection, Disposal and Recycling Costs",136.50,BIFFA WASTE SERVICES LTD,619
Revenue,Neighbourhoods,Cultural and Related Services,Library Service,5105695386,07.01.2022,Public Libraries Central,"Refuse Collection, Disposal and Recycling Costs",141.45,BIFFA WASTE SERVICES LTD,620
Revenue,Neighbourhoods,Cultural and Related Services,Culture and Heritage,5105695386,07.01.2022,Cothey Bottom Store RYDE,"Refuse Collection, Disposal and Recycling Costs",144.15,BIFFA WASTE SERVICES LTD,621
Revenue,Neighbourhoods,Cultural and Related Services,Recreation and Sport,5105695386,07.01.2022,Westridge Squash Courts,"Refuse Collection, Disposal and Recycling Costs",144.15,BIFFA WASTE SERVICES LTD,622
Revenue,Childrens Services,Children's & Education Services,Management & Support Services,5105695386,07.01.2022,Specialist Service Business Admin,"Refuse Collection, Disposal and Recycling Costs",161.05,BIFFA WASTE SERVICES LTD,623
Revenue,Neighbourhoods,Environmental & Regulatory Services,Waste Disposal,5105694892,07.01.2022,Lynnbottom Landfill Site,Payment to Private Contractors,343.54,BIFFA WASTE SERVICES LTD,624
Revenue,Neighbourhoods,Environmental & Regulatory Services,Waste Disposal,5105694884,07.01.2022,Lynnbottom Landfill Site,Payment to Private Contractors,469.46,BIFFA WASTE SERVICES LTD,625
Revenue,Neighbourhoods,Environmental & Regulatory Services,"Cemetery, Cremation & Mortuary Services",5105695386,07.01.2022,Crematorium,"Refuse Collection, Disposal and Recycling Costs",227.50,BIFFA WASTE SERVICES LTD,626
Revenue,Neighbourhoods,Cultural and Related Services,Culture and Heritage,5105695386,07.01.2022,Dinosaur Isle Museum (Sandown Geology),"Refuse Collection, Disposal and Recycling Costs",36.76,BIFFA WASTE SERVICES LTD,627
Revenue,Neighbourhoods,Cultural and Related Services,Recreation and Sport,5105695386,07.01.2022,The Heights,"Refuse Collection, Disposal and Recycling Costs",203.84,BIFFA WASTE SERVICES LTD,628
Revenue,Regeneration,Central Services,Support Services,5105695386,07.01.2022,"Civic Centre,Sandown",Professional Services,86.24,BIFFA WASTE SERVICES LTD,629
Revenue,Childrens Services,Children's & Education Services,Family Support Services,5105695340,06.01.2022,S17 Child Protection,Support Children,21.15,REDACTED PERSONAL DATA,630
Revenue,Childrens Services,Children's & Education Services,Family Support Services,5105695340,06.01.2022,S17 Child Protection,Support Children,14.00,REDACTED PERSONAL DATA,631
Revenue,Childrens Services,Children's & Education Services,Family Support Services,5105695410,06.01.2022,S17 Child Protection,Support Children,-21.15,REDACTED PERSONAL DATA,632
Revenue,Childrens Services,Children's & Education Services,Family Support Services,5105695410,06.01.2022,S17 Child Protection,Support Children,-14.00,REDACTED PERSONAL DATA,633
Revenue,Childrens Services,Children's & Education Services,Children Looked After,5105696349,19.01.2022,Purchased Fostering,Charges from Independent Providers,"6,510.00",BLUE SKY FOSTERING LTD,635
Revenue,Adult Services,Adult Social Care,Support - Memory /Cognition-older people (65+),5105696214,19.01.2022,Memory & Cognition Nursing 65+,Charges from Independent Providers,"3,920.00",BLUEWATER CARE HOMES LTD,636
Capital,Place,Capital,Capital,5105696989,26.01.2022,Parks and Gardens Capital,Payment to Contractors - Capital,"23,850.00",BMM ENERGY SOLUTIONS,637
Revenue,Childrens Services,Children's & Education Services,Special Schools & Alternative Provision,5105694993,05.01.2022,Island Learning Centre,Schools ICT Learning Resources,899.00,BOARDWORKS LIMITED T/A DODDLE LEARN,638
Revenue,Childrens Services,Children's & Education Services,Special Schools & Alternative Provision,5105694996,05.01.2022,Island Learning Centre,Schools ICT Learning Resources,999.00,BOARDWORKS LIMITED T/A DODDLE LEARN,639
Revenue,Childrens Services,Children's & Education Services,Family Support Services,5105696022,14.01.2022,Short Breaks,Charges from Independent Providers,349.17,BODSTER EQUINE ASSISTED LEARN CIC,641
Revenue,Neighbourhoods,Cultural and Related Services,Library Service,5105693258,12.01.2022,Public Libraries Central,Purchase of Books,106.84,BOLINDA UK LTD,642
Revenue,Neighbourhoods,Cultural and Related Services,Library Service,5105693261,12.01.2022,Public Libraries Central,Purchase of Books,41.66,BOLINDA UK LTD,643
Revenue,Childrens Services,Adult Social Care,Social Care Activities,5105694923,12.01.2022,Adult Social Care - Workforce Development,Training,"1,295.00",BOND SOLON TRAINING LTD,644
Revenue,Adult Services,Adult Social Care,Learning Disab Supp (to be reallocated),5105697002,26.01.2022,Plean Dene,Catering Purchases,13.38,BOOKER CASH & CARRY LTD,645
Revenue,Adult Services,Adult Social Care,Learning Disab Supp (to be reallocated),5105697002,26.01.2022,Plean Dene,Catering Purchases,25.96,BOOKER CASH & CARRY LTD,646
Revenue,Adult Services,Adult Social Care,Learning Disab Supp (to be reallocated),5105695026,05.01.2022,Plean Dene,Catering Purchases,35.10,BOOKER CASH & CARRY LTD,647
Revenue,Adult Services,Adult Social Care,Learning Disab Supp (to be reallocated),5105695599,12.01.2022,Plean Dene,Catering Purchases,33.14,BOOKER CASH & CARRY LTD,648
Revenue,Adult Services,Adult Social Care,Learning Disab Supp (to be reallocated),5105695770,12.01.2022,Plean Dene,Catering Purchases,133.53,BOOKER CASH & CARRY LTD,649
Revenue,Adult Services,Adult Social Care,Learning Disab Supp (to be reallocated),5105695771,12.01.2022,Plean Dene,Catering Purchases,6.34,BOOKER CASH & CARRY LTD,650
Revenue,Adult Services,Adult Social Care,Learning Disab Supp (to be reallocated),5105695441,07.01.2022,Plean Dene,Catering Purchases,14.27,BOOKER CASH & CARRY LTD,651
Revenue,Adult Services,Adult Social Care,Learning Disab Supp (to be reallocated),5105695450,12.01.2022,Plean Dene,Catering Purchases,39.43,BOOKER CASH & CARRY LTD,652
Revenue,Adult Services,Adult Social Care,Learning Disab Supp (to be reallocated),5105697294,28.01.2022,Plean Dene,Catering Purchases,115.98,BOOKER CASH & CARRY LTD,653
Revenue,Adult Services,Adult Social Care,Learning Disab Supp (to be reallocated),5105697294,28.01.2022,Plean Dene,Catering Purchases,16.57,BOOKER CASH & CARRY LTD,654
Revenue,Adult Services,Adult Social Care,Learning Disab Supp (to be reallocated),5105697297,28.01.2022,Plean Dene,Catering Purchases,13.60,BOOKER CASH & CARRY LTD,655
Revenue,Adult Services,Adult Social Care,Learning Disab Supp (to be reallocated),5105696294,19.01.2022,Plean Dene,Catering Purchases,15.94,BOOKER CASH & CARRY LTD,656
Revenue,Adult Services,Adult Social Care,Learning Disab Supp (to be reallocated),5105696678,21.01.2022,Plean Dene,Catering Purchases,104.70,BOOKER CASH & CARRY LTD,657
Revenue,Adult Services,Adult Social Care,Learning Disab Supp (to be reallocated),5105696678,21.01.2022,Plean Dene,Catering Purchases,11.59,BOOKER CASH & CARRY LTD,658
Revenue,Adult Services,Adult Social Care,Learning Disab Supp (to be reallocated),5105695115,12.01.2022,Plean Dene,Catering Purchases,143.15,BOOKER CASH & CARRY LTD,659
Revenue,Adult Services,Adult Social Care,Learning Disab Supp (to be reallocated),5105695116,05.01.2022,Plean Dene,Catering Purchases,12.08,BOOKER CASH & CARRY LTD,660
Revenue,Childrens Services,Children's & Education Services,Family Support Services,5105696986,26.01.2022,S17 Child Protection,Professional Services,70.00,BOSTICO INTERNATIONAL,661
Revenue,Adult Services,Adult Social Care,Social Care Activities,5105694588,07.01.2022,Safeguarding Adults,Professional Services,275.97,BOSTICO INTERNATIONAL,662
Revenue,Childrens Services,Adult Social Care,Social Care Activities,5105695108,12.01.2022,Adult Social Care - Workforce Development,Training,625.00,BOURNEMOUTH UNIVERSITY,663
Revenue,Childrens Services,Adult Social Care,Social Care Activities,5105694877,07.01.2022,Adult Social Care - Workforce Development,Training,"5,500.00",BOURNEMOUTH UNIVERSITY,664
Revenue,Resources,Central Services,Support Services,5105696767,26.01.2022,ICT Contracts,Computer Maintenance,"9,865.00",BRAMBLE HUB LIMITED,666
Revenue,Adult Services,Housing Services,Homelessness,5105696813,26.01.2022,Private Rented Sector Leasing Scheme,Accommodation Costs - Leaseholder Payments,216.66,BRAMBLE LETTINGS,667
Revenue,Adult Services,Housing Services,Homelessness,5105696813,26.01.2022,Private Rented Sector Leasing Scheme,Accommodation Costs - Leaseholder Payments,746.81,BRAMBLE LETTINGS,668
Revenue,Adult Services,Housing Services,Homelessness,5105696813,26.01.2022,Private Rented Sector Leasing Scheme,Accommodation Costs - Leaseholder Payments,746.81,BRAMBLE LETTINGS,669
Revenue,Adult Services,Housing Services,Homelessness,5105696813,26.01.2022,Private Rented Sector Leasing Scheme,Accommodation Costs - Leaseholder Payments,746.81,BRAMBLE LETTINGS,670
Revenue,Adult Services,Housing Services,Homelessness,5105696813,26.01.2022,Private Rented Sector Leasing Scheme,Accommodation Costs - Leaseholder Payments,746.81,BRAMBLE LETTINGS,671
Revenue,Adult Services,Housing Services,Homelessness,5105696813,26.01.2022,Private Rented Sector Leasing Scheme,Accommodation Costs - Leaseholder Payments,746.81,BRAMBLE LETTINGS,672
Revenue,Adult Services,Housing Services,Homelessness,5105696813,26.01.2022,Private Rented Sector Leasing Scheme,Accommodation Costs - Leaseholder Payments,588.38,BRAMBLE LETTINGS,673
Revenue,Adult Services,Housing Services,Homelessness,5105696813,26.01.2022,Private Rented Sector Leasing Scheme,Accommodation Costs - Leaseholder Payments,588.38,BRAMBLE LETTINGS,674
Revenue,Adult Services,Housing Services,Homelessness,5105696813,26.01.2022,Private Rented Sector Leasing Scheme,Accommodation Costs - Leaseholder Payments,588.38,BRAMBLE LETTINGS,675
Revenue,Adult Services,Housing Services,Homelessness,5105696813,26.01.2022,Private Rented Sector Leasing Scheme,Accommodation Costs - Leaseholder Payments,588.38,BRAMBLE LETTINGS,676
Revenue,Adult Services,Housing Services,Homelessness,5105696813,26.01.2022,Private Rented Sector Leasing Scheme,Accommodation Costs - Leaseholder Payments,588.38,BRAMBLE LETTINGS,677
Revenue,Adult Services,Housing Services,Homelessness,5105696813,26.01.2022,Private Rented Sector Leasing Scheme,Accommodation Costs - Leaseholder Payments,746.81,BRAMBLE LETTINGS,678
Revenue,Adult Services,Housing Services,Homelessness,5105696813,26.01.2022,Private Rented Sector Leasing Scheme,Accommodation Costs - Leaseholder Payments,588.38,BRAMBLE LETTINGS,679
Revenue,Adult Services,Housing Services,Homelessness,5105696813,26.01.2022,Private Rented Sector Leasing Scheme,Accommodation Costs - Leaseholder Payments,746.81,BRAMBLE LETTINGS,680
Revenue,Adult Services,Housing Services,Homelessness,5105696813,26.01.2022,Private Rented Sector Leasing Scheme,Accommodation Costs - Leaseholder Payments,769.43,BRAMBLE LETTINGS,681
Revenue,Adult Services,Housing Services,Homelessness,5105696813,26.01.2022,Private Rented Sector Leasing Scheme,Accommodation Costs - Leaseholder Payments,746.81,BRAMBLE LETTINGS,682
Revenue,Adult Services,Housing Services,Homelessness,5105696813,26.01.2022,Private Rented Sector Leasing Scheme,Accommodation Costs - Leaseholder Payments,746.81,BRAMBLE LETTINGS,683
Revenue,Adult Services,Housing Services,Homelessness,5105696813,26.01.2022,Private Rented Sector Leasing Scheme,Accommodation Costs - Leaseholder Payments,746.81,BRAMBLE LETTINGS,684
Revenue,Adult Services,Housing Services,Homelessness,5105696813,26.01.2022,Private Rented Sector Leasing Scheme,Accommodation Costs - Leaseholder Payments,746.81,BRAMBLE LETTINGS,685
Revenue,Adult Services,Housing Services,Homelessness,5105696813,26.01.2022,Private Rented Sector Leasing Scheme,Accommodation Costs - Leaseholder Payments,746.81,BRAMBLE LETTINGS,686
Revenue,Adult Services,Housing Services,Homelessness,5105696813,26.01.2022,Private Rented Sector Leasing Scheme,Accommodation Costs - Leaseholder Payments,746.81,BRAMBLE LETTINGS,687
Revenue,Adult Services,Housing Services,Homelessness,5105696813,26.01.2022,Private Rented Sector Leasing Scheme,Accommodation Costs - Leaseholder Payments,746.81,BRAMBLE LETTINGS,688
Revenue,Adult Services,Housing Services,Homelessness,5105696813,26.01.2022,Private Rented Sector Leasing Scheme,Accommodation Costs - Leaseholder Payments,746.81,BRAMBLE LETTINGS,689
Revenue,Adult Services,Housing Services,Homelessness,5105696813,26.01.2022,Private Rented Sector Leasing Scheme,Accommodation Costs - Leaseholder Payments,281.66,BRAMBLE LETTINGS,690
Capital,Place,Capital,Capital,5105695713,12.01.2022,Parks and Gardens Capital,Payment to Contractors - Capital,"1,909.00",BRIGHSTONE LANDSCAPING LTD,692
Revenue,Neighbourhoods,Environmental & Regulatory Services,(Street) Cleansing (not highways),5105696979,26.01.2022,Beach Cleaning,Payment to Private Contractors,90.00,BRIGHSTONE LANDSCAPING LTD,693
Revenue,Neighbourhoods,Environmental & Regulatory Services,(Street) Cleansing (not highways),5105696983,26.01.2022,Beach Cleaning,Payment to Private Contractors,140.00,BRIGHSTONE LANDSCAPING LTD,694
Revenue,Neighbourhoods,Environmental & Regulatory Services,(Street) Cleansing (not highways),5105696983,26.01.2022,Beach Cleaning,Payment to Private Contractors,70.00,BRIGHSTONE LANDSCAPING LTD,695
Revenue,Neighbourhoods,Environmental & Regulatory Services,(Street) Cleansing (not highways),5105695709,12.01.2022,Beach Cleaning,Payment to Private Contractors,380.00,BRIGHSTONE LANDSCAPING LTD,696
Revenue,Neighbourhoods,Environmental & Regulatory Services,(Street) Cleansing (not highways),5105694799,05.01.2022,Beach Cleaning,Payment to Private Contractors,60.00,BRIGHSTONE LANDSCAPING LTD,697
Revenue,Neighbourhoods,Environmental & Regulatory Services,(Street) Cleansing (not highways),5105695068,14.01.2022,Beach Cleaning,Beach Management Contract,"1,476.00",BRIGHSTONE LANDSCAPING LTD,698
Revenue,Neighbourhoods,Environmental & Regulatory Services,(Street) Cleansing (not highways),5105696975,26.01.2022,Beach Cleaning,Beach Management Contract,"1,476.00",BRIGHSTONE LANDSCAPING LTD,699
Capital,Resources,Capital,Capital,5105695364,12.01.2022,Management of Asbestos,Payment to Contractors - Capital,"8,173.70",BRIGHT SPARKS VENTURES LTD,700
Revenue,Resources,Central Services,Support Services,5105697402,28.01.2022,Staff Benefits,Payment to Private Contractors,35.00,KCT CHILDCARE LIMITED,701
Revenue,Neighbourhoods,Cultural and Related Services,Culture and Heritage,5105697003,26.01.2022,Dinosaur Isle Museum (Sandown Geology),Stock Purchases,286.29,BRITISH FOSSILS/GIFTSTONES LIMITED,702
Revenue,Childrens Services,Children's & Education Services,Children Looked After,5105697038,26.01.2022,Leaving Care Costs,Payments to/Aid Provided to Clients,100.00,BRITISH HEART FOUNDATION,703
Revenue,Childrens Services,Children's & Education Services,Children Looked After,5105696861,26.01.2022,Leaving Care Costs,Payments to/Aid Provided to Clients,195.00,BRITISH HEART FOUNDATION,704
Revenue,Childrens Services,Children's & Education Services,Children Looked After,5105696867,26.01.2022,Leaving Care Costs,Payments to/Aid Provided to Clients,440.00,BRITISH HEART FOUNDATION,705
Revenue,Adult Services,Adult Social Care,Learning Disability Suppt-adults (18-64),5105696125,19.01.2022,Learning Disability Residential 18-64,Charges from Independent Providers,"7,192.92",BROADHAM CARE LTD,706
Revenue,Childrens Services,Children's & Education Services,Children Looked After,5105697207,28.01.2022,In-house Fostering,Boarding Out Allowances,337.35,REDACTED PERSONAL DATA,708
Revenue,Childrens Services,Children's & Education Services,Children Looked After,5105695948,14.01.2022,In-house Fostering,Boarding Out Allowances,337.35,REDACTED PERSONAL DATA,709
Revenue,Childrens Services,Children's & Education Services,Children Looked After,5105695321,07.01.2022,In-house Fostering,Boarding Out Allowances,337.35,REDACTED PERSONAL DATA,710
Revenue,Childrens Services,Children's & Education Services,Children Looked After,5105696621,21.01.2022,In-house Fostering,Boarding Out Allowances,337.35,REDACTED PERSONAL DATA,711
Revenue,Childrens Services,Children's & Education Services,Other Education and Community Budget,5105696458,19.01.2022,School Land Transfers,Legal Fees - Other Parties,350.00,BRUTTON & CO,712
Revenue,Childrens Services,Children's & Education Services,Other Education and Community Budget,5105695113,05.01.2022,School Land Transfers,Legal Fees - Other Parties,"1,000.00",BRUTTON & CO,713
Revenue,Adult Services,Adult Social Care,Social Support -Substance Misuse Support,5105696167,19.01.2022,Substance Misuse Residential,Charges from Independent Providers,"2,151.52",BUCKLAND CARE LTD,714
Revenue,Adult Services,Adult Social Care,Mental Health Support-older people (65+),5105696167,19.01.2022,Mental Health Residential 65+,Charges from Independent Providers,"2,151.52",BUCKLAND CARE LTD,715
Revenue,Adult Services,Central Services,Emergency Planning,5105695497,12.01.2022,NHS C19 Residential,Charges from Independent Providers,"3,240.16",BUCKLAND CARE LTD,716
Revenue,Adult Services,Adult Social Care,Support - Memory /Cognition-older people (65+),5105696167,19.01.2022,Memory & Cognition Residential 65+,Charges from Independent Providers,"2,529.52",BUCKLAND CARE LTD,717
Revenue,Adult Services,Adult Social Care,Support - Memory /Cognition-older people (65+),5105696167,19.01.2022,Memory & Cognition Residential 65+,Charges from Independent Providers,"2,529.52",BUCKLAND CARE LTD,718
Revenue,Adult Services,Adult Social Care,Support - Memory /Cognition-older people (65+),5105696167,19.01.2022,Memory & Cognition Residential 65+,Charges from Independent Providers,"2,151.52",BUCKLAND CARE LTD,719
Revenue,Adult Services,Adult Social Care,Support - Memory /Cognition-older people (65+),5105696167,19.01.2022,Memory & Cognition Residential 65+,Charges from Independent Providers,"2,151.52",BUCKLAND CARE LTD,720
Revenue,Adult Services,Adult Social Care,Support - Memory /Cognition-older people (65+),5105696167,19.01.2022,Memory & Cognition Residential 65+,Charges from Independent Providers,"2,151.52",BUCKLAND CARE LTD,721
Revenue,Adult Services,Adult Social Care,Learning Disability Support-older people,5105696167,19.01.2022,Learning Disability Residential 65+,Charges from Independent Providers,"2,529.52",BUCKLAND CARE LTD,723
Revenue,Adult Services,Adult Social Care,Mental Health Support - adults (18-64),5105695803,14.01.2022,Mental Health Residential 18-64,Charges from Independent Providers,"3,228.72",BUCKLAND CARE LTD,724
Revenue,Adult Services,Adult Social Care,Mental Health Support - adults (18-64),5105695803,14.01.2022,Mental Health Residential 18-64,Charges from Independent Providers,"3,008.58",BUCKLAND CARE LTD,725
Revenue,Adult Services,Adult Social Care,Social Support - Support for Carer,5105696167,19.01.2022,Carers Residential,Charges from Independent Providers,"2,529.52",BUCKLAND CARE LTD,726
Revenue,Adult Services,Adult Social Care,Social Support - Support for Carer,5105696167,19.01.2022,Carers Residential,Charges from Independent Providers,"2,529.52",BUCKLAND CARE LTD,727
Revenue,Adult Services,Adult Social Care,Physical Support - older people (65+),5105696167,19.01.2022,Physical Support Residential 65+,Charges from Independent Providers,"2,054.64",BUCKLAND CARE LTD,728
Revenue,Adult Services,Adult Social Care,Physical Support - older people (65+),5105696167,19.01.2022,Physical Support Residential 65+,Charges from Independent Providers,"2,529.52",BUCKLAND CARE LTD,729
Revenue,Adult Services,Adult Social Care,Physical Support - older people (65+),5105696167,19.01.2022,Physical Support Residential 65+,Charges from Independent Providers,"2,054.64",BUCKLAND CARE LTD,730
Revenue,Adult Services,Adult Social Care,Physical Support - older people (65+),5105696167,19.01.2022,Physical Support Residential 65+,Charges from Independent Providers,"2,054.64",BUCKLAND CARE LTD,731
Revenue,Adult Services,Adult Social Care,Physical Support - older people (65+),5105696167,19.01.2022,Physical Support Residential 65+,Charges from Independent Providers,"2,529.52",BUCKLAND CARE LTD,732
Revenue,Adult Services,Adult Social Care,Physical Support - older people (65+),5105696167,19.01.2022,Physical Support Residential 65+,Charges from Independent Providers,"2,054.64",BUCKLAND CARE LTD,733
Revenue,Adult Services,Adult Social Care,Physical Support - older people (65+),5105696167,19.01.2022,Physical Support Residential 65+,Charges from Independent Providers,"2,054.64",BUCKLAND CARE LTD,734
Revenue,Adult Services,Adult Social Care,Physical Support - older people (65+),5105696167,19.01.2022,Physical Support Residential 65+,Charges from Independent Providers,"2,529.52",BUCKLAND CARE LTD,735
Revenue,Adult Services,Adult Social Care,Physical Support - older people (65+),5105696167,19.01.2022,Physical Support Residential 65+,Charges from Independent Providers,"2,151.52",BUCKLAND CARE LTD,736
Revenue,Adult Services,Adult Social Care,Physical Support - older people (65+),5105696167,19.01.2022,Physical Support Residential 65+,Charges from Independent Providers,"2,529.52",BUCKLAND CARE LTD,737
Revenue,Adult Services,Adult Social Care,Physical Support - older people (65+),5105696167,19.01.2022,Physical Support Residential 65+,Charges from Independent Providers,"2,529.52",BUCKLAND CARE LTD,738
Revenue,Adult Services,Adult Social Care,Physical Support - older people (65+),5105696167,19.01.2022,Physical Support Residential 65+,Charges from Independent Providers,"2,529.52",BUCKLAND CARE LTD,739
Revenue,Adult Services,Adult Social Care,Physical Support - older people (65+),5105696167,19.01.2022,Physical Support Residential 65+,Charges from Independent Providers,"2,529.52",BUCKLAND CARE LTD,740
Revenue,Adult Services,Adult Social Care,Physical Support - older people (65+),5105696167,19.01.2022,Physical Support Residential 65+,Charges from Independent Providers,"2,529.52",BUCKLAND CARE LTD,741
Revenue,Adult Services,Adult Social Care,Physical Support - older people (65+),5105696167,19.01.2022,Physical Support Residential 65+,Charges from Independent Providers,"2,529.52",BUCKLAND CARE LTD,742
Revenue,Adult Services,Adult Social Care,Physical Support - older people (65+),5105696167,19.01.2022,Physical Support Residential 65+,Charges from Independent Providers,"2,529.52",BUCKLAND CARE LTD,743
Revenue,Adult Services,Adult Social Care,Physical Support - older people (65+),5105696167,19.01.2022,Physical Support Residential 65+,Charges from Independent Providers,"2,529.52",BUCKLAND CARE LTD,744
Revenue,Adult Services,Adult Social Care,Physical Support - older people (65+),5105696167,19.01.2022,Physical Support Residential 65+,Charges from Independent Providers,"2,529.52",BUCKLAND CARE LTD,745
Revenue,Adult Services,Adult Social Care,Physical Support - older people (65+),5105695497,12.01.2022,Physical Support Residential 65+,Charges from Independent Providers,"4,426.66",BUCKLAND CARE LTD,746
Revenue,Adult Services,Adult Social Care,Physical Support - older people (65+),5105695497,12.01.2022,Physical Support Residential 65+,Charges from Independent Providers,"7,407.88",BUCKLAND CARE LTD,747
Revenue,Adult Services,Adult Social Care,Physical Support - older people (65+),5105695497,12.01.2022,Physical Support Residential 65+,Charges from Independent Providers,"7,949.92",BUCKLAND CARE LTD,748
Revenue,Adult Services,Adult Social Care,Physical Support - older people (65+),5105695497,12.01.2022,Physical Support Residential 65+,Charges from Independent Providers,"1,264.76",BUCKLAND CARE LTD,749
Revenue,Adult Services,Adult Social Care,Physical Support - older people (65+),5105696877,26.01.2022,Physical Support Residential 65+,Charges from Independent Providers,"7,136.86",BUCKLAND CARE LTD,750
Revenue,Adult Services,Central Services,Emergency Planning,5105696477,21.01.2022,NHS C19 Nursing,Charges from Independent Providers,"4,580.24",BUCKLAND CARE LTD,751
Revenue,Adult Services,Adult Social Care,Commissioning & Service Delivery,5105696157,19.01.2022,"Funded Nursing Care, Registered Nursing Care Contribution",Charges from Independent Providers,750.40,BUCKLAND CARE LTD,752
Revenue,Adult Services,Adult Social Care,Commissioning & Service Delivery,5105696157,19.01.2022,"Funded Nursing Care, Registered Nursing Care Contribution",Charges from Independent Providers,750.40,BUCKLAND CARE LTD,753
Revenue,Adult Services,Adult Social Care,Commissioning & Service Delivery,5105696157,19.01.2022,"Funded Nursing Care, Registered Nursing Care Contribution",Charges from Independent Providers,750.40,BUCKLAND CARE LTD,754
Revenue,Adult Services,Adult Social Care,Commissioning & Service Delivery,5105696157,19.01.2022,"Funded Nursing Care, Registered Nursing Care Contribution",Charges from Independent Providers,750.40,BUCKLAND CARE LTD,755
Revenue,Adult Services,Adult Social Care,Support - Memory /Cognition-older people (65+),5105696157,19.01.2022,Memory & Cognition Residential 65+,Charges from Independent Providers,"2,529.52",BUCKLAND CARE LTD,756
Revenue,Adult Services,Adult Social Care,Learning Disability Suppt-adults (18-64),5105696157,19.01.2022,Learning Disability Nursing 18-64,Charges from Independent Providers,"5,712.00",BUCKLAND CARE LTD,757
Revenue,Adult Services,Adult Social Care,Learning Disability Suppt-adults (18-64),5105696157,19.01.2022,Learning Disability Nursing 18-64,Charges from Independent Providers,"2,835.00",BUCKLAND CARE LTD,758
Revenue,Adult Services,Adult Social Care,Commissioning & Service Delivery,5105697014,26.01.2022,FNC IWC funded clients,Charges from Independent Providers,"1,098.80",BUCKLAND CARE LTD,759
Revenue,Adult Services,Adult Social Care,Commissioning & Service Delivery,5105696425,19.01.2022,FNC IWC funded clients,Charges from Independent Providers,"4,050.00",BUCKLAND CARE LTD,760
Revenue,Adult Services,Adult Social Care,Commissioning & Service Delivery,5105695800,14.01.2022,FNC IWC funded clients,Charges from Independent Providers,101.25,BUCKLAND CARE LTD,761
Revenue,Adult Services,Adult Social Care,Commissioning & Service Delivery,5105696157,19.01.2022,FNC IWC funded clients,Regular Respite Care,750.40,BUCKLAND CARE LTD,762
Revenue,Adult Services,Adult Social Care,Commissioning & Service Delivery,5105696157,19.01.2022,FNC IWC funded clients,Charges from Independent Providers,750.40,BUCKLAND CARE LTD,763
Revenue,Adult Services,Adult Social Care,Commissioning & Service Delivery,5105696157,19.01.2022,FNC IWC funded clients,Charges from Independent Providers,750.40,BUCKLAND CARE LTD,764
Revenue,Adult Services,Adult Social Care,Commissioning & Service Delivery,5105696157,19.01.2022,FNC IWC funded clients,Charges from Independent Providers,750.40,BUCKLAND CARE LTD,765
Revenue,Adult Services,Adult Social Care,Commissioning & Service Delivery,5105696157,19.01.2022,FNC IWC funded clients,Charges from Independent Providers,750.40,BUCKLAND CARE LTD,766
Revenue,Adult Services,Adult Social Care,Commissioning & Service Delivery,5105696157,19.01.2022,FNC IWC funded clients,Charges from Independent Providers,750.40,BUCKLAND CARE LTD,767
Revenue,Adult Services,Adult Social Care,Commissioning & Service Delivery,5105696157,19.01.2022,FNC IWC funded clients,Charges from Independent Providers,750.40,BUCKLAND CARE LTD,768
Revenue,Adult Services,Adult Social Care,Commissioning & Service Delivery,5105696157,19.01.2022,FNC IWC funded clients,Charges from Independent Providers,750.40,BUCKLAND CARE LTD,769
Revenue,Adult Services,Adult Social Care,Commissioning & Service Delivery,5105696157,19.01.2022,FNC IWC funded clients,Charges from Independent Providers,750.40,BUCKLAND CARE LTD,770
Revenue,Adult Services,Adult Social Care,Commissioning & Service Delivery,5105696157,19.01.2022,FNC IWC funded clients,Charges from Independent Providers,750.40,BUCKLAND CARE LTD,771
Revenue,Adult Services,Adult Social Care,Commissioning & Service Delivery,5105696157,19.01.2022,FNC IWC funded clients,Charges from Independent Providers,750.40,BUCKLAND CARE LTD,772
Revenue,Adult Services,Adult Social Care,Commissioning & Service Delivery,5105696157,19.01.2022,FNC IWC funded clients,Charges from Independent Providers,750.40,BUCKLAND CARE LTD,773
Revenue,Adult Services,Adult Social Care,Physical Support - older people (65+),5105696157,19.01.2022,Physical Support Nursing 65+,Charges from Independent Providers,"2,835.00",BUCKLAND CARE LTD,774
Revenue,Adult Services,Adult Social Care,Physical Support - older people (65+),5105696157,19.01.2022,Physical Support Nursing 65+,Charges from Independent Providers,"2,835.00",BUCKLAND CARE LTD,775
Revenue,Adult Services,Adult Social Care,Physical Support - older people (65+),5105696157,19.01.2022,Physical Support Nursing 65+,Charges from Independent Providers,"2,835.00",BUCKLAND CARE LTD,776
Revenue,Adult Services,Adult Social Care,Physical Support - older people (65+),5105696157,19.01.2022,Physical Support Nursing 65+,Charges from Independent Providers,"2,835.00",BUCKLAND CARE LTD,777
Revenue,Adult Services,Adult Social Care,Physical Support - older people (65+),5105696157,19.01.2022,Physical Support Nursing 65+,Charges from Independent Providers,"2,835.00",BUCKLAND CARE LTD,778
Revenue,Adult Services,Adult Social Care,Physical Support - older people (65+),5105696157,19.01.2022,Physical Support Nursing 65+,Charges from Independent Providers,"2,835.00",BUCKLAND CARE LTD,779
Revenue,Adult Services,Adult Social Care,Physical Support - older people (65+),5105696157,19.01.2022,Physical Support Nursing 65+,Charges from Independent Providers,"2,835.00",BUCKLAND CARE LTD,780
Revenue,Adult Services,Adult Social Care,Physical Support - older people (65+),5105696157,19.01.2022,Physical Support Nursing 65+,Charges from Independent Providers,"2,835.00",BUCKLAND CARE LTD,781
Revenue,Adult Services,Adult Social Care,Physical Support - older people (65+),5105696425,19.01.2022,Physical Support Nursing 65+,Charges from Independent Providers,"4,050.00",BUCKLAND CARE LTD,782
Revenue,Adult Services,Adult Social Care,Physical Support - older people (65+),5105697014,26.01.2022,Physical Support Nursing 65+,Charges from Independent Providers,"4,151.25",BUCKLAND CARE LTD,783
Revenue,Adult Services,Adult Social Care,Commissioning & Service Delivery,5105695800,14.01.2022,CHC Nursing Care,Charges from Independent Providers,"5,634.20",BUCKLAND CARE LTD,784
Revenue,Adult Services,Adult Social Care,Commissioning & Service Delivery,5105696157,19.01.2022,CHC Nursing Care,Charges from Independent Providers,"3,585.40",BUCKLAND CARE LTD,785
Revenue,Adult Services,Adult Social Care,Commissioning & Service Delivery,5105696157,19.01.2022,CHC Nursing Care,Charges from Independent Providers,"14,985.60",BUCKLAND CARE LTD,786
Revenue,Adult Services,Adult Social Care,Commissioning & Service Delivery,5105696157,19.01.2022,CHC Nursing Care,Charges from Independent Providers,"3,585.40",BUCKLAND CARE LTD,787
Revenue,Adult Services,Adult Social Care,Commissioning & Service Delivery,5105696157,19.01.2022,CHC Nursing Care,Charges from Independent Providers,"3,585.40",BUCKLAND CARE LTD,788
Revenue,Adult Services,Adult Social Care,Commissioning & Service Delivery,5105696157,19.01.2022,CHC Nursing Care,Charges from Independent Providers,"3,585.40",BUCKLAND CARE LTD,789
Revenue,Adult Services,Adult Social Care,Commissioning & Service Delivery,5105696157,19.01.2022,CHC Nursing Care,Charges from Independent Providers,"3,585.40",BUCKLAND CARE LTD,790
Revenue,Adult Services,Adult Social Care,Commissioning & Service Delivery,5105696157,19.01.2022,CHC Nursing Care,Charges from Independent Providers,"3,585.40",BUCKLAND CARE LTD,791
Revenue,Adult Services,Adult Social Care,Commissioning & Service Delivery,5105696157,19.01.2022,CHC Nursing Care,Charges from Independent Providers,"3,585.40",BUCKLAND CARE LTD,792
Revenue,Adult Services,Adult Social Care,Commissioning & Service Delivery,5105696157,19.01.2022,CHC Nursing Care,Charges from Independent Providers,"11,424.00",BUCKLAND CARE LTD,793
Revenue,Adult Services,Adult Social Care,Physical Support - adults (18-64),5105696157,19.01.2022,Physical Support Nursing 18-64,Charges from Independent Providers,"2,835.00",BUCKLAND CARE LTD,794
Revenue,Adult Services,Adult Social Care,Physical Support - older people (65+),5105695800,14.01.2022,Physical Support Nursing 65+,Charges from Independent Providers,26.80,BUCKLAND CARE LTD,795
Revenue,Adult Services,Adult Social Care,Physical Support - older people (65+),5105696157,19.01.2022,Physical Support Residential 65+,Charges from Independent Providers,"2,529.52",BUCKLAND CARE LTD,796
Revenue,Adult Services,Adult Social Care,Support - Memory /Cognition-older people (65+),5105696157,19.01.2022,Memory & Cognition Nursing 65+,Regular Respite Care,"2,835.00",BUCKLAND CARE LTD,797
Revenue,Adult Services,Adult Social Care,Support - Memory /Cognition-older people (65+),5105696157,19.01.2022,Memory & Cognition Nursing 65+,Charges from Independent Providers,"2,835.00",BUCKLAND CARE LTD,798
Revenue,Adult Services,Adult Social Care,Physical Support - older people (65+),5105696279,19.01.2022,Physical Support Residential 65+,Charges from Independent Providers,"1,897.14",BUCKLAND CARE LTD,799
Revenue,Adult Services,Adult Social Care,Physical Support - older people (65+),5105696279,19.01.2022,Physical Support Residential 65+,Charges from Independent Providers,"2,529.52",BUCKLAND CARE LTD,800
Revenue,Adult Services,Adult Social Care,Physical Support - older people (65+),5105696425,19.01.2022,Physical Support Residential 65+,Charges from Independent Providers,"12,918.62",BUCKLAND CARE LTD,801
Revenue,Regeneration,Planning services,Environmental Initiatives,5105695676,12.01.2022,IOW Catchment Partnership,Payment to Private Contractors,155.00,BUN SYMES CONTRACTING,802
Revenue,Adult Services,Adult Social Care,Physical Support - older people (65+),5105696178,19.01.2022,Physical Support Nursing 65+,Charges from Independent Providers,"3,953.88",BUPA CARE HOME (BNH) LTD,803
Capital,Place,Capital,Capital,5105697436,28.01.2022,Parks and Gardens Capital,External Design and Supervision Fees,"1,250.00",BUREAU VERITAS BUILDING CONTROL UK,804
Revenue,Neighbourhoods,Environmental & Regulatory Services,Regulatory Services,5105696685,21.01.2022,Environmental Health - Environmental Regulation & Protection,Professional Services,"1,076.80",BUREAU VERITAS UK LTD,805
Revenue,Regeneration,Planning services,Economic Development,5105696681,21.01.2022,Regeneration Communications,Advertising & Publicity,"2,000.00",BUSINESS SOUTH LIMITED,806
Revenue,Childrens Services,Children's & Education Services,Children Looked After,5105697218,28.01.2022,Leaving Care Costs,Support Children,19.99,REDACTED PERSONAL DATA,807
Revenue,Childrens Services,Children's & Education Services,Children Looked After,5105697091,28.01.2022,Special Guardianship Order Costs,Support Children,199.98,REDACTED PERSONAL DATA,808
Revenue,Childrens Services,Children's & Education Services,Children Looked After,5105695832,14.01.2022,Special Guardianship Order Costs,Support Children,199.98,REDACTED PERSONAL DATA,809
Revenue,Childrens Services,Children's & Education Services,Children Looked After,5105696507,21.01.2022,Special Guardianship Order Costs,Support Children,199.98,REDACTED PERSONAL DATA,810
Revenue,Childrens Services,Children's & Education Services,Children Looked After,5105695206,07.01.2022,Special Guardianship Order Costs,Support Children,199.98,REDACTED PERSONAL DATA,811
Revenue,Childrens Services,Children's & Education Services,Children Looked After,5105697115,28.01.2022,Children placed with Family&Friends,Boarding Out Allowances,247.89,REDACTED PERSONAL DATA,812
Revenue,Childrens Services,Children's & Education Services,Children Looked After,5105696531,21.01.2022,Children placed with Family&Friends,Boarding Out Allowances,247.89,REDACTED PERSONAL DATA,813
Revenue,Childrens Services,Children's & Education Services,Children Looked After,5105695856,14.01.2022,Children placed with Family&Friends,Boarding Out Allowances,247.89,REDACTED PERSONAL DATA,814
Revenue,Childrens Services,Children's & Education Services,Children Looked After,5105695230,07.01.2022,Children placed with Family&Friends,Boarding Out Allowances,247.89,REDACTED PERSONAL DATA,815
Revenue,Childrens Services,Children's & Education Services,Children Looked After,5105695850,14.01.2022,Adoption Costs,Support Children,200.83,REDACTED PERSONAL DATA,816
Revenue,Childrens Services,Children's & Education Services,Children Looked After,5105695850,14.01.2022,Adoption Costs,Support Children,168.09,REDACTED PERSONAL DATA,817
Revenue,Childrens Services,Children's & Education Services,Children Looked After,5105697109,28.01.2022,Adoption Costs,Support Children,200.83,REDACTED PERSONAL DATA,818
Revenue,Childrens Services,Children's & Education Services,Children Looked After,5105697109,28.01.2022,Adoption Costs,Support Children,168.09,REDACTED PERSONAL DATA,819
Revenue,Childrens Services,Children's & Education Services,Children Looked After,5105695224,07.01.2022,Adoption Costs,Support Children,200.83,REDACTED PERSONAL DATA,820
Revenue,Childrens Services,Children's & Education Services,Children Looked After,5105695224,07.01.2022,Adoption Costs,Support Children,168.09,REDACTED PERSONAL DATA,821
Revenue,Childrens Services,Children's & Education Services,Children Looked After,5105696525,21.01.2022,Adoption Costs,Support Children,200.83,REDACTED PERSONAL DATA,822
Revenue,Childrens Services,Children's & Education Services,Children Looked After,5105696525,21.01.2022,Adoption Costs,Support Children,168.09,REDACTED PERSONAL DATA,823
Revenue,Childrens Services,Children's & Education Services,Children Looked After,5105697098,28.01.2022,Special Guardianship Order Costs,Support Children,31.36,REDACTED PERSONAL DATA,824
Revenue,Childrens Services,Children's & Education Services,Children Looked After,5105695839,14.01.2022,Special Guardianship Order Costs,Support Children,31.36,REDACTED PERSONAL DATA,825
Revenue,Childrens Services,Children's & Education Services,Children Looked After,5105696514,21.01.2022,Special Guardianship Order Costs,Support Children,31.36,REDACTED PERSONAL DATA,826
Revenue,Childrens Services,Children's & Education Services,Children Looked After,5105695213,07.01.2022,Special Guardianship Order Costs,Support Children,31.36,REDACTED PERSONAL DATA,827
Revenue,Childrens Services,Children's & Education Services,Children Looked After,5105696529,21.01.2022,In-house Fostering,Boarding Out Allowances,337.35,REDACTED PERSONAL DATA,828
Revenue,Childrens Services,Children's & Education Services,Children Looked After,5105696529,21.01.2022,In-house Fostering,Boarding Out Allowances,247.89,REDACTED PERSONAL DATA,829
Revenue,Childrens Services,Children's & Education Services,Children Looked After,5105696529,21.01.2022,In-house Fostering,Boarding Out Allowances,247.89,REDACTED PERSONAL DATA,830
Revenue,Childrens Services,Children's & Education Services,Children Looked After,5105697113,28.01.2022,In-house Fostering,Boarding Out Allowances,337.35,REDACTED PERSONAL DATA,831
Revenue,Childrens Services,Children's & Education Services,Children Looked After,5105697113,28.01.2022,In-house Fostering,Boarding Out Allowances,247.89,REDACTED PERSONAL DATA,832
Revenue,Childrens Services,Children's & Education Services,Children Looked After,5105697113,28.01.2022,In-house Fostering,Boarding Out Allowances,247.89,REDACTED PERSONAL DATA,833
Revenue,Childrens Services,Children's & Education Services,Children Looked After,5105695854,14.01.2022,In-house Fostering,Boarding Out Allowances,337.35,REDACTED PERSONAL DATA,834
Revenue,Childrens Services,Children's & Education Services,Children Looked After,5105695854,14.01.2022,In-house Fostering,Boarding Out Allowances,247.89,REDACTED PERSONAL DATA,835
Revenue,Childrens Services,Children's & Education Services,Children Looked After,5105695854,14.01.2022,In-house Fostering,Boarding Out Allowances,247.89,REDACTED PERSONAL DATA,836
Revenue,Childrens Services,Children's & Education Services,Children Looked After,5105695228,07.01.2022,In-house Fostering,Boarding Out Allowances,337.35,REDACTED PERSONAL DATA,837
Revenue,Childrens Services,Children's & Education Services,Children Looked After,5105695228,07.01.2022,In-house Fostering,Boarding Out Allowances,247.89,REDACTED PERSONAL DATA,838
Revenue,Childrens Services,Children's & Education Services,Children Looked After,5105695228,07.01.2022,In-house Fostering,Boarding Out Allowances,247.89,REDACTED PERSONAL DATA,839
Revenue,Childrens Services,Children's & Education Services,Children Looked After,5105697125,28.01.2022,Special Guardianship Order Costs,Support Children,213.30,REDACTED PERSONAL DATA,840
Revenue,Childrens Services,Children's & Education Services,Children Looked After,5105695240,07.01.2022,Special Guardianship Order Costs,Support Children,213.30,REDACTED PERSONAL DATA,841
Revenue,Childrens Services,Children's & Education Services,Children Looked After,5105695866,14.01.2022,Special Guardianship Order Costs,Support Children,213.30,REDACTED PERSONAL DATA,842
Revenue,Childrens Services,Children's & Education Services,Children Looked After,5105696541,21.01.2022,Special Guardianship Order Costs,Support Children,213.30,REDACTED PERSONAL DATA,843
Revenue,Childrens Services,Children's & Education Services,Children Looked After,5105696496,21.01.2022,In-house Fostering,Boarding Out Allowances,337.35,REDACTED PERSONAL DATA,844
Revenue,Childrens Services,Children's & Education Services,Children Looked After,5105697080,28.01.2022,In-house Fostering,Boarding Out Allowances,337.35,REDACTED PERSONAL DATA,845
Revenue,Childrens Services,Children's & Education Services,Children Looked After,5105695821,14.01.2022,In-house Fostering,Boarding Out Allowances,337.35,REDACTED PERSONAL DATA,846
Revenue,Childrens Services,Children's & Education Services,Children Looked After,5105695194,07.01.2022,In-house Fostering,Boarding Out Allowances,337.35,REDACTED PERSONAL DATA,847
Revenue,Childrens Services,Children's & Education Services,Children Looked After,5105695200,07.01.2022,In-house Fostering,Boarding Out Allowances,290.48,REDACTED PERSONAL DATA,848
Revenue,Childrens Services,Children's & Education Services,Children Looked After,5105695200,07.01.2022,In-house Fostering,Boarding Out Allowances,337.35,REDACTED PERSONAL DATA,849
Revenue,Childrens Services,Children's & Education Services,Children Looked After,5105696493,21.01.2022,In-house Fostering,Boarding Out Allowances,320.85,REDACTED PERSONAL DATA,850
Revenue,Childrens Services,Children's & Education Services,Children Looked After,5105697077,28.01.2022,In-house Fostering,Boarding Out Allowances,320.85,REDACTED PERSONAL DATA,851
Revenue,Childrens Services,Children's & Education Services,Children Looked After,5105695818,14.01.2022,In-house Fostering,Boarding Out Allowances,320.85,REDACTED PERSONAL DATA,852
Revenue,Childrens Services,Children's & Education Services,Children Looked After,5105695191,07.01.2022,In-house Fostering,Boarding Out Allowances,320.85,REDACTED PERSONAL DATA,853
Revenue,Childrens Services,Children's & Education Services,Children Looked After,5105695204,07.01.2022,Adoption Costs,Support Children,207.13,REDACTED PERSONAL DATA,854
Revenue,Childrens Services,Children's & Education Services,Children Looked After,5105697089,28.01.2022,Adoption Costs,Support Children,207.13,REDACTED PERSONAL DATA,855
Revenue,Childrens Services,Children's & Education Services,Children Looked After,5105695830,14.01.2022,Adoption Costs,Support Children,207.13,REDACTED PERSONAL DATA,856
Revenue,Childrens Services,Children's & Education Services,Children Looked After,5105696505,21.01.2022,Adoption Costs,Support Children,207.13,REDACTED PERSONAL DATA,857
Revenue,Childrens Services,Children's & Education Services,Support Services,5105695582,12.01.2022,Learning & Development Running Costs,Gas,865.07,CALOR GAS LIMITED,858
Revenue,Childrens Services,Children's & Education Services,Support Services,5105696901,26.01.2022,Learning & Development Running Costs,Gas,856.39,CALOR GAS LIMITED,859
Revenue,Childrens Services,Children's & Education Services,Children Looked After,5105693868,07.01.2022,Purchased Residential,Charges from Independent Providers,-807.14,CAMBIAN CHILDCARE LTD,860
Revenue,Childrens Services,Children's & Education Services,Children Looked After,5105695357,07.01.2022,Purchased Residential,Charges from Independent Providers,"20,150.00",CAMBIAN CHILDCARE LTD,861
Revenue,Childrens Services,Children's & Education Services,Children Looked After,5105695358,07.01.2022,Purchased Residential,Charges from Independent Providers,"17,492.99",CAMBIAN CHILDCARE LTD,862
Revenue,Childrens Services,Children's & Education Services,Children Looked After,5105695359,07.01.2022,Purchased Residential,Charges from Independent Providers,"20,592.99",CAMBIAN CHILDCARE LTD,863
Revenue,Childrens Services,Children's & Education Services,Management & Support Services,5105695356,07.01.2022,Independent Schools Non-Special Educational Needs,Charges from Independent Providers,"3,542.99",CAMBIAN CHILDCARE LTD,864
Revenue,Childrens Services,Children's & Education Services,Family Support Services,5105696395,19.01.2022,Short Breaks,Charges from Independent Providers,"1,149.24",CARE CONNECT IOW CIC,865
Revenue,Childrens Services,Children's & Education Services,Family Support Services,5105695119,05.01.2022,Short Breaks,Charges from Independent Providers,"1,532.32",CARE CONNECT IOW CIC,866
Revenue,Adult Services,Adult Social Care,Learning Disab Supp (to be reallocated),5105696307,19.01.2022,Plean Dene,Grounds Maintenance,243.00,CARE IN THE GARDEN,867
Revenue,Adult Services,Adult Social Care,Learning Disab Supp (to be reallocated),5105696307,19.01.2022,Saxonbury,Grounds Maintenance,81.00,CARE IN THE GARDEN,868
Revenue,Adult Services,Adult Social Care,Social Support - Support for Carer,5105696307,19.01.2022,Westminster House,Grounds Maintenance,162.00,CARE IN THE GARDEN,869
Revenue,Resources,Central Services,Support Services,5105696823,26.01.2022,Staff Benefits,Payment to Private Contractors,90.00,CARISBROOKE CEP SCHOOL,870
Revenue,Childrens Services,Children's & Education Services,Children Looked After,5105695058,05.01.2022,Beaulieu House,Minor Works,67.00,CATER WIGHT,874
Revenue,Adult Services,Adult Social Care,Central Codes (to be reallocated),5105696356,19.01.2022,Adelaide Resource Centre,Operational Equipment,389.00,CATER WIGHT,875
Capital,Resources,Capital,Capital,5105697344,28.01.2022,Server Farm,ICT Hardware & Software - Capital,"29,900.00",CELERITY LTD,876
Revenue,Childrens Services,Children's & Education Services,Special Schools & Alternative Provision,5105696977,26.01.2022,Island Learning Centre,Purchase of Books,31.20,CO-ORDINATION GROUP PUBLICATIONS,877
Revenue,Childrens Services,Children's & Education Services,Special Schools & Alternative Provision,5105696977,26.01.2022,Island Learning Centre,Purchase of Books,31.20,CO-ORDINATION GROUP PUBLICATIONS,878
Revenue,Childrens Services,Children's & Education Services,Special Schools & Alternative Provision,5105696977,26.01.2022,Island Learning Centre,Purchase of Books,48.00,CO-ORDINATION GROUP PUBLICATIONS,879
Revenue,Childrens Services,Children's & Education Services,Special Schools & Alternative Provision,5105696977,26.01.2022,Island Learning Centre,Purchase of Books,24.00,CO-ORDINATION GROUP PUBLICATIONS,880
Revenue,Neighbourhoods,Cultural and Related Services,Open Spaces,5105696689,26.01.2022,Other Grounds Maintenance,Operational Equipment,182.12,CHANT LOCK & SECURITY SERVICE,881
Revenue,Neighbourhoods,Highways and Transport Services,"Airports, Harbours & Toll Facilities",5105695132,05.01.2022,Newport Harbour Account,Operational Equipment,96.74,CHANT LOCK & SECURITY SERVICE,882
Revenue,Adult Services,Adult Social Care,Central Codes (to be reallocated),5105696229,19.01.2022,Gouldings Resource Centre,Catering Purchases,68.50,CHAPEL NURSERIES,883
Revenue,Adult Services,Adult Social Care,Central Codes (to be reallocated),5105695593,12.01.2022,Gouldings Resource Centre,Catering Purchases,113.60,CHAPEL NURSERIES,884
Revenue,Adult Services,Adult Social Care,Central Codes (to be reallocated),5105696228,19.01.2022,Gouldings Resource Centre,Catering Purchases,73.00,CHAPEL NURSERIES,885
Revenue,Adult Services,Adult Social Care,Central Codes (to be reallocated),5105695588,12.01.2022,Gouldings Resource Centre,Catering Purchases,77.10,CHAPEL NURSERIES,886
Revenue,Adult Services,Adult Social Care,Learning Disab Supp (to be reallocated),5105695978,14.01.2022,Saxonbury,Catering Purchases,31.30,CHAPEL NURSERIES,887
Revenue,Adult Services,Adult Social Care,Learning Disab Supp (to be reallocated),5105695979,14.01.2022,Saxonbury,Catering Purchases,29.40,CHAPEL NURSERIES,888
Revenue,Adult Services,Adult Social Care,Learning Disab Supp (to be reallocated),5105695082,05.01.2022,Plean Dene,Catering Purchases,50.50,CHAPEL NURSERIES,889
Revenue,Adult Services,Adult Social Care,Learning Disab Supp (to be reallocated),5105696982,26.01.2022,Plean Dene,Catering Purchases,42.70,CHAPEL NURSERIES,890
Revenue,Adult Services,Adult Social Care,Learning Disab Supp (to be reallocated),5105696984,26.01.2022,Plean Dene,Catering Purchases,45.60,CHAPEL NURSERIES,891
Revenue,Adult Services,Adult Social Care,Learning Disab Supp (to be reallocated),5105696985,26.01.2022,Plean Dene,Catering Purchases,22.00,CHAPEL NURSERIES,892
Revenue,Adult Services,Adult Social Care,Learning Disab Supp (to be reallocated),5105695157,05.01.2022,Plean Dene,Catering Purchases,-30.40,CHAPEL NURSERIES,893
Revenue,Adult Services,Adult Social Care,Learning Disab Supp (to be reallocated),5105695153,05.01.2022,Plean Dene,Catering Purchases,44.40,CHAPEL NURSERIES,894
Revenue,Adult Services,Adult Social Care,Learning Disab Supp (to be reallocated),5105695154,05.01.2022,Plean Dene,Catering Purchases,28.50,CHAPEL NURSERIES,895
Revenue,Resources,Central Services,Support Services,5105695383,14.01.2022,Litigation Costs,Legal Fees - Other Parties,400.00,COLLEGE CHAMBERS BARRISTERS,896
Revenue,Neighbourhoods,Environmental & Regulatory Services,Regulatory Services,5105696313,19.01.2022,Trading Standards,Professional Services,44.00,CHARTERED TRADING STANDARDS,897
Revenue,Neighbourhoods,Environmental & Regulatory Services,Regulatory Services,5105696315,19.01.2022,Trading Standards,Professional Services,44.00,CHARTERED TRADING STANDARDS,898
Revenue,Childrens Services,Children's & Education Services,Special Schools & Alternative Provision,5105694994,05.01.2022,Island Learning Centre,Schools Catering Contract,800.40,CHARTWELLS,899
Revenue,Childrens Services,Children's & Education Services,Special Schools & Alternative Provision,5105696654,21.01.2022,Island Learning Centre,Schools Catering Contract,326.60,CHARTWELLS,900
Revenue,Childrens Services,Children's & Education Services,Children Looked After,5105695136,05.01.2022,Support for Looked After Children,Support Children,0.00,CHATTERBOX NURSERY LTD,901
Revenue,Resources,Central Services,Support Services,5105697393,28.01.2022,Staff Benefits,Payment to Private Contractors,124.00,CHATTERBOX NURSERY LTD,902
Revenue,Adult Services,Adult Social Care,Support - Memory /Cognition-older people (65+),5105696192,19.01.2022,Memory & Cognition Residential 65+,Charges from Independent Providers,"3,449.32",CHD CARE LTD,903
Revenue,Childrens Services,Children's & Education Services,Children Looked After,5105697191,28.01.2022,Special Guardianship Order Costs,Support Children,223.42,REDACTED PERSONAL DATA,904
Revenue,Childrens Services,Children's & Education Services,Children Looked After,5105695935,14.01.2022,Special Guardianship Order Costs,Support Children,223.42,REDACTED PERSONAL DATA,905
Revenue,Childrens Services,Children's & Education Services,Children Looked After,5105695308,07.01.2022,Special Guardianship Order Costs,Support Children,223.42,REDACTED PERSONAL DATA,906
Revenue,Childrens Services,Children's & Education Services,Children Looked After,5105696607,21.01.2022,Special Guardianship Order Costs,Support Children,223.42,REDACTED PERSONAL DATA,907
Revenue,Adult Services,Adult Social Care,Support - Memory /Cognition-older people (65+),5105696134,19.01.2022,Memory & Cognition Residential 65+,Charges from Independent Providers,"2,529.52",CHERRY TREES I.W. LTD,908
Revenue,Adult Services,Adult Social Care,Support - Memory /Cognition-older people (65+),5105696134,19.01.2022,Memory & Cognition Residential 65+,Charges from Independent Providers,"2,529.52",CHERRY TREES I.W. LTD,909
Revenue,Adult Services,Adult Social Care,Support - Memory /Cognition-older people (65+),5105696134,19.01.2022,Memory & Cognition Residential 65+,Charges from Independent Providers,"2,529.52",CHERRY TREES I.W. LTD,910
Revenue,Adult Services,Adult Social Care,Support - Memory /Cognition-older people (65+),5105696116,19.01.2022,Memory & Cognition Residential 65+,Charges from Independent Providers,"1,626.12",CHERRY TREES I.W. LTD,911
Revenue,Adult Services,Adult Social Care,Support - Memory /Cognition-older people (65+),5105694978,05.01.2022,Memory & Cognition Residential 65+,Charges from Independent Providers,"8,220.94",CHERRY TREES I.W. LTD,912
Revenue,Adult Services,Adult Social Care,Commissioning & Service Delivery,5105696134,19.01.2022,CHC Residential Care,Charges from Independent Providers,"2,529.52",CHERRY TREES I.W. LTD,913
Revenue,Adult Services,Adult Social Care,Physical Support - older people (65+),5105696134,19.01.2022,Physical Support Residential 65+,Charges from Independent Providers,"2,054.64",CHERRY TREES I.W. LTD,914
Revenue,Adult Services,Adult Social Care,Physical Support - older people (65+),5105696134,19.01.2022,Physical Support Residential 65+,Charges from Independent Providers,"2,054.64",CHERRY TREES I.W. LTD,915
Revenue,Adult Services,Adult Social Care,Physical Support - older people (65+),5105696134,19.01.2022,Physical Support Residential 65+,Charges from Independent Providers,"2,151.52",CHERRY TREES I.W. LTD,916
Revenue,Adult Services,Adult Social Care,Physical Support - older people (65+),5105696134,19.01.2022,Physical Support Residential 65+,Charges from Independent Providers,300.16,CHERRY TREES I.W. LTD,917
Revenue,Adult Services,Adult Social Care,Physical Support - older people (65+),5105696134,19.01.2022,Physical Support Residential 65+,Charges from Independent Providers,"2,054.64",CHERRY TREES I.W. LTD,918
Revenue,Adult Services,Adult Social Care,Physical Support - older people (65+),5105696134,19.01.2022,Physical Support Residential 65+,Charges from Independent Providers,"2,151.52",CHERRY TREES I.W. LTD,919
Revenue,Adult Services,Housing Services,Homelessness,5105692680,07.01.2022,B&B Properties,Accommodation Costs - Bed & Breakfast,"2,400.00",CHERRYLEE B&B,920
Revenue,Childrens Services,Children's & Education Services,Children Looked After,5105696358,19.01.2022,Purchased Residential,Charges from Independent Providers,"27,457.14",CHILDHOOD FIRST,921
Revenue,Neighbourhoods,Highways and Transport Services,Parking Services,5105696096,14.01.2022,Car Park Permits,Printing Costs,608.25,CHIPSIDE LIMITED,923
Revenue,Resources,Highways and Transport Services,Off Street Parking,5105695688,12.01.2022,Parking Services,Professional Services,47.10,CHIPSIDE LIMITED,925
Revenue,Resources,Highways and Transport Services,Off Street Parking,5105689119,12.01.2022,Parking Services,Payment to Private Contractors,"1,099.17",CHIPSIDE LIMITED,926
Revenue,Resources,Highways and Transport Services,Off Street Parking,5105689120,12.01.2022,Parking Services,Payment to Private Contractors,"1,024.65",CHIPSIDE LIMITED,927
Revenue,Resources,Highways and Transport Services,Off Street Parking,5105689122,12.01.2022,Parking Services,Payment to Private Contractors,996.89,CHIPSIDE LIMITED,928
Revenue,Resources,Highways and Transport Services,Off Street Parking,5105692175,12.01.2022,Parking Services,Payment to Private Contractors,"-1,136.10",CHIPSIDE LIMITED,929
Revenue,Resources,Highways and Transport Services,Off Street Parking,5105692178,12.01.2022,Parking Services,Payment to Private Contractors,"-1,099.17",CHIPSIDE LIMITED,930
Revenue,Resources,Highways and Transport Services,Off Street Parking,5105695631,12.01.2022,Parking Services,Payment to Private Contractors,110.74,CHIPSIDE LIMITED,931
Revenue,Resources,Highways and Transport Services,Off Street Parking,5105695627,12.01.2022,Parking Services,Payment to Private Contractors,930.38,CHIPSIDE LIMITED,932
Revenue,Resources,Highways and Transport Services,Off Street Parking,5105695628,12.01.2022,Parking Services,Payment to Private Contractors,994.93,CHIPSIDE LIMITED,933
Revenue,Resources,Highways and Transport Services,Off Street Parking,5105695629,12.01.2022,Parking Services,Payment to Private Contractors,"1,020.73",CHIPSIDE LIMITED,934
Revenue,Resources,Highways and Transport Services,Off Street Parking,5105695630,12.01.2022,Parking Services,Payment to Private Contractors,"1,082.73",CHIPSIDE LIMITED,935
Revenue,Resources,Highways and Transport Services,Off Street Parking,5105692179,12.01.2022,Parking Services,Payment to Private Contractors,-996.89,CHIPSIDE LIMITED,936
Revenue,Adult Services,Adult Social Care,Commissioning & Service Delivery,5105696205,19.01.2022,CHC Residential Care,Charges from Independent Providers,"11,924.08",CHOICE CARE (WOODLANDS),937
Revenue,Adult Services,Adult Social Care,Learning Disability Suppt-adults (18-64),5105696194,19.01.2022,Learning Disability Residential 18-64,Charges from Independent Providers,"7,190.12",CHOICE LTD,938
Revenue,Childrens Services,Children's & Education Services,Other Education and Community Budget,5105697413,28.01.2022,Adult Community Learning,Licences,18.50,CITY AND GUILDS,940
Revenue,Childrens Services,Children's & Education Services,Other Education and Community Budget,5105697414,28.01.2022,Adult Community Learning,Licences,37.00,CITY AND GUILDS,941
Revenue,Adult Services,Adult Social Care,Central Codes (to be reallocated),5105696911,26.01.2022,Adelaide Resource Centre,Fixtures and Fittings,43.00,CITY ELECTRICAL FACTORS LTD,942
Revenue,Resources,Central Services,Central Services to the Public,5105697246,28.01.2022,Electoral Registration Office,Printing Costs,"1,064.83",ELECTORAL REFORM SERVICES,943
Revenue,Resources,Central Services,Central Services to the Public,5105695388,07.01.2022,Electoral Registration Canvassing,Printing Costs,"3,938.74",ELECTORAL REFORM SERVICES,944
Revenue,Regeneration,Planning services,Economic Development,5105695487,12.01.2022,Levelling Up Fund bid support,Rent of Buildings and Rooms,400.00,CLASSIC BOAT MUSEUM,945
Revenue,Regeneration,Planning services,Economic Development,5105695487,12.01.2022,Levelling Up Fund bid support,Rent of Buildings and Rooms,331.50,CLASSIC BOAT MUSEUM,946
Revenue,Regeneration,Planning services,Economic Development,5105695487,12.01.2022,Levelling Up Fund bid support,Rent of Buildings and Rooms,50.00,CLASSIC BOAT MUSEUM,947
Revenue,Adult Services,Adult Social Care,Assistive Equipment & Technology,5105694314,19.01.2022,BCF Community Equipment Store,Operational Equipment,"3,100.00",CLEANING EQUIPTMENT SERVICES LTD,948
Revenue,Childrens Services,Children's & Education Services,Children Looked After,5105697008,26.01.2022,Support for LAC CWD,Support Children,114.75,CLEVER CLOGGS DAY CARE,949
Revenue,Childrens Services,Children's & Education Services,Children Looked After,5105695684,14.01.2022,Leaving Care Costs,Charges from Independent Providers,"7,927.14",CM SUPPORTED LIVING SERVICES,950
Revenue,Resources,Adult Social Care,Information & Early Intervention,5105691219,21.01.2022,BCF Vol Sector InfGt,Payments to Voluntary and Other Associations,"19,500.00",COMMUNITY ACTION ISLE OF WIGHT,951
Revenue,Childrens Services,Children's & Education Services,Family Support Services,5105690643,26.01.2022,Holiday Activities & Food Programme,Payments to Voluntary and Other Associations,"5,913.60",COMMUNITY ACTION ISLE OF WIGHT,952
Revenue,Childrens Services,Children's & Education Services,Family Support Services,5105696835,26.01.2022,Holiday Activities & Food Programme,Payments to Voluntary and Other Associations,"-5,913.60",COMMUNITY ACTION ISLE OF WIGHT,953
Capital,Adult Services,Capital,Capital,5105696261,21.01.2022,S106 Capital Projects,Capital Grants,"1,500.00",COMMUNITY ACTION ISLE OF WIGHT,954
Capital,Adult Services,Capital,Capital,5105695061,05.01.2022,S106 Capital Projects,External Design and Supervision Fees,"1,850.45",COMMUNITY ACTION ISLE OF WIGHT,955
Revenue,Childrens Services,Children's & Education Services,Family Support Services,5105696295,19.01.2022,Short Breaks,Charges from Independent Providers,600.00,COMMUNITY ACTION ISLE OF WIGHT,956
Revenue,Adult Services,Adult Social Care,Central Codes (to be reallocated),5105696455,19.01.2022,Adelaide Resource Centre,Clothing & Laundry,62.84,CONTEGO SAFETY SOLUTIONS LTD,957
Revenue,Neighbourhoods,Cultural and Related Services,Recreation and Sport,5105697410,28.01.2022,The Heights,Clothing & Laundry,483.82,CONTEGO SAFETY SOLUTIONS LTD,958
Revenue,Childrens Services,Children's & Education Services,Children Looked After,5105695027,05.01.2022,Support for LAC CWD,Professional Services,305.58,CORAM VOICE,959
Revenue,Adult Services,Adult Social Care,Support - Memory /Cognition-older people (65+),5105696160,19.01.2022,Memory & Cognition Residential 65+,Charges from Independent Providers,"2,529.52",CORNELIA MANOR,960
Revenue,Adult Services,Adult Social Care,Support - Memory /Cognition-older people (65+),5105696160,19.01.2022,Memory & Cognition Residential 65+,Charges from Independent Providers,"2,151.52",CORNELIA MANOR,961
Revenue,Adult Services,Adult Social Care,Support - Memory /Cognition-older people (65+),5105696160,19.01.2022,Memory & Cognition Residential 65+,Charges from Independent Providers,"2,529.52",CORNELIA MANOR,962
Revenue,Adult Services,Central Services,Emergency Planning,5105696280,19.01.2022,NHS C19 Residential,Charges from Independent Providers,"3,240.16",CORNELIA MANOR,963
Revenue,Adult Services,Central Services,Emergency Planning,5105696280,19.01.2022,NHS C19 Residential,Charges from Independent Providers,"3,240.16",CORNELIA MANOR,964
Revenue,Adult Services,Central Services,Emergency Planning,5105695434,07.01.2022,NHS C19 Residential,Charges from Independent Providers,"3,240.16",CORNELIA MANOR,965
Revenue,Adult Services,Central Services,Emergency Planning,5105695434,07.01.2022,NHS C19 Residential,Charges from Independent Providers,"10,240.16",CORNELIA MANOR,966
Revenue,Adult Services,Central Services,Emergency Planning,5105695434,07.01.2022,NHS C19 Residential,Charges from Independent Providers,"3,240.16",CORNELIA MANOR,967
Revenue,Adult Services,Central Services,Emergency Planning,5105695434,07.01.2022,NHS C19 Residential,Charges from Independent Providers,"3,800.16",CORNELIA MANOR,968
Revenue,Adult Services,Central Services,Emergency Planning,5105695434,07.01.2022,NHS C19 Residential,Charges from Independent Providers,"3,240.16",CORNELIA MANOR,969
Revenue,Adult Services,Adult Social Care,Social Support - Social Isolation/Other,5105696160,19.01.2022,Social Isolation/Other Residential,Charges from Independent Providers,"2,151.52",CORNELIA MANOR,970
Revenue,Adult Services,Adult Social Care,Mental Health Support - adults (18-64),5105696280,19.01.2022,Mental Health Residential 18-64,Charges from Independent Providers,"3,252.24",CORNELIA MANOR,972
Revenue,Adult Services,Adult Social Care,Social Support - Support for Carer,5105696160,19.01.2022,Carers Residential,Charges from Independent Providers,"2,151.52",CORNELIA MANOR,973
Revenue,Adult Services,Adult Social Care,Physical Support - older people (65+),5105696160,19.01.2022,Physical Support Residential 65+,Charges from Independent Providers,"2,529.52",CORNELIA MANOR,974
Revenue,Adult Services,Adult Social Care,Physical Support - older people (65+),5105696160,19.01.2022,Physical Support Residential 65+,Charges from Independent Providers,"2,529.52",CORNELIA MANOR,975
Revenue,Adult Services,Adult Social Care,Physical Support - older people (65+),5105696160,19.01.2022,Physical Support Residential 65+,Charges from Independent Providers,"2,151.52",CORNELIA MANOR,976
Revenue,Adult Services,Adult Social Care,Physical Support - older people (65+),5105696160,19.01.2022,Physical Support Residential 65+,Charges from Independent Providers,"2,054.64",CORNELIA MANOR,977
Revenue,Adult Services,Adult Social Care,Physical Support - older people (65+),5105695139,05.01.2022,Physical Support Residential 65+,Charges from Independent Providers,"2,054.64",CORNELIA MANOR,978
Revenue,Adult Services,Adult Social Care,Physical Support - older people (65+),5105697384,28.01.2022,Physical Support Residential 65+,Charges from Independent Providers,"3,613.60",CORNELIA MANOR,979
Revenue,Neighbourhoods,Highways and Transport Services,"Airports, Harbours & Toll Facilities",5105694470,05.01.2022,Ferry Operation,Operational Equipment,470.83,COWES HARBOUR COMMISSION,980
Revenue,Neighbourhoods,Highways and Transport Services,"Airports, Harbours & Toll Facilities",5105694470,05.01.2022,Ferry Operation,Operational Equipment,141.25,COWES HARBOUR COMMISSION,981
Revenue,Neighbourhoods,Highways and Transport Services,"Airports, Harbours & Toll Facilities",5105695686,12.01.2022,Newport Harbour Account,Payment to Private Contractors,89.25,COWES HARBOUR COMMISSION,982
Revenue,Neighbourhoods,Highways and Transport Services,"Airports, Harbours & Toll Facilities",5105695473,07.01.2022,Ferry Operation,Payment to Private Contractors,"9,315.00",FOLLY VENTURES,984
Revenue,Regeneration,Planning services,Economic Development,5105692391,22.01.2022,High Street Heritage Action Zone,Professional Services,"5,250.00",CREATE STREETS LTD,985
Revenue,Neighbourhoods,Cultural and Related Services,Open Spaces,5105696672,21.01.2022,Rights of Way Operations,Payment to Private Contractors,410.00,CRIDMORE FARM CO LTD,986
Revenue,Childrens Services,Children's & Education Services,Other Education and Community Budget,5105695752,14.01.2022,Home to School SEN Transport (LA),Taxis - Contract Hire,520.00,CRISS CROSS CABS,987
Revenue,Childrens Services,Children's & Education Services,Management & Support Services,5105695750,12.01.2022,Special Discretionary Grants,Transport of Clients,600.00,CRISS CROSS CABS,988
Revenue,Childrens Services,Children's & Education Services,Other Education and Community Budget,5105695751,12.01.2022,Home to College Post 16 Transport,Taxis - Contract Hire,736.00,CRISS CROSS CABS,989
Revenue,Neighbourhoods,Highways and Transport Services,"Airports, Harbours & Toll Facilities",5105694939,05.01.2022,Whitegates Pontoons,Rent of Buildings and Rooms,525.00,CROWN ESTATE COMMISSIONERS,990
Revenue,Neighbourhoods,Highways and Transport Services,"Airports, Harbours & Toll Facilities",5105694939,05.01.2022,Newport Harbour Account,Rent of Buildings and Rooms,"2,560.00",CROWN ESTATE COMMISSIONERS,991
Revenue,Adult Services,Adult Social Care,Commissioning & Service Delivery,5105696208,19.01.2022,CHC Residential Care,Charges from Independent Providers,"11,499.60",CYGNET LEARNING DISABILITIES,992
Revenue,Childrens Services,Children's & Education Services,Children Looked After,5105697136,28.01.2022,Children placed with Family&Friends,Boarding Out Allowances,247.89,REDACTED PERSONAL DATA,993
Revenue,Childrens Services,Children's & Education Services,Children Looked After,5105697136,28.01.2022,Children placed with Family&Friends,Boarding Out Allowances,247.89,REDACTED PERSONAL DATA,994
Revenue,Childrens Services,Children's & Education Services,Children Looked After,5105697136,28.01.2022,Children placed with Family&Friends,Boarding Out Allowances,290.48,REDACTED PERSONAL DATA,995
Revenue,Childrens Services,Children's & Education Services,Children Looked After,5105696552,21.01.2022,Children placed with Family&Friends,Boarding Out Allowances,247.89,REDACTED PERSONAL DATA,996
Revenue,Childrens Services,Children's & Education Services,Children Looked After,5105696552,21.01.2022,Children placed with Family&Friends,Boarding Out Allowances,247.89,REDACTED PERSONAL DATA,997
Revenue,Childrens Services,Children's & Education Services,Children Looked After,5105696552,21.01.2022,Children placed with Family&Friends,Boarding Out Allowances,290.48,REDACTED PERSONAL DATA,998
Revenue,Childrens Services,Children's & Education Services,Children Looked After,5105695877,14.01.2022,Children placed with Family&Friends,Boarding Out Allowances,247.89,REDACTED PERSONAL DATA,999
Revenue,Childrens Services,Children's & Education Services,Children Looked After,5105695877,14.01.2022,Children placed with Family&Friends,Boarding Out Allowances,247.89,REDACTED PERSONAL DATA,1000
Revenue,Childrens Services,Children's & Education Services,Children Looked After,5105695877,14.01.2022,Children placed with Family&Friends,Boarding Out Allowances,290.48,REDACTED PERSONAL DATA,1001
Revenue,Childrens Services,Children's & Education Services,Children Looked After,5105695251,07.01.2022,Children placed with Family&Friends,Boarding Out Allowances,247.89,REDACTED PERSONAL DATA,1002
Revenue,Childrens Services,Children's & Education Services,Children Looked After,5105695251,07.01.2022,Children placed with Family&Friends,Boarding Out Allowances,247.89,REDACTED PERSONAL DATA,1003
Revenue,Childrens Services,Children's & Education Services,Children Looked After,5105695251,07.01.2022,Children placed with Family&Friends,Boarding Out Allowances,290.48,REDACTED PERSONAL DATA,1004
Revenue,Adult Services,Housing Services,Homelessness,5105696792,26.01.2022,Private Rented Sector Leasing Scheme,Accommodation Costs - Leaseholder Payments,859.95,REDACTED PERSONAL DATA,1005
Capital,Place,Capital,Capital,5105696039,14.01.2022,Carriageway works,Professional Services,"3,289.00",D CHALLIS PROPERTY SERVICES LTD,1006
Revenue,Childrens Services,Children's & Education Services,Children Looked After,5105696494,21.01.2022,Adoption Costs,Support Children,207.73,REDACTED PERSONAL DATA,1007
Revenue,Childrens Services,Children's & Education Services,Children Looked After,5105695192,07.01.2022,Adoption Costs,Support Children,207.73,REDACTED PERSONAL DATA,1008
Revenue,Childrens Services,Children's & Education Services,Children Looked After,5105697078,28.01.2022,Adoption Costs,Support Children,207.73,REDACTED PERSONAL DATA,1009
Revenue,Childrens Services,Children's & Education Services,Children Looked After,5105695819,14.01.2022,Adoption Costs,Support Children,207.73,REDACTED PERSONAL DATA,1010
Revenue,Adult Services,Housing Services,Homelessness,5105696794,26.01.2022,Private Rented Sector Leasing Scheme,Accommodation Costs - Leaseholder Payments,788.67,REDACTED PERSONAL DATA,1011
Revenue,Childrens Services,Children's & Education Services,Children Looked After,5105695179,07.01.2022,Adoption Costs,Support Children,168.39,REDACTED PERSONAL DATA,1012
Revenue,Childrens Services,Children's & Education Services,Children Looked After,5105697065,28.01.2022,Adoption Costs,Support Children,207.13,REDACTED PERSONAL DATA,1013
Revenue,Childrens Services,Children's & Education Services,Children Looked After,5105695806,14.01.2022,Adoption Costs,Support Children,207.13,REDACTED PERSONAL DATA,1014
Revenue,Childrens Services,Children's & Education Services,Children Looked After,5105696481,21.01.2022,Adoption Costs,Support Children,207.13,REDACTED PERSONAL DATA,1015
Revenue,Adult Services,Housing Services,Homelessness,5105696811,26.01.2022,Private Rented Sector Leasing Scheme,Accommodation Costs - Leaseholder Payments,678.90,REDACTED PERSONAL DATA,1016
Revenue,Childrens Services,Children's & Education Services,Children Looked After,5105697166,28.01.2022,In-house Fostering,Boarding Out Allowances,247.89,REDACTED PERSONAL DATA,1017
Revenue,Childrens Services,Children's & Education Services,Children Looked After,5105697166,28.01.2022,In-house Fostering,Boarding Out Allowances,290.48,REDACTED PERSONAL DATA,1018
Revenue,Childrens Services,Children's & Education Services,Children Looked After,5105695907,14.01.2022,In-house Fostering,Boarding Out Allowances,247.89,REDACTED PERSONAL DATA,1019
Revenue,Childrens Services,Children's & Education Services,Children Looked After,5105695907,14.01.2022,In-house Fostering,Boarding Out Allowances,290.48,REDACTED PERSONAL DATA,1020
Revenue,Childrens Services,Children's & Education Services,Children Looked After,5105695281,07.01.2022,In-house Fostering,Boarding Out Allowances,247.89,REDACTED PERSONAL DATA,1021
Revenue,Childrens Services,Children's & Education Services,Children Looked After,5105695281,07.01.2022,In-house Fostering,Boarding Out Allowances,290.48,REDACTED PERSONAL DATA,1022
Revenue,Childrens Services,Children's & Education Services,Children Looked After,5105696582,21.01.2022,In-house Fostering,Boarding Out Allowances,247.89,REDACTED PERSONAL DATA,1023
Revenue,Childrens Services,Children's & Education Services,Children Looked After,5105696582,21.01.2022,In-house Fostering,Boarding Out Allowances,290.48,REDACTED PERSONAL DATA,1024
Revenue,Resources,Central Services,Support Services,5105697049,26.01.2022,Litigation Costs,Legal Fees - Other Parties,650.00,"33 BEDFORD ROW CHAMBERS, LONDON",1025
Revenue,Resources,Central Services,Support Services,5105696694,21.01.2022,Litigation Costs,Legal Fees - Other Parties,500.00,"COLLEGE CHAMBERS, BARRISTERS",1026
Revenue,Neighbourhoods,Cultural and Related Services,Open Spaces,5105695459,19.01.2022,Ventnor Botanic Garden,Property Services - Planned Maintenance,615.00,DARES LTD,1027
Revenue,Childrens Services,Children's & Education Services,Children Looked After,5105696688,21.01.2022,Beaulieu House,Minor Works,"4,234.04",DARES LTD,1028
Revenue,Adult Services,Adult Social Care,Assistive Equipment & Technology,5105696736,21.01.2022,Wightcare,Vehicle Maintenance Costs,60.00,DASHWITNESS LTD,1029
Capital,Place,Capital,Capital,5105695516,12.01.2022,Highways transport capital,"Plant, Equipment & Furniture - Capital",356.97,DASHWITNESS LTD,1030
Revenue,Childrens Services,Children's & Education Services,Special Schools & Alternative Provision,5105696945,26.01.2022,Island Learning Centre,Computer Maintenance,328.75,DATASWIFT NETWORK SERVICES LIMITED,1031
Revenue,Childrens Services,Children's & Education Services,Special Schools & Alternative Provision,5105697034,26.01.2022,Island Learning Centre,Computer Maintenance,328.75,DATASWIFT NETWORK SERVICES LIMITED,1032
Revenue,Adult Services,Housing Services,Homelessness,5105696797,26.01.2022,Private Rented Sector Leasing Scheme,Accommodation Costs - Leaseholder Payments,742.26,REDACTED PERSONAL DATA,1033
Revenue,Childrens Services,Children's & Education Services,Children Looked After,5105696599,21.01.2022,Children placed with Family&Friends,Boarding Out Allowances,290.48,REDACTED PERSONAL DATA,1034
Revenue,Childrens Services,Children's & Education Services,Children Looked After,5105697183,28.01.2022,Children placed with Family&Friends,Boarding Out Allowances,290.48,REDACTED PERSONAL DATA,1035
Revenue,Childrens Services,Children's & Education Services,Children Looked After,5105695924,14.01.2022,Children placed with Family&Friends,Boarding Out Allowances,290.48,REDACTED PERSONAL DATA,1036
Revenue,Childrens Services,Children's & Education Services,Children Looked After,5105695299,07.01.2022,Children placed with Family&Friends,Boarding Out Allowances,290.48,REDACTED PERSONAL DATA,1037
Revenue,Public Health,Public Health,Sexual Health,5105697257,28.01.2022,STI Tests & Treatment P,Computer Software Licencing,550.00,DEBIGNO LTD,1038
Revenue,Neighbourhoods,Cultural and Related Services,Library Service,5105696762,21.01.2022,Cowes Library,Cleaning Contracts,80.00,DELTIC CLEANING COMPANY LTD,1039
Revenue,Neighbourhoods,Cultural and Related Services,Library Service,5105696761,21.01.2022,Ventnor Library,Cleaning Contracts,68.00,DELTIC CLEANING COMPANY LTD,1040
Revenue,Neighbourhoods,Cultural and Related Services,Library Service,5105696763,21.01.2022,Sandown Library,Cleaning Contracts,115.00,DELTIC CLEANING COMPANY LTD,1041
Revenue,Regeneration,Housing services,Housing Strategy,5105696257,19.01.2022,Brooklime House Flats 1-12,Minor Works,168.15,DENISON DOORS LIMITED,1042
Revenue,Public Health,Public Health,PH Covid-19,5105697487,28.01.2022,PH Covid-19 Containment Outbreak,Security of Buildings,"3,723.15",DENISON DOORS LIMITED,1043
Revenue,Adult Services,Housing Services,Homelessness,5105696816,26.01.2022,Private Rented Sector Leasing Scheme,Accommodation Costs - Leaseholder Payments,780.00,REDACTED PERSONAL DATA,1044
Revenue,Adult Services,Housing Services,Homelessness,5105696816,26.01.2022,Private Rented Sector Leasing Scheme,Accommodation Costs - Leaseholder Payments,799.50,REDACTED PERSONAL DATA,1045
Revenue,Adult Services,Housing Services,Homelessness,5105696715,21.01.2022,Homelessness Support,Rent of Buildings and Rooms,300.00,DIBBENS REMOVALS,1046
Revenue,Adult Services,Housing Services,Homelessness,5105696748,21.01.2022,Homelessness Support,Rent of Buildings and Rooms,-48.57,DIBBENS REMOVALS,1047
Revenue,Adult Services,Housing Services,Homelessness,5105696345,19.01.2022,Homelessness Support,Client Expenses,88.57,DIBBENS REMOVALS,1048
Revenue,Adult Services,Housing Services,Homelessness,5105696346,19.01.2022,Homelessness Support,Client Expenses,88.57,DIBBENS REMOVALS,1049
Revenue,Adult Services,Housing Services,Homelessness,5105696419,19.01.2022,Homelessness Support,Client Expenses,88.57,DIBBENS REMOVALS,1050
Revenue,Adult Services,Housing Services,Homelessness,5105696420,19.01.2022,Homelessness Support,Client Expenses,66.43,DIBBENS REMOVALS,1051
Revenue,Adult Services,Housing Services,Homelessness,5105696421,19.01.2022,Homelessness Support,Client Expenses,88.57,DIBBENS REMOVALS,1052
Revenue,Adult Services,Housing Services,Homelessness,5105696418,19.01.2022,Homelessness Support,Rent of Buildings and Rooms,88.57,DIBBENS REMOVALS,1053
Revenue,Neighbourhoods,Highways and Transport Services,"Airports, Harbours & Toll Facilities",5105695351,07.01.2022,Ferry Operation,Payment to Private Contractors,725.00,DMR ENGINEERING (IW) LTD,1054
Revenue,Neighbourhoods,Highways and Transport Services,"Airports, Harbours & Toll Facilities",5105695352,07.01.2022,Ferry Operation,Payment to Private Contractors,697.80,DMR ENGINEERING (IW) LTD,1055
Revenue,Neighbourhoods,Highways and Transport Services,"Airports, Harbours & Toll Facilities",5105695353,07.01.2022,Ferry Operation,Payment to Private Contractors,994.99,DMR ENGINEERING (IW) LTD,1056
Revenue,Neighbourhoods,Highways and Transport Services,"Airports, Harbours & Toll Facilities",5105695354,07.01.2022,Ferry Operation,Payment to Private Contractors,769.83,DMR ENGINEERING (IW) LTD,1057
Revenue,Neighbourhoods,Highways and Transport Services,"Airports, Harbours & Toll Facilities",5105695355,07.01.2022,Ferry Operation,Payment to Private Contractors,650.00,DMR ENGINEERING (IW) LTD,1058
Revenue,Neighbourhoods,Highways and Transport Services,"Airports, Harbours & Toll Facilities",5105695003,05.01.2022,Ferry Operation,Payment to Private Contractors,150.00,DMR ENGINEERING (IW) LTD,1059
Revenue,Neighbourhoods,Highways and Transport Services,"Airports, Harbours & Toll Facilities",5105695348,07.01.2022,Ferry Operation,Payment to Private Contractors,850.00,DMR ENGINEERING (IW) LTD,1060
Revenue,Neighbourhoods,Highways and Transport Services,"Airports, Harbours & Toll Facilities",5105695349,07.01.2022,Ferry Operation,Payment to Private Contractors,"1,862.50",DMR ENGINEERING (IW) LTD,1061
Revenue,Neighbourhoods,Highways and Transport Services,"Airports, Harbours & Toll Facilities",5105694865,07.01.2022,Ferry Operation,Payment to Private Contractors,"1,775.00",DMR ENGINEERING (IW) LTD,1062
Capital,Place,Capital,Capital,5105694866,05.01.2022,Parks and Gardens Capital,Payment to Contractors - Capital,"1,193.26",DMR ENGINEERING (IW) LTD,1063
Revenue,Neighbourhoods,Highways and Transport Services,"Airports, Harbours & Toll Facilities",5105694864,05.01.2022,Ferry Maintenance,Payment to Private Contractors,"5,911.87",DMR ENGINEERING (IW) LTD,1064
Revenue,Neighbourhoods,Highways and Transport Services,"Airports, Harbours & Toll Facilities",5105695011,05.01.2022,Ferry Maintenance,Payment to Private Contractors,"14,620.08",DMR ENGINEERING (IW) LTD,1065
Revenue,Childrens Services,Children's & Education Services,Safeguarding Children/Young Peoples Svs,5105695371,07.01.2022,Court Work & Consultancy Services,Professional Services,38.00,DNA LEGAL LTD,1066
Revenue,Childrens Services,Children's & Education Services,Safeguarding Children/Young Peoples Svs,5105695387,07.01.2022,Court Work & Consultancy Services,Professional Services,193.75,DNA LEGAL LTD,1067
Revenue,Childrens Services,Children's & Education Services,Safeguarding Children/Young Peoples Svs,5105697307,28.01.2022,Court Work & Consultancy Services,Professional Services,257.75,DNA LEGAL LTD,1068
Revenue,Adult Services,Adult Social Care,Mental Health Support-older people (65+),5105696184,19.01.2022,Mental Health Residential 65+,Charges from Independent Providers,"1,802.08",DONISTHORPE HALL,1069
Revenue,Childrens Services,Children's & Education Services,Children Looked After,5105697177,28.01.2022,Special Guardianship Order Costs,Support Children,220.52,REDACTED PERSONAL DATA,1070
Revenue,Childrens Services,Children's & Education Services,Children Looked After,5105695918,14.01.2022,Special Guardianship Order Costs,Support Children,220.52,REDACTED PERSONAL DATA,1071
Revenue,Childrens Services,Children's & Education Services,Children Looked After,5105695293,07.01.2022,Special Guardianship Order Costs,Support Children,220.52,REDACTED PERSONAL DATA,1072
Revenue,Childrens Services,Children's & Education Services,Children Looked After,5105696593,21.01.2022,Special Guardianship Order Costs,Support Children,220.52,REDACTED PERSONAL DATA,1073
Revenue,Neighbourhoods,Highways and Transport Services,"Airports, Harbours & Toll Facilities",5105694992,05.01.2022,Ryde Harbour,Payment to Private Contractors,70.00,DOUG SOLUTIONS,1074
Revenue,Neighbourhoods,Cultural and Related Services,Recreation and Sport,5105696255,19.01.2022,Beach Safety & Inspection / Beach Awards,Payment to Private Contractors,130.00,DOUG SOLUTIONS,1075
Revenue,Neighbourhoods,Environmental & Regulatory Services,(Street) Cleansing (not highways),5105696255,19.01.2022,Beach Cleaning,Payment to Private Contractors,75.00,DOUG SOLUTIONS,1076
Revenue,Neighbourhoods,Cultural and Related Services,Open Spaces,5105696255,19.01.2022,Public Shelters - Ryde,Payment to Private Contractors,460.00,DOUG SOLUTIONS,1077
Revenue,Neighbourhoods,Environmental & Regulatory Services,Coast Protection,5105697489,28.01.2022,Coast Protection,Payment to Private Contractors,60.00,DOUG SOLUTIONS,1078
Revenue,Neighbourhoods,Environmental & Regulatory Services,Coast Protection,5105697490,28.01.2022,Coast Protection,Payment to Private Contractors,125.00,DOUG SOLUTIONS,1079
Revenue,Neighbourhoods,Environmental & Regulatory Services,Coast Protection,5105696845,26.01.2022,Coast Protection,Payment to Private Contractors,85.00,DOUG SOLUTIONS,1080
Revenue,Neighbourhoods,Environmental & Regulatory Services,Coast Protection,5105696232,19.01.2022,Coast Protection,Payment to Private Contractors,85.00,DOUG SOLUTIONS,1081
Revenue,Neighbourhoods,Environmental & Regulatory Services,Coast Protection,5105696233,19.01.2022,Coast Protection,Payment to Private Contractors,110.00,DOUG SOLUTIONS,1082
Revenue,Adult Services,Adult Social Care,Mental Health Support-older people (65+),5105696169,19.01.2022,Mental Health Residential 65+,Charges from Independent Providers,"2,151.52",DOWNSIDE HOUSE LTD,1085
Revenue,Adult Services,Adult Social Care,Mental Health Support-older people (65+),5105696169,19.01.2022,Mental Health Residential 65+,Charges from Independent Providers,"2,054.64",DOWNSIDE HOUSE LTD,1086
Revenue,Adult Services,Adult Social Care,Support - Memory /Cognition-older people (65+),5105696169,19.01.2022,Memory & Cognition Residential 65+,Charges from Independent Providers,"2,529.52",DOWNSIDE HOUSE LTD,1087
Revenue,Adult Services,Adult Social Care,Support - Memory /Cognition-older people (65+),5105696169,19.01.2022,Memory & Cognition Residential 65+,Charges from Independent Providers,"2,529.52",DOWNSIDE HOUSE LTD,1088
Revenue,Adult Services,Adult Social Care,Physical Support - older people (65+),5105696169,19.01.2022,Physical Support Residential 65+,Charges from Independent Providers,"2,151.52",DOWNSIDE HOUSE LTD,1090
Revenue,Adult Services,Adult Social Care,Physical Support - older people (65+),5105696169,19.01.2022,Physical Support Residential 65+,Charges from Independent Providers,"2,529.52",DOWNSIDE HOUSE LTD,1091
Revenue,Adult Services,Adult Social Care,Physical Support - older people (65+),5105696169,19.01.2022,Physical Support Residential 65+,Charges from Independent Providers,"2,151.52",DOWNSIDE HOUSE LTD,1092
Revenue,Adult Services,Adult Social Care,Physical Support - older people (65+),5105696169,19.01.2022,Physical Support Residential 65+,Charges from Independent Providers,"2,151.52",DOWNSIDE HOUSE LTD,1093
Revenue,Adult Services,Adult Social Care,Physical Support - older people (65+),5105696169,19.01.2022,Physical Support Residential 65+,Charges from Independent Providers,"2,529.52",DOWNSIDE HOUSE LTD,1094
Revenue,Adult Services,Adult Social Care,Physical Support - older people (65+),5105696169,19.01.2022,Physical Support Residential 65+,Charges from Independent Providers,"2,054.64",DOWNSIDE HOUSE LTD,1095
Revenue,Adult Services,Adult Social Care,Physical Support - older people (65+),5105696169,19.01.2022,Physical Support Residential 65+,Charges from Independent Providers,"2,529.52",DOWNSIDE HOUSE LTD,1096
Revenue,Adult Services,Adult Social Care,Physical Support - older people (65+),5105696426,19.01.2022,Physical Support Residential 65+,Charges from Independent Providers,"9,067.12",DOWNSIDE HOUSE LTD,1097
Revenue,Neighbourhoods,Highways and Transport Services,Management and Support Services,5105695458,07.01.2022,Highways PFI Project,Legal Fees - Other Parties,"1,600.00","CORNERSTONE BARRISTERS, LONDON",1098
Revenue,Adult Services,Adult Social Care,Social Care Activities,5105696379,19.01.2022,DoLS/MCA,Professional Services,"1,600.00",REDACTED PERSONAL DATA,1099
Revenue,Adult Services,Adult Social Care,Assistive Equipment & Technology,5105692388,14.01.2022,BCF Community Equipment Store,Operational Equipment,609.25,DRIVE MEDICAL LTD,1100
Revenue,Adult Services,Adult Social Care,Assistive Equipment & Technology,5105695795,14.01.2022,BCF Community Equipment Store,Operational Equipment,"10,424.00",DRIVE MEDICAL LTD,1101
Revenue,Childrens Services,Children's & Education Services,Children Looked After,5105695685,12.01.2022,Support for LAC CWD,Support Children,192.50,DURHAM COUNTY COUNCIL,1102
Revenue,Childrens Services,Children's & Education Services,Children Looked After,5105695163,05.01.2022,Secure Accommodation (Welfare),Charges from Independent Providers,448.00,DURHAM COUNTY COUNCIL,1103
Revenue,Childrens Services,Children's & Education Services,Children Looked After,5105696440,19.01.2022,Secure Accommodation (Welfare),Charges from Independent Providers,"43,927.00",DURHAM COUNTY COUNCIL,1104
Revenue,Resources,Central Services,Support Services,5105696357,19.01.2022,County Hall Central Mail Room,Professional Subscriptions,"3,964.92",DX NETWORK SERVICES LTD,1105
Revenue,Adult Services,Adult Social Care,Learning Disability Suppt-adults (18-64),5105696146,19.01.2022,Learning Disability Residential 18-64,Charges from Independent Providers,"2,282.00",REDACTED PERSONAL DATA,1106
Revenue,Adult Services,Adult Social Care,Learning Disability Suppt-adults (18-64),5105696146,19.01.2022,Learning Disability Residential 18-64,Charges from Independent Providers,"3,306.52",REDACTED PERSONAL DATA,1107
Revenue,Adult Services,Adult Social Care,Learning Disability Suppt-adults (18-64),5105696146,19.01.2022,Learning Disability Residential 18-64,Charges from Independent Providers,"2,282.00",REDACTED PERSONAL DATA,1108
Revenue,Childrens Services,Children's & Education Services,Children Looked After,5105695201,07.01.2022,Special Guardianship Order Costs,Support Children,168.39,REDACTED PERSONAL DATA,1109
Revenue,Childrens Services,Children's & Education Services,Children Looked After,5105697086,28.01.2022,Special Guardianship Order Costs,Support Children,168.39,REDACTED PERSONAL DATA,1110
Revenue,Childrens Services,Children's & Education Services,Children Looked After,5105695827,14.01.2022,Special Guardianship Order Costs,Support Children,168.39,REDACTED PERSONAL DATA,1111
Revenue,Childrens Services,Children's & Education Services,Children Looked After,5105696502,21.01.2022,Special Guardianship Order Costs,Support Children,168.39,REDACTED PERSONAL DATA,1112
Revenue,Childrens Services,Children's & Education Services,Children Looked After,5105696492,21.01.2022,In-house Fostering,Boarding Out Allowances,337.35,REDACTED PERSONAL DATA,1113
Revenue,Childrens Services,Children's & Education Services,Children Looked After,5105696492,21.01.2022,In-house Fostering,Boarding Out Allowances,500.00,REDACTED PERSONAL DATA,1114
Revenue,Childrens Services,Children's & Education Services,Children Looked After,5105697076,28.01.2022,In-house Fostering,Boarding Out Allowances,337.35,REDACTED PERSONAL DATA,1115
Revenue,Childrens Services,Children's & Education Services,Children Looked After,5105695817,14.01.2022,In-house Fostering,Boarding Out Allowances,337.35,REDACTED PERSONAL DATA,1116
Revenue,Childrens Services,Children's & Education Services,Children Looked After,5105695817,14.01.2022,In-house Fostering,Boarding Out Allowances,500.00,REDACTED PERSONAL DATA,1117
Revenue,Childrens Services,Children's & Education Services,Children Looked After,5105695190,07.01.2022,In-house Fostering,Boarding Out Allowances,337.35,REDACTED PERSONAL DATA,1118
Revenue,Childrens Services,Children's & Education Services,Children Looked After,5105695190,07.01.2022,In-house Fostering,Boarding Out Allowances,500.00,REDACTED PERSONAL DATA,1119
Revenue,Childrens Services,Children's & Education Services,Management & Support Services,5105695006,05.01.2022,Independent Schools Non-Special Educational Needs,Charges from Independent Providers,"3,682.00",EAGLEWOOD SCHOOL,1120
Revenue,Childrens Services,Children's & Education Services,Children Looked After,5105695995,28.01.2022,Purchased Fostering,Charges from Independent Providers,"-1,157.40",EAST SUSSEX COUNTY COUNCIL,1121
Revenue,Childrens Services,Children's & Education Services,Children Looked After,5105696394,28.01.2022,Purchased Fostering,Charges from Independent Providers,"2,263.17",EAST SUSSEX COUNTY COUNCIL,1122
Revenue,Childrens Services,Children's & Education Services,Children Looked After,5105696397,19.01.2022,Purchased Fostering,Charges from Independent Providers,"2,263.17",EAST SUSSEX COUNTY COUNCIL,1123
Revenue,Childrens Services,Children's & Education Services,Children Looked After,5105688682,14.01.2022,Support for Looked After Children,Professional Services,339.76,EC ROBERTS CENTRE,1124
Revenue,Childrens Services,Children's & Education Services,Children Looked After,5105688683,14.01.2022,Support for Looked After Children,Professional Services,339.76,EC ROBERTS CENTRE,1125
Revenue,Childrens Services,Children's & Education Services,Children Looked After,5105688712,14.01.2022,Support for Looked After Children,Professional Services,169.88,EC ROBERTS CENTRE,1126
Revenue,Neighbourhoods,Highways and Transport Services,"Airports, Harbours & Toll Facilities",5105694995,05.01.2022,Ferry Management,Payment to Private Contractors,"11,136.00",ECR SOLUTIONS,1127
Revenue,Adult Services,Adult Social Care,Mental Health Support-older people (65+),5105696159,19.01.2022,Mental Health Residential 65+,Charges from Independent Providers,"2,529.52",EDEN HOUSE,1128
Revenue,Adult Services,Adult Social Care,Support - Memory /Cognition-older people (65+),5105696159,19.01.2022,Memory & Cognition Residential 65+,Charges from Independent Providers,"2,529.52",EDEN HOUSE,1129
Revenue,Adult Services,Adult Social Care,Support - Memory /Cognition-older people (65+),5105696159,19.01.2022,Memory & Cognition Residential 65+,Charges from Independent Providers,"2,529.52",EDEN HOUSE,1130
Revenue,Adult Services,Adult Social Care,Support - Memory /Cognition-older people (65+),5105695633,12.01.2022,Memory & Cognition Residential 65+,Charges from Independent Providers,"1,282.50",EDEN HOUSE,1131
Revenue,Adult Services,Adult Social Care,Commissioning & Service Delivery,5105696159,19.01.2022,CHC Residential Care,Charges from Independent Providers,"3,390.24",EDEN HOUSE,1133
Revenue,Adult Services,Adult Social Care,Mental Health Support - adults (18-64),5105696159,19.01.2022,Mental Health Residential 18-64,Charges from Independent Providers,"2,529.52",EDEN HOUSE,1134
Revenue,Adult Services,Adult Social Care,Physical Support - older people (65+),5105696159,19.01.2022,Physical Support Residential 65+,Charges from Independent Providers,"2,529.52",EDEN HOUSE,1135
Revenue,Adult Services,Adult Social Care,Physical Support - older people (65+),5105696159,19.01.2022,Physical Support Residential 65+,Charges from Independent Providers,"2,529.52",EDEN HOUSE,1136
Revenue,Adult Services,Adult Social Care,Physical Support - older people (65+),5105696159,19.01.2022,Physical Support Residential 65+,Charges from Independent Providers,"2,529.52",EDEN HOUSE,1137
Revenue,Adult Services,Adult Social Care,Physical Support - older people (65+),5105696159,19.01.2022,Physical Support Residential 65+,Charges from Independent Providers,"2,529.52",EDEN HOUSE,1138
Revenue,Adult Services,Adult Social Care,Physical Support - older people (65+),5105696159,19.01.2022,Physical Support Residential 65+,Charges from Independent Providers,"2,529.52",EDEN HOUSE,1139
